NUMERO_MANDATO;RIGA_MANDATO;QUIET;IMPORTO_RIGA;IMPORTO_MANDATO;BENEFICIARIO;CIG;TITOLO_PAGAMENTO;DATA_MANDATO;CAPITOLO;ARTICOLO;NUMERO_IMPEGNO;TITOLO;DESCR_TITOLO;LIVELLO_II;DESCR_LIVELLO_II;LIVELLO_III;DESCR_LIVELLO_III;LIVELLO_IV;DESCR_LIVELLO_IV;LIVELLO_V;DESCR_LIVELLO_V;DATA_PAG_EFF
3141;1;9999999;25,87;25,87;C/C/P 15453301 SERVIZIO DI TESORERIA COM; ;SPESE GESTIONE CONTO CORRENTE  POSTALE 15453301 SETTEMBRE 2023;03/10/2023;146;0;52;1;Spese correnti;3;Acquisto di beni e servizi;2;Acquisto di servizi;17;Servizi finanziari;999;Spese per servizi finanziari n.a.c.;09/10/2023
3142;1;9999999;4.223,64;4.223,64;ACCATRE SRL;Z883500BB1;SALDO Fatt.n. 1/230906  del 04/09/2023 CONVENZIONE PER I SERVIZI DEL SETTORE FINANZIARIO ANNO 2023;03/10/2023;748;0;124;1;Spese correnti;3;Acquisto di beni e servizi;2;Acquisto di servizi;19;Servizi informatici e di telecomunicazioni;7;Servizi di gestione documentale;09/10/2023
3143;1;9999999;488;488;VENICE AMBITEC SCARL;Z283C6BB0E;SALDO Fatt.n. 55/001  del 15/09/2023 VERIFICA STATICA VISIVA E STRUMENTALE SU PIOPPO BIANCO IN VIA DE GASPERI E SU 3 PLATANI IN VIA GAFFARELLO E VIA COGNARO;03/10/2023;2549;0;691;1;Spese correnti;3;Acquisto di beni e servizi;2;Acquisto di servizi;99;Altri servizi;9;Acquisto di sevizi per verde e arredo urbano;09/10/2023
3144;1;9999999;1.825,94;1.825,94;ARTEA  SNC DI LION & SALVIATO;90182921FD;SALDO Fatt.n. 21-2023/PA  del 15/09/2023 OPERAZIONI EFFETTUATE NEI CIMITERI DEL COMUNE DI SANTA MARIA DI SALA NEL MESE DI AGOSTO 2023;03/10/2023;4438;0;1152;1;Spese correnti;3;Acquisto di beni e servizi;2;Acquisto di servizi;9;Manutenzione ordinaria e riparazioni;8;Manutenzione ordinaria e riparazioni di beni immobili;09/10/2023
3145;1;9999999;1.586,00;1.586,00;MDE RESEARCH S.R.L.;ZC73B48D77;SALDO Fatt.n. 201  del 31/08/2023 MONITORAGGIO REMOTO IMPIANTI TECNOLOGICI;03/10/2023;7440;0;478;2;Spese in conto capitale;2;Investimenti fissi lordi e acquisto di terreni;1;Beni materiali;7;Hardware;4;Apparati di telecomunicazione;09/10/2023
3146;1;9999999;10.171,14;10.171,14;BOXXAPPS SRL;9782399308;SALDO Fatt.n. 1/230750  del 05/09/2023 PNRR - MISSIONE 1 COMPONENTE 1 - MISURA 1.3.1 - PIATTAFORMA DIGITALE NAZIONALE DATI -  SVILUPPO DI COMPONENTI A.P.I. SOFTWARE;03/10/2023;8600;0;401;2;Spese in conto capitale;2;Investimenti fissi lordi e acquisto di terreni;3;Beni immateriali;99;Spese di investimento per beni immateriali n.a.c.;1;Spese di investimento per beni immateriali n.a.c.;09/10/2023
3149;1;9999999;150;150;OMESSO NOMINATIVO NEL RISPETTO DELLA NORMATIVA SULLA PROTEZIONE DATI PERSONALI; ;OTTOBRE 2023 AFFIDO FAMILIARE;03/10/2023;3757;50;680;1;Spese correnti;4;Trasferimenti correnti;2;Trasferimenti correnti a Famiglie;2;Interventi assistenziali;999;Altri assegni e sussidi assistenziali;09/10/2023
3150;1;9999999;150;150;OMESSO NOMINATIVO NEL RISPETTO DELLA NORMATIVA SULLA PROTEZIONE DATI PERSONALI; ;OTTOBRE 2023 AFFIDO FAMILIARE;03/10/2023;3757;50;619;1;Spese correnti;4;Trasferimenti correnti;2;Trasferimenti correnti a Famiglie;2;Interventi assistenziali;999;Altri assegni e sussidi assistenziali;09/10/2023
3151;1;9999999;1.200,00;1.200,00;OMESSO NOMINATIVO NEL RISPETTO DELLA NORMATIVA SULLA PROTEZIONE DATI PERSONALI; ;CONTRIBUTO REGIONALE IMPEGNATIVA DI CURA DOMICILIARE ICD Mgs - 2 TRIMESTRE 2023 -;03/10/2023;3957;50;699;1;Spese correnti;4;Trasferimenti correnti;2;Trasferimenti correnti a Famiglie;2;Interventi assistenziali;999;Altri assegni e sussidi assistenziali;09/10/2023
3152;1;9999999;400;400;OMESSO NOMINATIVO NEL RISPETTO DELLA NORMATIVA SULLA PROTEZIONE DATI PERSONALI; ;CONTRIBUTO REGIONALE IMPEGNATIVA DI CURA DOMICILIARE ICD Mgs - 2 TRIMESTRE 2023 -;03/10/2023;3957;50;700;1;Spese correnti;4;Trasferimenti correnti;2;Trasferimenti correnti a Famiglie;2;Interventi assistenziali;999;Altri assegni e sussidi assistenziali;09/10/2023
3153;1;9999999;1.200,00;1.200,00;OMESSO NOMINATIVO NEL RISPETTO DELLA NORMATIVA SULLA PROTEZIONE DATI PERSONALI; ;CONTRIBUTO REGIONALE IMPEGNATIVA DI CURA DOMICILIARE ICD Mgs - 2 TRIMESTRE 2023 -;03/10/2023;3957;50;701;1;Spese correnti;4;Trasferimenti correnti;2;Trasferimenti correnti a Famiglie;2;Interventi assistenziali;999;Altri assegni e sussidi assistenziali;09/10/2023
3154;1;9999999;1.200,00;1.200,00;OMESSO NOMINATIVO NEL RISPETTO DELLA NORMATIVA SULLA PROTEZIONE DATI PERSONALI; ;CONTRIBUTO REGIONALE IMPEGNATIVA DI CURA DOMICILIARE ICD Mgs - 2 TRIMESTRE 2023 -;03/10/2023;3957;50;702;1;Spese correnti;4;Trasferimenti correnti;2;Trasferimenti correnti a Famiglie;2;Interventi assistenziali;999;Altri assegni e sussidi assistenziali;09/10/2023
3155;1;9999999;1.200,00;1.200,00;OMESSO NOMINATIVO NEL RISPETTO DELLA NORMATIVA SULLA PROTEZIONE DATI PERSONALI; ;CONTRIBUTO REGIONALE IMPEGNATIVA DI CURA DOMICILIARE ICD Mgs - 2 TRIMESTRE 2023 -;03/10/2023;3957;50;703;1;Spese correnti;4;Trasferimenti correnti;2;Trasferimenti correnti a Famiglie;2;Interventi assistenziali;999;Altri assegni e sussidi assistenziali;09/10/2023
3156;1;9999999;1.200,00;1.200,00;OMESSO NOMINATIVO NEL RISPETTO DELLA NORMATIVA SULLA PROTEZIONE DATI PERSONALI; ;CONTRIBUTO REGIONALE IMPEGNATIVA DI CURA DOMICILIARE ICD Mgs - 2 TRIMESTRE 2023 -;03/10/2023;3957;50;704;1;Spese correnti;4;Trasferimenti correnti;2;Trasferimenti correnti a Famiglie;2;Interventi assistenziali;999;Altri assegni e sussidi assistenziali;09/10/2023
3157;1;9999999;1.200,00;1.200,00;OMESSO NOMINATIVO NEL RISPETTO DELLA NORMATIVA SULLA PROTEZIONE DATI PERSONALI; ;CONTRIBUTO REGIONALE IMPEGNATIVA DI CURA DOMICILIARE ICD Mgs - 2 TRIMESTRE 2023 -;03/10/2023;3957;50;705;1;Spese correnti;4;Trasferimenti correnti;2;Trasferimenti correnti a Famiglie;2;Interventi assistenziali;999;Altri assegni e sussidi assistenziali;09/10/2023
3158;1;9999999;1.200,00;1.200,00;OMESSO NOMINATIVO NEL RISPETTO DELLA NORMATIVA SULLA PROTEZIONE DATI PERSONALI; ;CONTRIBUTO REGIONALE IMPEGNATIVA DI CURA DOMICILIARE ICD Mgs - 2 TRIMESTRE 2023 -;03/10/2023;3957;50;706;1;Spese correnti;4;Trasferimenti correnti;2;Trasferimenti correnti a Famiglie;2;Interventi assistenziali;999;Altri assegni e sussidi assistenziali;09/10/2023
3159;1;9999999;1.200,00;1.200,00;OMESSO NOMINATIVO NEL RISPETTO DELLA NORMATIVA SULLA PROTEZIONE DATI PERSONALI; ;CONTRIBUTO REGIONALE IMPEGNATIVA DI CURA DOMICILIARE ICD Mgs - 2 TRIMESTRE 2023 -;03/10/2023;3957;50;707;1;Spese correnti;4;Trasferimenti correnti;2;Trasferimenti correnti a Famiglie;2;Interventi assistenziali;999;Altri assegni e sussidi assistenziali;09/10/2023
3160;1;9999999;1.200,00;1.200,00;OMESSO NOMINATIVO NEL RISPETTO DELLA NORMATIVA SULLA PROTEZIONE DATI PERSONALI; ;CONTRIBUTO REGIONALE IMPEGNATIVA DI CURA DOMICILIARE ICD Mgs - 2 TRIMESTRE 2023 -;03/10/2023;3957;50;708;1;Spese correnti;4;Trasferimenti correnti;2;Trasferimenti correnti a Famiglie;2;Interventi assistenziali;999;Altri assegni e sussidi assistenziali;09/10/2023
3161;1;9999999;1.200,00;1.200,00;OMESSO NOMINATIVO NEL RISPETTO DELLA NORMATIVA SULLA PROTEZIONE DATI PERSONALI; ;CONTRIBUTO REGIONALE IMPEGNATIVA DI CURA DOMICILIARE ICD Mgs - 2 TRIMESTRE 2023 -;03/10/2023;3957;50;709;1;Spese correnti;4;Trasferimenti correnti;2;Trasferimenti correnti a Famiglie;2;Interventi assistenziali;999;Altri assegni e sussidi assistenziali;09/10/2023
3162;1;9999999;1.200,00;1.200,00;OMESSO NOMINATIVO NEL RISPETTO DELLA NORMATIVA SULLA PROTEZIONE DATI PERSONALI; ;CONTRIBUTO REGIONALE IMPEGNATIVA DI CURA DOMICILIARE ICD Mgs - 2 TRIMESTRE 2023 -;03/10/2023;3957;50;710;1;Spese correnti;4;Trasferimenti correnti;2;Trasferimenti correnti a Famiglie;2;Interventi assistenziali;999;Altri assegni e sussidi assistenziali;09/10/2023
3163;1;9999999;1.200,00;1.200,00;OMESSO NOMINATIVO NEL RISPETTO DELLA NORMATIVA SULLA PROTEZIONE DATI PERSONALI; ;CONTRIBUTO REGIONALE IMPEGNATIVA DI CURA DOMICILIARE ICD Mgs - 2 TRIMESTRE 2023 -;03/10/2023;3957;50;711;1;Spese correnti;4;Trasferimenti correnti;2;Trasferimenti correnti a Famiglie;2;Interventi assistenziali;999;Altri assegni e sussidi assistenziali;09/10/2023
3164;1;9999999;400;400;OMESSO NOMINATIVO NEL RISPETTO DELLA NORMATIVA SULLA PROTEZIONE DATI PERSONALI; ;CONTRIBUTO REGIONALE IMPEGNATIVA DI CURA DOMICILIARE ICD Mgs - 2 TRIMESTRE 2023 -;03/10/2023;3957;50;712;1;Spese correnti;4;Trasferimenti correnti;2;Trasferimenti correnti a Famiglie;2;Interventi assistenziali;999;Altri assegni e sussidi assistenziali;09/10/2023
3165;1;9999999;400;400;OMESSO NOMINATIVO NEL RISPETTO DELLA NORMATIVA SULLA PROTEZIONE DATI PERSONALI; ;CONTRIBUTO REGIONALE IMPEGNATIVA DI CURA DOMICILIARE ICD Mgs - 2 TRIMESTRE 2023 -;03/10/2023;3957;50;713;1;Spese correnti;4;Trasferimenti correnti;2;Trasferimenti correnti a Famiglie;2;Interventi assistenziali;999;Altri assegni e sussidi assistenziali;09/10/2023
3166;1;9999999;1.200,00;1.200,00;OMESSO NOMINATIVO NEL RISPETTO DELLA NORMATIVA SULLA PROTEZIONE DATI PERSONALI; ;CONTRIBUTO REGIONALE IMPEGNATIVA DI CURA DOMICILIARE ICD Mgs - 2 TRIMESTRE 2023 -;03/10/2023;3957;50;714;1;Spese correnti;4;Trasferimenti correnti;2;Trasferimenti correnti a Famiglie;2;Interventi assistenziali;999;Altri assegni e sussidi assistenziali;09/10/2023
3167;1;9999999;1.200,00;1.200,00;OMESSO NOMINATIVO NEL RISPETTO DELLA NORMATIVA SULLA PROTEZIONE DATI PERSONALI; ;CONTRIBUTO REGIONALE IMPEGNATIVA DI CURA DOMICILIARE ICD Mgs - 2 TRIMESTRE 2023 -;03/10/2023;3957;50;716;1;Spese correnti;4;Trasferimenti correnti;2;Trasferimenti correnti a Famiglie;2;Interventi assistenziali;999;Altri assegni e sussidi assistenziali;09/10/2023
3168;1;9999999;720;720;OMESSO NOMINATIVO NEL RISPETTO DELLA NORMATIVA SULLA PROTEZIONE DATI PERSONALI; ;CONTRIBUTO REGIONALE IMPEGNATIVA DI CURA DOMICILIARE ICD B - 1 SEMESTRE 2023;03/10/2023;3957;50;721;1;Spese correnti;4;Trasferimenti correnti;2;Trasferimenti correnti a Famiglie;2;Interventi assistenziali;999;Altri assegni e sussidi assistenziali;09/10/2023
3169;1;9999999;720;720;OMESSO NOMINATIVO NEL RISPETTO DELLA NORMATIVA SULLA PROTEZIONE DATI PERSONALI; ;CONTRIBUTO REGIONALE IMPEGNATIVA DI CURA DOMICILIARE ICD B - 1 SEMESTRE 2023;03/10/2023;3957;50;722;1;Spese correnti;4;Trasferimenti correnti;2;Trasferimenti correnti a Famiglie;2;Interventi assistenziali;999;Altri assegni e sussidi assistenziali;09/10/2023
3170;1;9999999;720;720;OMESSO NOMINATIVO NEL RISPETTO DELLA NORMATIVA SULLA PROTEZIONE DATI PERSONALI; ;CONTRIBUTO REGIONALE IMPEGNATIVA DI CURA DOMICILIARE ICD B - 1 SEMESTRE 2023;03/10/2023;3957;50;723;1;Spese correnti;4;Trasferimenti correnti;2;Trasferimenti correnti a Famiglie;2;Interventi assistenziali;999;Altri assegni e sussidi assistenziali;09/10/2023
3171;1;9999999;720;720;OMESSO NOMINATIVO NEL RISPETTO DELLA NORMATIVA SULLA PROTEZIONE DATI PERSONALI; ;CONTRIBUTO REGIONALE IMPEGNATIVA DI CURA DOMICILIARE ICD B - 1 SEMESTRE 2023;03/10/2023;3957;50;724;1;Spese correnti;4;Trasferimenti correnti;2;Trasferimenti correnti a Famiglie;2;Interventi assistenziali;999;Altri assegni e sussidi assistenziali;09/10/2023
3172;1;9999999;720;720;OMESSO NOMINATIVO NEL RISPETTO DELLA NORMATIVA SULLA PROTEZIONE DATI PERSONALI; ;CONTRIBUTO REGIONALE IMPEGNATIVA DI CURA DOMICILIARE ICD B - 1 SEMESTRE 2023;03/10/2023;3957;50;725;1;Spese correnti;4;Trasferimenti correnti;2;Trasferimenti correnti a Famiglie;2;Interventi assistenziali;999;Altri assegni e sussidi assistenziali;09/10/2023
3173;1;9999999;720;720;OMESSO NOMINATIVO NEL RISPETTO DELLA NORMATIVA SULLA PROTEZIONE DATI PERSONALI; ;CONTRIBUTO REGIONALE IMPEGNATIVA DI CURA DOMICILIARE ICD B - 1 SEMESTRE 2023;03/10/2023;3957;50;726;1;Spese correnti;4;Trasferimenti correnti;2;Trasferimenti correnti a Famiglie;2;Interventi assistenziali;999;Altri assegni e sussidi assistenziali;09/10/2023
3174;1;9999999;120;120;OMESSO NOMINATIVO NEL RISPETTO DELLA NORMATIVA SULLA PROTEZIONE DATI PERSONALI; ;CONTRIBUTO REGIONALE IMPEGNATIVA DI CURA DOMICILIARE ICD B - 1 SEMESTRE 2023;03/10/2023;3957;50;727;1;Spese correnti;4;Trasferimenti correnti;2;Trasferimenti correnti a Famiglie;2;Interventi assistenziali;999;Altri assegni e sussidi assistenziali;09/10/2023
3175;1;9999999;720;720;OMESSO NOMINATIVO NEL RISPETTO DELLA NORMATIVA SULLA PROTEZIONE DATI PERSONALI; ;CONTRIBUTO REGIONALE IMPEGNATIVA DI CURA DOMICILIARE ICD B - 1 SEMESTRE 2023;03/10/2023;3957;50;729;1;Spese correnti;4;Trasferimenti correnti;2;Trasferimenti correnti a Famiglie;2;Interventi assistenziali;999;Altri assegni e sussidi assistenziali;09/10/2023
3176;1;9999999;720;720;OMESSO NOMINATIVO NEL RISPETTO DELLA NORMATIVA SULLA PROTEZIONE DATI PERSONALI; ;CONTRIBUTO REGIONALE IMPEGNATIVA DI CURA DOMICILIARE ICD B - 1 SEMESTRE 2023;03/10/2023;3957;50;730;1;Spese correnti;4;Trasferimenti correnti;2;Trasferimenti correnti a Famiglie;2;Interventi assistenziali;999;Altri assegni e sussidi assistenziali;13/10/2023
3177;1;9999999;720;720;OMESSO NOMINATIVO NEL RISPETTO DELLA NORMATIVA SULLA PROTEZIONE DATI PERSONALI; ;CONTRIBUTO REGIONALE IMPEGNATIVA DI CURA DOMICILIARE ICD B - 1 SEMESTRE 2023;03/10/2023;3957;50;731;1;Spese correnti;4;Trasferimenti correnti;2;Trasferimenti correnti a Famiglie;2;Interventi assistenziali;999;Altri assegni e sussidi assistenziali;09/10/2023
3178;1;9999999;720;720;OMESSO NOMINATIVO NEL RISPETTO DELLA NORMATIVA SULLA PROTEZIONE DATI PERSONALI; ;CONTRIBUTO REGIONALE IMPEGNATIVA DI CURA DOMICILIARE ICD B - 1 SEMESTRE 2023;03/10/2023;3957;50;732;1;Spese correnti;4;Trasferimenti correnti;2;Trasferimenti correnti a Famiglie;2;Interventi assistenziali;999;Altri assegni e sussidi assistenziali;09/10/2023
3179;1;9999999;360;360;OMESSO NOMINATIVO NEL RISPETTO DELLA NORMATIVA SULLA PROTEZIONE DATI PERSONALI; ;CONTRIBUTO REGIONALE IMPEGNATIVA DI CURA DOMICILIARE ICD B - 1 SEMESTRE 2023;03/10/2023;3957;50;733;1;Spese correnti;4;Trasferimenti correnti;2;Trasferimenti correnti a Famiglie;2;Interventi assistenziali;999;Altri assegni e sussidi assistenziali;09/10/2023
3180;1;9999999;120;120;OMESSO NOMINATIVO NEL RISPETTO DELLA NORMATIVA SULLA PROTEZIONE DATI PERSONALI; ;CONTRIBUTO REGIONALE IMPEGNATIVA DI CURA DOMICILIARE ICD B - 1 SEMESTRE 2023;03/10/2023;3957;50;734;1;Spese correnti;4;Trasferimenti correnti;2;Trasferimenti correnti a Famiglie;2;Interventi assistenziali;999;Altri assegni e sussidi assistenziali;09/10/2023
3181;1;9999999;600;600;OMESSO NOMINATIVO NEL RISPETTO DELLA NORMATIVA SULLA PROTEZIONE DATI PERSONALI; ;CONTRIBUTO REGIONALE IMPEGNATIVA DI CURA DOMICILIARE ICD B - 1 SEMESTRE 2023;03/10/2023;3957;50;735;1;Spese correnti;4;Trasferimenti correnti;2;Trasferimenti correnti a Famiglie;2;Interventi assistenziali;999;Altri assegni e sussidi assistenziali;09/10/2023
3182;1;9999999;720;720;OMESSO NOMINATIVO NEL RISPETTO DELLA NORMATIVA SULLA PROTEZIONE DATI PERSONALI; ;CONTRIBUTO REGIONALE IMPEGNATIVA DI CURA DOMICILIARE ICD B - 1 SEMESTRE 2023;03/10/2023;3957;50;736;1;Spese correnti;4;Trasferimenti correnti;2;Trasferimenti correnti a Famiglie;2;Interventi assistenziali;999;Altri assegni e sussidi assistenziali;09/10/2023
3183;1;9999999;480;480;OMESSO NOMINATIVO NEL RISPETTO DELLA NORMATIVA SULLA PROTEZIONE DATI PERSONALI; ;CONTRIBUTO REGIONALE IMPEGNATIVA DI CURA DOMICILIARE ICD B - 1 SEMESTRE 2023;03/10/2023;3957;50;737;1;Spese correnti;4;Trasferimenti correnti;2;Trasferimenti correnti a Famiglie;2;Interventi assistenziali;999;Altri assegni e sussidi assistenziali;09/10/2023
3184;1;9999999;720;720;OMESSO NOMINATIVO NEL RISPETTO DELLA NORMATIVA SULLA PROTEZIONE DATI PERSONALI; ;CONTRIBUTO REGIONALE IMPEGNATIVA DI CURA DOMICILIARE ICD B - 1 SEMESTRE 2023;03/10/2023;3957;50;738;1;Spese correnti;4;Trasferimenti correnti;2;Trasferimenti correnti a Famiglie;2;Interventi assistenziali;999;Altri assegni e sussidi assistenziali;09/10/2023
3185;1;9999999;360;360;OMESSO NOMINATIVO NEL RISPETTO DELLA NORMATIVA SULLA PROTEZIONE DATI PERSONALI; ;CONTRIBUTO REGIONALE IMPEGNATIVA DI CURA DOMICILIARE ICD B - 1 SEMESTRE 2023;03/10/2023;3957;50;739;1;Spese correnti;4;Trasferimenti correnti;2;Trasferimenti correnti a Famiglie;2;Interventi assistenziali;999;Altri assegni e sussidi assistenziali;09/10/2023
3186;1;9999999;720;720;OMESSO NOMINATIVO NEL RISPETTO DELLA NORMATIVA SULLA PROTEZIONE DATI PERSONALI; ;CONTRIBUTO REGIONALE IMPEGNATIVA DI CURA DOMICILIARE ICD B - 1 SEMESTRE 2023;03/10/2023;3957;50;740;1;Spese correnti;4;Trasferimenti correnti;2;Trasferimenti correnti a Famiglie;2;Interventi assistenziali;999;Altri assegni e sussidi assistenziali;09/10/2023
3187;1;9999999;720;720;OMESSO NOMINATIVO NEL RISPETTO DELLA NORMATIVA SULLA PROTEZIONE DATI PERSONALI; ;CONTRIBUTO REGIONALE IMPEGNATIVA DI CURA DOMICILIARE ICD B - 1 SEMESTRE 2023;03/10/2023;3957;50;741;1;Spese correnti;4;Trasferimenti correnti;2;Trasferimenti correnti a Famiglie;2;Interventi assistenziali;999;Altri assegni e sussidi assistenziali;09/10/2023
3188;1;9999999;720;720;OMESSO NOMINATIVO NEL RISPETTO DELLA NORMATIVA SULLA PROTEZIONE DATI PERSONALI; ;CONTRIBUTO REGIONALE IMPEGNATIVA DI CURA DOMICILIARE ICD B - 1 SEMESTRE 2023;03/10/2023;3957;50;742;1;Spese correnti;4;Trasferimenti correnti;2;Trasferimenti correnti a Famiglie;2;Interventi assistenziali;999;Altri assegni e sussidi assistenziali;09/10/2023
3189;1;9999999;360;360;OMESSO NOMINATIVO NEL RISPETTO DELLA NORMATIVA SULLA PROTEZIONE DATI PERSONALI; ;CONTRIBUTO REGIONALE IMPEGNATIVA DI CURA DOMICILIARE ICD B - 1 SEMESTRE 2023;03/10/2023;3957;50;743;1;Spese correnti;4;Trasferimenti correnti;2;Trasferimenti correnti a Famiglie;2;Interventi assistenziali;999;Altri assegni e sussidi assistenziali;09/10/2023
3190;1;9999999;720;720;OMESSO NOMINATIVO NEL RISPETTO DELLA NORMATIVA SULLA PROTEZIONE DATI PERSONALI; ;CONTRIBUTO REGIONALE IMPEGNATIVA DI CURA DOMICILIARE ICD B - 1 SEMESTRE 2023;03/10/2023;3957;50;744;1;Spese correnti;4;Trasferimenti correnti;2;Trasferimenti correnti a Famiglie;2;Interventi assistenziali;999;Altri assegni e sussidi assistenziali;09/10/2023
3191;1;9999999;720;720;OMESSO NOMINATIVO NEL RISPETTO DELLA NORMATIVA SULLA PROTEZIONE DATI PERSONALI; ;CONTRIBUTO REGIONALE IMPEGNATIVA DI CURA DOMICILIARE ICD B - 1 SEMESTRE 2023;03/10/2023;3957;50;745;1;Spese correnti;4;Trasferimenti correnti;2;Trasferimenti correnti a Famiglie;2;Interventi assistenziali;999;Altri assegni e sussidi assistenziali;09/10/2023
3192;1;9999999;720;720;OMESSO NOMINATIVO NEL RISPETTO DELLA NORMATIVA SULLA PROTEZIONE DATI PERSONALI; ;CONTRIBUTO REGIONALE IMPEGNATIVA DI CURA DOMICILIARE ICD B - 1 SEMESTRE 2023;03/10/2023;3957;50;746;1;Spese correnti;4;Trasferimenti correnti;2;Trasferimenti correnti a Famiglie;2;Interventi assistenziali;999;Altri assegni e sussidi assistenziali;09/10/2023
3193;1;9999999;720;720;OMESSO NOMINATIVO NEL RISPETTO DELLA NORMATIVA SULLA PROTEZIONE DATI PERSONALI; ;CONTRIBUTO REGIONALE IMPEGNATIVA DI CURA DOMICILIARE ICD B - 1 SEMESTRE 2023;03/10/2023;3957;50;747;1;Spese correnti;4;Trasferimenti correnti;2;Trasferimenti correnti a Famiglie;2;Interventi assistenziali;999;Altri assegni e sussidi assistenziali;09/10/2023
3194;1;9999999;240;240;OMESSO NOMINATIVO NEL RISPETTO DELLA NORMATIVA SULLA PROTEZIONE DATI PERSONALI; ;CONTRIBUTO REGIONALE IMPEGNATIVA DI CURA DOMICILIARE ICD B - 1 SEMESTRE 2023;03/10/2023;3957;50;748;1;Spese correnti;4;Trasferimenti correnti;2;Trasferimenti correnti a Famiglie;2;Interventi assistenziali;999;Altri assegni e sussidi assistenziali;09/10/2023
3195;1;9999999;120;120;OMESSO NOMINATIVO NEL RISPETTO DELLA NORMATIVA SULLA PROTEZIONE DATI PERSONALI; ;CONTRIBUTO REGIONALE IMPEGNATIVA DI CURA DOMICILIARE ICD B - 1 SEMESTRE 2023;03/10/2023;3957;50;749;1;Spese correnti;4;Trasferimenti correnti;2;Trasferimenti correnti a Famiglie;2;Interventi assistenziali;999;Altri assegni e sussidi assistenziali;09/10/2023
3196;1;9999999;120;120;OMESSO NOMINATIVO NEL RISPETTO DELLA NORMATIVA SULLA PROTEZIONE DATI PERSONALI; ;CONTRIBUTO REGIONALE IMPEGNATIVA DI CURA DOMICILIARE ICD B - 1 SEMESTRE 2023;03/10/2023;3957;50;786;1;Spese correnti;4;Trasferimenti correnti;2;Trasferimenti correnti a Famiglie;2;Interventi assistenziali;999;Altri assegni e sussidi assistenziali;09/10/2023
3197;1;9999999;120;120;OMESSO NOMINATIVO NEL RISPETTO DELLA NORMATIVA SULLA PROTEZIONE DATI PERSONALI; ;CONTRIBUTO REGIONALE IMPEGNATIVA DI CURA DOMICILIARE ICD B - 1 SEMESTRE 2023;03/10/2023;3957;50;750;1;Spese correnti;4;Trasferimenti correnti;2;Trasferimenti correnti a Famiglie;2;Interventi assistenziali;999;Altri assegni e sussidi assistenziali;09/10/2023
3198;1;9999999;720;720;OMESSO NOMINATIVO NEL RISPETTO DELLA NORMATIVA SULLA PROTEZIONE DATI PERSONALI; ;CONTRIBUTO REGIONALE IMPEGNATIVA DI CURA DOMICILIARE ICD B - 1 SEMESTRE 2023;03/10/2023;3957;50;751;1;Spese correnti;4;Trasferimenti correnti;2;Trasferimenti correnti a Famiglie;2;Interventi assistenziali;999;Altri assegni e sussidi assistenziali;09/10/2023
3199;1;9999999;240;240;OMESSO NOMINATIVO NEL RISPETTO DELLA NORMATIVA SULLA PROTEZIONE DATI PERSONALI; ;CONTRIBUTO REGIONALE IMPEGNATIVA DI CURA DOMICILIARE ICD B - 1 SEMESTRE 2023;03/10/2023;3957;50;752;1;Spese correnti;4;Trasferimenti correnti;2;Trasferimenti correnti a Famiglie;2;Interventi assistenziali;999;Altri assegni e sussidi assistenziali;09/10/2023
3200;1;9999999;720;720;OMESSO NOMINATIVO NEL RISPETTO DELLA NORMATIVA SULLA PROTEZIONE DATI PERSONALI; ;CONTRIBUTO REGIONALE IMPEGNATIVA DI CURA DOMICILIARE ICD B - 1 SEMESTRE 2023;03/10/2023;3957;50;753;1;Spese correnti;4;Trasferimenti correnti;2;Trasferimenti correnti a Famiglie;2;Interventi assistenziali;999;Altri assegni e sussidi assistenziali;09/10/2023
3201;1;9999999;720;720;OMESSO NOMINATIVO NEL RISPETTO DELLA NORMATIVA SULLA PROTEZIONE DATI PERSONALI; ;CONTRIBUTO REGIONALE IMPEGNATIVA DI CURA DOMICILIARE ICD B - 1 SEMESTRE 2023;03/10/2023;3957;50;754;1;Spese correnti;4;Trasferimenti correnti;2;Trasferimenti correnti a Famiglie;2;Interventi assistenziali;999;Altri assegni e sussidi assistenziali;09/10/2023
3202;1;9999999;720;720;OMESSO NOMINATIVO NEL RISPETTO DELLA NORMATIVA SULLA PROTEZIONE DATI PERSONALI; ;CONTRIBUTO REGIONALE IMPEGNATIVA DI CURA DOMICILIARE ICD B - 1 SEMESTRE 2023;03/10/2023;3957;50;755;1;Spese correnti;4;Trasferimenti correnti;2;Trasferimenti correnti a Famiglie;2;Interventi assistenziali;999;Altri assegni e sussidi assistenziali;09/10/2023
3203;1;9999999;480;480;OMESSO NOMINATIVO NEL RISPETTO DELLA NORMATIVA SULLA PROTEZIONE DATI PERSONALI; ;CONTRIBUTO REGIONALE IMPEGNATIVA DI CURA DOMICILIARE ICD B - 1 SEMESTRE 2023;03/10/2023;3957;50;756;1;Spese correnti;4;Trasferimenti correnti;2;Trasferimenti correnti a Famiglie;2;Interventi assistenziali;999;Altri assegni e sussidi assistenziali;09/10/2023
3204;1;9999999;120;120;OMESSO NOMINATIVO NEL RISPETTO DELLA NORMATIVA SULLA PROTEZIONE DATI PERSONALI; ;CONTRIBUTO REGIONALE IMPEGNATIVA DI CURA DOMICILIARE ICD B - 1 SEMESTRE 2023;03/10/2023;3957;50;757;1;Spese correnti;4;Trasferimenti correnti;2;Trasferimenti correnti a Famiglie;2;Interventi assistenziali;999;Altri assegni e sussidi assistenziali;09/10/2023
3205;1;9999999;360;360;OMESSO NOMINATIVO NEL RISPETTO DELLA NORMATIVA SULLA PROTEZIONE DATI PERSONALI; ;CONTRIBUTO REGIONALE IMPEGNATIVA DI CURA DOMICILIARE ICD B - 1 SEMESTRE 2023;03/10/2023;3957;50;758;1;Spese correnti;4;Trasferimenti correnti;2;Trasferimenti correnti a Famiglie;2;Interventi assistenziali;999;Altri assegni e sussidi assistenziali;09/10/2023
3206;1;9999999;720;720;OMESSO NOMINATIVO NEL RISPETTO DELLA NORMATIVA SULLA PROTEZIONE DATI PERSONALI; ;CONTRIBUTO REGIONALE IMPEGNATIVA DI CURA DOMICILIARE ICD B - 1 SEMESTRE 2023;03/10/2023;3957;50;759;1;Spese correnti;4;Trasferimenti correnti;2;Trasferimenti correnti a Famiglie;2;Interventi assistenziali;999;Altri assegni e sussidi assistenziali;09/10/2023
3207;1;9999999;720;720;OMESSO NOMINATIVO NEL RISPETTO DELLA NORMATIVA SULLA PROTEZIONE DATI PERSONALI; ;CONTRIBUTO REGIONALE IMPEGNATIVA DI CURA DOMICILIARE ICD B - 1 SEMESTRE 2023;03/10/2023;3957;50;760;1;Spese correnti;4;Trasferimenti correnti;2;Trasferimenti correnti a Famiglie;2;Interventi assistenziali;999;Altri assegni e sussidi assistenziali;09/10/2023
3208;1;9999999;720;720;OMESSO NOMINATIVO NEL RISPETTO DELLA NORMATIVA SULLA PROTEZIONE DATI PERSONALI; ;CONTRIBUTO REGIONALE IMPEGNATIVA DI CURA DOMICILIARE ICD B - 1 SEMESTRE 2023;03/10/2023;3957;50;761;1;Spese correnti;4;Trasferimenti correnti;2;Trasferimenti correnti a Famiglie;2;Interventi assistenziali;999;Altri assegni e sussidi assistenziali;09/10/2023
3209;1;9999999;720;720;OMESSO NOMINATIVO NEL RISPETTO DELLA NORMATIVA SULLA PROTEZIONE DATI PERSONALI; ;CONTRIBUTO REGIONALE IMPEGNATIVA DI CURA DOMICILIARE ICD B - 1 SEMESTRE 2023;03/10/2023;3957;50;762;1;Spese correnti;4;Trasferimenti correnti;2;Trasferimenti correnti a Famiglie;2;Interventi assistenziali;999;Altri assegni e sussidi assistenziali;17/10/2023
3210;1;9999999;720;720;OMESSO NOMINATIVO NEL RISPETTO DELLA NORMATIVA SULLA PROTEZIONE DATI PERSONALI; ;CONTRIBUTO REGIONALE IMPEGNATIVA DI CURA DOMICILIARE ICD B - 1 SEMESTRE 2023;03/10/2023;3957;50;763;1;Spese correnti;4;Trasferimenti correnti;2;Trasferimenti correnti a Famiglie;2;Interventi assistenziali;999;Altri assegni e sussidi assistenziali;09/10/2023
3211;1;9999999;720;720;OMESSO NOMINATIVO NEL RISPETTO DELLA NORMATIVA SULLA PROTEZIONE DATI PERSONALI; ;CONTRIBUTO REGIONALE IMPEGNATIVA DI CURA DOMICILIARE ICD B - 1 SEMESTRE 2023;03/10/2023;3957;50;764;1;Spese correnti;4;Trasferimenti correnti;2;Trasferimenti correnti a Famiglie;2;Interventi assistenziali;999;Altri assegni e sussidi assistenziali;09/10/2023
3212;1;9999999;360;360;OMESSO NOMINATIVO NEL RISPETTO DELLA NORMATIVA SULLA PROTEZIONE DATI PERSONALI; ;CONTRIBUTO REGIONALE IMPEGNATIVA DI CURA DOMICILIARE ICD B - 1 SEMESTRE 2023;03/10/2023;3957;50;765;1;Spese correnti;4;Trasferimenti correnti;2;Trasferimenti correnti a Famiglie;2;Interventi assistenziali;999;Altri assegni e sussidi assistenziali;13/10/2023
3213;1;9999999;240;240;OMESSO NOMINATIVO NEL RISPETTO DELLA NORMATIVA SULLA PROTEZIONE DATI PERSONALI; ;CONTRIBUTO REGIONALE IMPEGNATIVA DI CURA DOMICILIARE ICD B - 1 SEMESTRE 2023;03/10/2023;3957;50;766;1;Spese correnti;4;Trasferimenti correnti;2;Trasferimenti correnti a Famiglie;2;Interventi assistenziali;999;Altri assegni e sussidi assistenziali;09/10/2023
3214;1;9999999;720;720;OMESSO NOMINATIVO NEL RISPETTO DELLA NORMATIVA SULLA PROTEZIONE DATI PERSONALI; ;CONTRIBUTO REGIONALE IMPEGNATIVA DI CURA DOMICILIARE ICD B - 1 SEMESTRE 2023;03/10/2023;3957;50;767;1;Spese correnti;4;Trasferimenti correnti;2;Trasferimenti correnti a Famiglie;2;Interventi assistenziali;999;Altri assegni e sussidi assistenziali;09/10/2023
3215;1;9999999;600;600;OMESSO NOMINATIVO NEL RISPETTO DELLA NORMATIVA SULLA PROTEZIONE DATI PERSONALI; ;CONTRIBUTO REGIONALE IMPEGNATIVA DI CURA DOMICILIARE ICD B - 1 SEMESTRE 2023;03/10/2023;3957;50;768;1;Spese correnti;4;Trasferimenti correnti;2;Trasferimenti correnti a Famiglie;2;Interventi assistenziali;999;Altri assegni e sussidi assistenziali;09/10/2023
3216;1;9999999;720;720;OMESSO NOMINATIVO NEL RISPETTO DELLA NORMATIVA SULLA PROTEZIONE DATI PERSONALI; ;CONTRIBUTO REGIONALE IMPEGNATIVA DI CURA DOMICILIARE ICD B - 1 SEMESTRE 2023;03/10/2023;3957;50;769;1;Spese correnti;4;Trasferimenti correnti;2;Trasferimenti correnti a Famiglie;2;Interventi assistenziali;999;Altri assegni e sussidi assistenziali;09/10/2023
3217;1;9999999;720;720;OMESSO NOMINATIVO NEL RISPETTO DELLA NORMATIVA SULLA PROTEZIONE DATI PERSONALI; ;CONTRIBUTO REGIONALE IMPEGNATIVA DI CURA DOMICILIARE ICD B - 1 SEMESTRE 2023;03/10/2023;3957;50;770;1;Spese correnti;4;Trasferimenti correnti;2;Trasferimenti correnti a Famiglie;2;Interventi assistenziali;999;Altri assegni e sussidi assistenziali;09/10/2023
3218;1;9999999;240;240;OMESSO NOMINATIVO NEL RISPETTO DELLA NORMATIVA SULLA PROTEZIONE DATI PERSONALI; ;CONTRIBUTO REGIONALE IMPEGNATIVA DI CURA DOMICILIARE ICD B - 1 SEMESTRE 2023;03/10/2023;3957;50;771;1;Spese correnti;4;Trasferimenti correnti;2;Trasferimenti correnti a Famiglie;2;Interventi assistenziali;999;Altri assegni e sussidi assistenziali;09/10/2023
3219;1;9999999;720;720;OMESSO NOMINATIVO NEL RISPETTO DELLA NORMATIVA SULLA PROTEZIONE DATI PERSONALI; ;CONTRIBUTO REGIONALE IMPEGNATIVA DI CURA DOMICILIARE ICD B - 1 SEMESTRE 2023;03/10/2023;3957;50;772;1;Spese correnti;4;Trasferimenti correnti;2;Trasferimenti correnti a Famiglie;2;Interventi assistenziali;999;Altri assegni e sussidi assistenziali;09/10/2023
3220;1;9999999;720;720;OMESSO NOMINATIVO NEL RISPETTO DELLA NORMATIVA SULLA PROTEZIONE DATI PERSONALI; ;CONTRIBUTO REGIONALE IMPEGNATIVA DI CURA DOMICILIARE ICD B - 1 SEMESTRE 2023;03/10/2023;3957;50;773;1;Spese correnti;4;Trasferimenti correnti;2;Trasferimenti correnti a Famiglie;2;Interventi assistenziali;999;Altri assegni e sussidi assistenziali;09/10/2023
3221;1;9999999;720;720;OMESSO NOMINATIVO NEL RISPETTO DELLA NORMATIVA SULLA PROTEZIONE DATI PERSONALI; ;CONTRIBUTO REGIONALE IMPEGNATIVA DI CURA DOMICILIARE ICD B - 1 SEMESTRE 2023;03/10/2023;3957;50;774;1;Spese correnti;4;Trasferimenti correnti;2;Trasferimenti correnti a Famiglie;2;Interventi assistenziali;999;Altri assegni e sussidi assistenziali;09/10/2023
3222;1;9999999;720;720;OMESSO NOMINATIVO NEL RISPETTO DELLA NORMATIVA SULLA PROTEZIONE DATI PERSONALI; ;CONTRIBUTO REGIONALE IMPEGNATIVA DI CURA DOMICILIARE ICD B - 1 SEMESTRE 2023;03/10/2023;3957;50;775;1;Spese correnti;4;Trasferimenti correnti;2;Trasferimenti correnti a Famiglie;2;Interventi assistenziali;999;Altri assegni e sussidi assistenziali;09/10/2023
3223;1;9999999;720;720;OMESSO NOMINATIVO NEL RISPETTO DELLA NORMATIVA SULLA PROTEZIONE DATI PERSONALI; ;CONTRIBUTO REGIONALE IMPEGNATIVA DI CURA DOMICILIARE ICD B - 1 SEMESTRE 2023;03/10/2023;3957;50;776;1;Spese correnti;4;Trasferimenti correnti;2;Trasferimenti correnti a Famiglie;2;Interventi assistenziali;999;Altri assegni e sussidi assistenziali;09/10/2023
3224;1;9999999;600;600;OMESSO NOMINATIVO NEL RISPETTO DELLA NORMATIVA SULLA PROTEZIONE DATI PERSONALI; ;CONTRIBUTO REGIONALE IMPEGNATIVA DI CURA DOMICILIARE ICD B - 1 SEMESTRE 2023;03/10/2023;3957;50;778;1;Spese correnti;4;Trasferimenti correnti;2;Trasferimenti correnti a Famiglie;2;Interventi assistenziali;999;Altri assegni e sussidi assistenziali;09/10/2023
3225;1;9999999;720;720;OMESSO NOMINATIVO NEL RISPETTO DELLA NORMATIVA SULLA PROTEZIONE DATI PERSONALI; ;CONTRIBUTO REGIONALE IMPEGNATIVA DI CURA DOMICILIARE ICD B - 1 SEMESTRE 2023;03/10/2023;3957;50;779;1;Spese correnti;4;Trasferimenti correnti;2;Trasferimenti correnti a Famiglie;2;Interventi assistenziali;999;Altri assegni e sussidi assistenziali;09/10/2023
3226;1;9999999;480;480;OMESSO NOMINATIVO NEL RISPETTO DELLA NORMATIVA SULLA PROTEZIONE DATI PERSONALI; ;CONTRIBUTO REGIONALE IMPEGNATIVA DI CURA DOMICILIARE ICD B - 1 SEMESTRE 2023;03/10/2023;3957;50;780;1;Spese correnti;4;Trasferimenti correnti;2;Trasferimenti correnti a Famiglie;2;Interventi assistenziali;999;Altri assegni e sussidi assistenziali;09/10/2023
3227;1;9999999;600;600;OMESSO NOMINATIVO NEL RISPETTO DELLA NORMATIVA SULLA PROTEZIONE DATI PERSONALI; ;CONTRIBUTO REGIONALE IMPEGNATIVA DI CURA DOMICILIARE ICD B - 1 SEMESTRE 2023;03/10/2023;3957;50;781;1;Spese correnti;4;Trasferimenti correnti;2;Trasferimenti correnti a Famiglie;2;Interventi assistenziali;999;Altri assegni e sussidi assistenziali;09/10/2023
3228;1;9999999;720;720;OMESSO NOMINATIVO NEL RISPETTO DELLA NORMATIVA SULLA PROTEZIONE DATI PERSONALI; ;CONTRIBUTO REGIONALE IMPEGNATIVA DI CURA DOMICILIARE ICD B - 1 SEMESTRE 2023;03/10/2023;3957;50;782;1;Spese correnti;4;Trasferimenti correnti;2;Trasferimenti correnti a Famiglie;2;Interventi assistenziali;999;Altri assegni e sussidi assistenziali;13/10/2023
3229;1;9999999;720;720;OMESSO NOMINATIVO NEL RISPETTO DELLA NORMATIVA SULLA PROTEZIONE DATI PERSONALI; ;CONTRIBUTO REGIONALE IMPEGNATIVA DI CURA DOMICILIARE ICD B - 1 SEMESTRE 2023;03/10/2023;3957;50;783;1;Spese correnti;4;Trasferimenti correnti;2;Trasferimenti correnti a Famiglie;2;Interventi assistenziali;999;Altri assegni e sussidi assistenziali;09/10/2023
3230;1;9999999;720;720;OMESSO NOMINATIVO NEL RISPETTO DELLA NORMATIVA SULLA PROTEZIONE DATI PERSONALI; ;CONTRIBUTO REGIONALE IMPEGNATIVA DI CURA DOMICILIARE ICD B - 1 SEMESTRE 2023;03/10/2023;3957;50;784;1;Spese correnti;4;Trasferimenti correnti;2;Trasferimenti correnti a Famiglie;2;Interventi assistenziali;999;Altri assegni e sussidi assistenziali;09/10/2023
3231;1;9999999;720;720;OMESSO NOMINATIVO NEL RISPETTO DELLA NORMATIVA SULLA PROTEZIONE DATI PERSONALI; ;CONTRIBUTO REGIONALE IMPEGNATIVA DI CURA DOMICILIARE ICD B - 1 SEMESTRE 2023;04/10/2023;3957;50;777;1;Spese correnti;4;Trasferimenti correnti;2;Trasferimenti correnti a Famiglie;2;Interventi assistenziali;999;Altri assegni e sussidi assistenziali;09/10/2023
3232;1;9999999;1.200,00;1.200,00;OMESSO NOMINATIVO NEL RISPETTO DELLA NORMATIVA SULLA PROTEZIONE DATI PERSONALI; ;CONTRIBUTO REGIONALE IMPEGNATIVA DI CURA DOMICILIARE 2 TRIMESTRE 2023 -;04/10/2023;3957;50;717;1;Spese correnti;4;Trasferimenti correnti;2;Trasferimenti correnti a Famiglie;2;Interventi assistenziali;999;Altri assegni e sussidi assistenziali;09/10/2023
3233;1;9999999;1.200,00;1.200,00;OMESSO NOMINATIVO NEL RISPETTO DELLA NORMATIVA SULLA PROTEZIONE DATI PERSONALI; ;CONTRIBUTO REGIONALE IMPEGNATIVA DI CURA DOMICILIARE 2 TRIMESTRE 2023 -;04/10/2023;3957;50;718;1;Spese correnti;4;Trasferimenti correnti;2;Trasferimenti correnti a Famiglie;2;Interventi assistenziali;999;Altri assegni e sussidi assistenziali;09/10/2023
3234;1;9999999;1.200,00;1.200,00;OMESSO NOMINATIVO NEL RISPETTO DELLA NORMATIVA SULLA PROTEZIONE DATI PERSONALI; ;CONTRIBUTO REGIONALE IMPEGNATIVA DI CURA DOMICILIARE 2 TRIMESTRE 2023 -;04/10/2023;3957;50;719;1;Spese correnti;4;Trasferimenti correnti;2;Trasferimenti correnti a Famiglie;2;Interventi assistenziali;999;Altri assegni e sussidi assistenziali;09/10/2023
3235;1;9999999;1.200,00;1.200,00;OMESSO NOMINATIVO NEL RISPETTO DELLA NORMATIVA SULLA PROTEZIONE DATI PERSONALI; ;CONTRIBUTO REGIONALE IMPEGNATIVA DI CURA DOMICILIARE 2 TRIMESTRE 2023 -;04/10/2023;3957;50;720;1;Spese correnti;4;Trasferimenti correnti;2;Trasferimenti correnti a Famiglie;2;Interventi assistenziali;999;Altri assegni e sussidi assistenziali;09/10/2023
3236;1;9999999;1.500,00;1.500,00;ASSOCIAZIONE N.O.E.T.A.A. O.D.V.; ;SECONDA RATA ANNO 2023 CONTRIBUTO PER LATTIVITA DI PREVENZIONE E SALVAGUARDIA AMBIENTALE;05/10/2023;1159;0;351;1;Spese correnti;4;Trasferimenti correnti;4;Trasferimenti correnti a Istituzioni Sociali Private;1;Trasferimenti correnti a Istituzioni Sociali Private;1;Trasferimenti correnti a Istituzioni Sociali Private;10/10/2023
3237;1;9999999;1.673,20;1.673,20;OMESSO NOMINATIVO NEL RISPETTO DELLA NORMATIVA SULLA PROTEZIONE DATI PERSONALI;Z153B44EC8;GENNAIO APRILE 2023 PROGETTO PERSONALIZZATO DI INTERVENTO SOCIO-ASSISTENZIALE A SOSTEGNO DI MINORE;05/10/2023;3757;0;473;1;Spese correnti;4;Trasferimenti correnti;2;Trasferimenti correnti a Famiglie;5;Altri trasferimenti a famiglie;999;Altri trasferimenti a famiglie n.a.c.;10/10/2023
3238;1;9999999;6.039,00;6.039,00;SMART LAND SRL;Z7F3B931FF;SALDO Fatt.n. 55  del 12/09/2023 STIMA ECOOMICA SCUOLA DELLINFANZIA SACRO CUORE DI VETERNIGO;05/10/2023;540;0;560;1;Spese correnti;3;Acquisto di beni e servizi;2;Acquisto di servizi;11;Prestazioni professionali e specialistiche;999;Altre prestazioni professionali e specialistiche n.a.c.;10/10/2023
3239;1;9999999;612,24;612,24;CENTRO BIBLIOTECHE LOVAT SRL;Z61399458C;SALDO Fatt.n. 661-23  del 19/09/2023 VOLUMI PER BIBLIOTECA COMUNALE;05/10/2023;1820;0;56;1;Spese correnti;3;Acquisto di beni e servizi;1;Acquisto di beni;1;Giornali, riviste e pubblicazioni;2;Pubblicazioni;10/10/2023
3240;1;9999999;2.440,00;2.440,00;TREVISAN FEDERICO;9124726A18;SALDO Fatt.n. 7/B00  del 15/09/2023 LAVORI DI SFALCIO SU VOSTRE BANCHINE STRADALI;05/10/2023;2549;0;335;1;Spese correnti;3;Acquisto di beni e servizi;2;Acquisto di servizi;99;Altri servizi;9;Acquisto di sevizi per verde e arredo urbano;10/10/2023
3241;1;9999999;3.855,63;3.855,63;SCANTAMBURLO PIETRO;913650419E;SALDO Fatt.n. 108  del 20/09/2023 PULIZIA E RIORDINO CENTRI URBANI;05/10/2023;2549;0;337;1;Spese correnti;3;Acquisto di beni e servizi;2;Acquisto di servizi;99;Altri servizi;9;Acquisto di sevizi per verde e arredo urbano;10/10/2023
3242;1;9999999;2.362,50;2.362,50;TONIATO ARIANNA;Z94344B1E0;SALDO Fatt.n. 28  del 17/09/2023  PROGETTAZIONE ESECUTIVA E DIREZIONE LAVORI  - INTERVENTO DI MANUTENZIONE STRAORDINARIA STRADE NEL TERRITORIO COMUNALE;05/10/2023;8558;0;1084;2;Spese in conto capitale;2;Investimenti fissi lordi e acquisto di terreni;1;Beni materiali;9;Beni immobili;12;Infrastrutture stradali;10/10/2023
3243;1;9999999;61,98;61,98;ENI SUSTAINABLE MOBILITY SPA;Z063967AC5;ACCONTO Fatt.n. 29946425  del 31/08/2023 AGOSTO 2023 - FORNITURA METANO;05/10/2023;521;0;42;1;Spese correnti;3;Acquisto di beni e servizi;1;Acquisto di beni;2;Altri beni di consumo;999;Altri beni e materiali di consumo n.a.c.;09/10/2023
3244;1;9999999;13,64;13,64;ENI SUSTAINABLE MOBILITY SPA;Z063967AC5;SALDO Fatt.n. 29946425  del 31/08/2023 AGOSTO 2023 - FORNITURA METANO;05/10/2023;521;0;42;1;Spese correnti;3;Acquisto di beni e servizi;1;Acquisto di beni;2;Altri beni di consumo;999;Altri beni e materiali di consumo n.a.c.;10/10/2023
3246;1;9999999;800;800;CIRCOLO ARCI  F. PIROLA; ;OTTOBRE LETTERARIO 2023 CONTRIBUTO ECONOMICO - EROGAZIONE;05/10/2023;1859;0;809;1;Spese correnti;4;Trasferimenti correnti;4;Trasferimenti correnti a Istituzioni Sociali Private;1;Trasferimenti correnti a Istituzioni Sociali Private;1;Trasferimenti correnti a Istituzioni Sociali Private;10/10/2023
3247;1;9999999;500;500;PARROCCHIA DELLA  NATIVITA' B. VERGINE MARIA S.M.SALA; ;CONTRIBUTO ECONOMICO PER LA REALIZZAZIONE DELLA MANIFESTAZIONE CULTURALE E SPORTIVA BIMBIMBICI, EDIZIONE 2023.;05/10/2023;1859;0;804;1;Spese correnti;4;Trasferimenti correnti;4;Trasferimenti correnti a Istituzioni Sociali Private;1;Trasferimenti correnti a Istituzioni Sociali Private;1;Trasferimenti correnti a Istituzioni Sociali Private;10/10/2023
3248;1;9999999;500;500;A.S.D. SPIRITO LIBERO GRAVEL; ;CONCESSIONE DI UN CONTRIBUTO ECONOMICO PER LA REALIZZAZIONE DELLA MANIFESTAZIONE CULTURALE E SPORTIVA BIMBIMBICI, EDIZIONE 2023.;05/10/2023;1959;0;805;1;Spese correnti;4;Trasferimenti correnti;4;Trasferimenti correnti a Istituzioni Sociali Private;1;Trasferimenti correnti a Istituzioni Sociali Private;1;Trasferimenti correnti a Istituzioni Sociali Private;10/10/2023
3249;1;9999999;632,76;632,76;E.N.P.A. ONLUS SEZ. DI MIRA; ;ACCONTO Fatt.n. 1467/PA  del 18/09/2023 CUSTODIA CANI VAGANRI LUGLIO AGOSTO 2023;09/10/2023;3659;0;116;1;Spese correnti;4;Trasferimenti correnti;4;Trasferimenti correnti a Istituzioni Sociali Private;1;Trasferimenti correnti a Istituzioni Sociali Private;1;Trasferimenti correnti a Istituzioni Sociali Private;11/10/2023
3250;1;9999999;888,96;888,96;E.N.P.A. ONLUS SEZ. DI MIRA; ;SALDO Fatt.n. 1467/PA  del 18/09/2023 CUSTODIA CANI VAGANRI LUGLIO AGOSTO 2023;09/10/2023;3659;0;646;1;Spese correnti;4;Trasferimenti correnti;4;Trasferimenti correnti a Istituzioni Sociali Private;1;Trasferimenti correnti a Istituzioni Sociali Private;1;Trasferimenti correnti a Istituzioni Sociali Private;11/10/2023
3251;1;9999999;1.881,73;1.881,73;SALESE COSTRUZIONI SRL; ;RESTITUZIONE DEL CONTRIBUTO DI COSTRUZIONE RELATIVO IL PERMESSO DI COSTRUIRE N. 11038 DEL 31.05.2019, E SUCCESSIVI.;09/10/2023;8820;0;816;2;Spese in conto capitale;5;Altre spese in conto capitale;99;Altre spese in conto capitale n.a.c.;99;Altre spese in conto capitale n.a.c.;999;Altre spese in conto capitale n.a.c.;11/10/2023
3252;1;9999999;5.000,00;5.000,00;CONFCOMMERCIO DEL MIRANESE; ;CONTRIBUTO ALLA CONFCOMMERCIO DEL MIRANESE PER LA REALIZZAZIONE DELLEVENTO SUMMERNIGHT SHOW GIUSTA DELIBERA DI G.C. N. 87 DEL 26.07.2023.;09/10/2023;4759;0;793;1;Spese correnti;4;Trasferimenti correnti;4;Trasferimenti correnti a Istituzioni Sociali Private;1;Trasferimenti correnti a Istituzioni Sociali Private;1;Trasferimenti correnti a Istituzioni Sociali Private;11/10/2023
3255;1;9999999;1.863,45;1.863,45;AGENZIA DELLE ENTRATE - IVA; ;LIQUIDAZIONE IVA COMMERCIALE MESE DI SETTEMBRE 2023;09/10/2023;291;0;820;1;Spese correnti;10;Altre spese correnti;3;Versamenti IVA a debito;1;Versamenti IVA a debito per le gestioni commerciali;1;Versamenti IVA a debito per le gestioni commerciali;13/10/2023
3256;1;9999999;23;23;OMESSO NOMINATIVO NEL RISPETTO DELLA NORMATIVA SULLA PROTEZIONE DATI PERSONALI; ;Rimborso bolletta N.    14 del  11-09-23 RICEVUTA PARCHEGGIO GARAGE SAN MARCO VENEZIA PER APPUNTAMENTO PREFETTURA;09/10/2023;31;0;101;1;Spese correnti;3;Acquisto di beni e servizi;2;Acquisto di servizi;2;Organizzazione eventi, pubblicita` e servizi per trasferta;999;Altre spese per relazioni pubbliche, convegni e mostre, pubblicita` n.a.c;11/10/2023
3257;1;9999999;8;77,5;OMESSO NOMINATIVO NEL RISPETTO DELLA NORMATIVA SULLA PROTEZIONE DATI PERSONALI; ;Rimborso bolletta N.    17 del  28-09-23 CARTONCINI COLORATI PER MARATONA DI LETTURA;09/10/2023;121;6;99;1;Spese correnti;3;Acquisto di beni e servizi;1;Acquisto di beni;2;Altri beni di consumo;1;Carta, cancelleria e stampati;11/10/2023
3257;2;9999999;69,5;77,5;OMESSO NOMINATIVO NEL RISPETTO DELLA NORMATIVA SULLA PROTEZIONE DATI PERSONALI; ;Rimborso bolletta N.    11 del  07-07-23 FORNITURA TIMBRI PER UFFICI;09/10/2023;121;6;99;1;Spese correnti;3;Acquisto di beni e servizi;1;Acquisto di beni;2;Altri beni di consumo;1;Carta, cancelleria e stampati;11/10/2023
3258;1;9999999;200;200;BARBATO BARBARA ECONOMO COMUNALE; ;Rimborso bolletta N.    15 del  13-09-23 SPESE POSTALI;09/10/2023;146;0;405;1;Spese correnti;3;Acquisto di beni e servizi;2;Acquisto di servizi;17;Servizi finanziari;999;Spese per servizi finanziari n.a.c.;11/10/2023
3259;1;9999999;20;114,8;OMESSO NOMINATIVO NEL RISPETTO DELLA NORMATIVA SULLA PROTEZIONE DATI PERSONALI; ;Rimborso bolletta N.    12 del  07-07-23 TICKET GARAGE PIAZZALE ROMA A VENEZIA PER CONVOCAZIONE  PRESSO PREFETTURA IN DATA 06/07/2023 - COMITATO PROVINCIALE  PER L'ORDINE E LA SICUREZZA PUBBLICA.;09/10/2023;522;0;590;1;Spese correnti;3;Acquisto di beni e servizi;1;Acquisto di beni;2;Altri beni di consumo;999;Altri beni e materiali di consumo n.a.c.;11/10/2023
3259;2;9999999;94,8;114,8;OMESSO NOMINATIVO NEL RISPETTO DELLA NORMATIVA SULLA PROTEZIONE DATI PERSONALI; ;Rimborso bolletta N.    16 del  27-09-23 ACQUISTO SCATOLONI PER IMBALLAGGIO MATERIALE DA DEPOSITARE PRESSO L'ARCHIVIO COMUNALE;09/10/2023;522;0;590;1;Spese correnti;3;Acquisto di beni e servizi;1;Acquisto di beni;2;Altri beni di consumo;999;Altri beni e materiali di consumo n.a.c.;11/10/2023
3260;1;9999999;84,18;84,18;OMESSO NOMINATIVO NEL RISPETTO DELLA NORMATIVA SULLA PROTEZIONE DATI PERSONALI; ;Rimborso bolletta N.    13 del  04-08-23 FIRMA DIGITALE - INFOCERT;09/10/2023;748;0;631;1;Spese correnti;3;Acquisto di beni e servizi;2;Acquisto di servizi;19;Servizi informatici e di telecomunicazioni;999;Altri servizi informatici e di telecomunicazioni n.a.c.;11/10/2023
3261;1;9999999;1.000,00;1.000,00;ORCHESTRA DI FIATI DEL VENETO; ;CONTRIBUTO ATTIVITA CULTURALI RIVOLTE ALLA CITTADINANZA;10/10/2023;1859;0;488;1;Spese correnti;4;Trasferimenti correnti;4;Trasferimenti correnti a Istituzioni Sociali Private;1;Trasferimenti correnti a Istituzioni Sociali Private;1;Trasferimenti correnti a Istituzioni Sociali Private;12/10/2023
3266;1;9999999;2.000,00;2.000,00;ASSOCIAZIONE ALBACHIARA; ;PROGETTO DOPOSCUOLA A.S. 2022-23 CONTRIBUTO FINALIZZATO ALLA COMPARTECIPAZIONE DEI COSTI DI GESTIONE.;10/10/2023;1259;0;812;1;Spese correnti;4;Trasferimenti correnti;4;Trasferimenti correnti a Istituzioni Sociali Private;1;Trasferimenti correnti a Istituzioni Sociali Private;1;Trasferimenti correnti a Istituzioni Sociali Private;12/10/2023
3267;1;9999999;900;4.400,00;MANO AMICA - GRUPPO SALESE DI IMPEGNO SOCIALE O.D.V.; ;ORTO SOLIDALE  MAGGIO AGOSTO 2023 - PROGETTI E ATTIVITA;10/10/2023;4059;0;44;1;Spese correnti;4;Trasferimenti correnti;4;Trasferimenti correnti a Istituzioni Sociali Private;1;Trasferimenti correnti a Istituzioni Sociali Private;1;Trasferimenti correnti a Istituzioni Sociali Private;12/10/2023
3267;2;9999999;1.000,00;4.400,00;MANO AMICA - GRUPPO SALESE DI IMPEGNO SOCIALE O.D.V.; ;SOGGIORNI CLIMATICI  ATTIVITA;10/10/2023;4059;0;44;1;Spese correnti;4;Trasferimenti correnti;4;Trasferimenti correnti a Istituzioni Sociali Private;1;Trasferimenti correnti a Istituzioni Sociali Private;1;Trasferimenti correnti a Istituzioni Sociali Private;12/10/2023
3267;3;9999999;2.500,00;4.400,00;MANO AMICA - GRUPPO SALESE DI IMPEGNO SOCIALE O.D.V.; ;SERVIZIO DI TRASPORTO E ACCOMPAGNAMENTO E DI SOSTEGNO SOCIALE MAGGIO AGOSTO 2023 - PROGETTI E ATTIVITA;10/10/2023;4059;0;44;1;Spese correnti;4;Trasferimenti correnti;4;Trasferimenti correnti a Istituzioni Sociali Private;1;Trasferimenti correnti a Istituzioni Sociali Private;1;Trasferimenti correnti a Istituzioni Sociali Private;12/10/2023
3268;1;9999999;500;500;ASSOCIAZIONE  LA CASA SULL' ALBERO; ;CONTRIBUTO ECONOMICO -  LETTURE SOTTO LE STELLE E SABATI FAVOLOSI 2023;10/10/2023;1859;0;821;1;Spese correnti;4;Trasferimenti correnti;4;Trasferimenti correnti a Istituzioni Sociali Private;1;Trasferimenti correnti a Istituzioni Sociali Private;1;Trasferimenti correnti a Istituzioni Sociali Private;12/10/2023
3269;1;9999999;300;300;ASSOCIAZIONE CULTURALE ATTORI PER CASO; ;CONTRIBUTO PER COLLABORAZIONE EVENTO INAUGURALE DELLA SALA TEATRO COMUNALE PERTINI;10/10/2023;1859;0;822;1;Spese correnti;4;Trasferimenti correnti;4;Trasferimenti correnti a Istituzioni Sociali Private;1;Trasferimenti correnti a Istituzioni Sociali Private;1;Trasferimenti correnti a Istituzioni Sociali Private;12/10/2023
3270;1;9999999;500;500;PARROCCHIA DELLA  NATIVITA' B. VERGINE MARIA S.M.SALA; ;CONTRIBUTO PER COLLABORAZIONE EVENTO INAUGURALE DELLA SALA TEATRO COMUNALE PERTINI;10/10/2023;1859;0;823;1;Spese correnti;4;Trasferimenti correnti;4;Trasferimenti correnti a Istituzioni Sociali Private;1;Trasferimenti correnti a Istituzioni Sociali Private;1;Trasferimenti correnti a Istituzioni Sociali Private;12/10/2023
3271;1;9999999;784,9;784,9;KYOCERA DOCUMENT SOLUTIONS ITALIA SPA;ZB93086395;SALDO Fatt.n. 1010858369  del 27/09/2023 FOTOCOPIATRICI 32 - LOTTO 5 - 60 MESI - CANONE PERIODO DAL 13.06.2023 AL 12.09.2023;10/10/2023;748;0;106;1;Spese correnti;3;Acquisto di beni e servizi;2;Acquisto di servizi;19;Servizi informatici e di telecomunicazioni;7;Servizi di gestione documentale;12/10/2023
3272;1;9999999;270,41;270,41;KYOCERA DOCUMENT SOLUTIONS ITALIA SPA;Z202CF11D4;SALDO Fatt.n. 1010858368  del 27/09/2023 FOTOCOPIATRICI 31 - LOTTO 3 - 60 MESI CANONE DAL 18/06/2023 AL 17/09/2023;10/10/2023;748;0;450;1;Spese correnti;3;Acquisto di beni e servizi;2;Acquisto di servizi;19;Servizi informatici e di telecomunicazioni;9;Servizi per le postazioni di lavoro e relativa manutenzione;12/10/2023
3273;1;9999999;746,61;746,61;PULIAUTOMATIC SRL;ZAD3A175AF;ACCONTO Fatt.n. 96/V12  del 28/09/2023 INTERVENTO DI MANUTENZIONE SU LAVASCIUGA MODELLO R.55/B A BATTERIA MATR.09000507 PALESTRA COMUNALI;10/10/2023;1338;0;138;1;Spese correnti;3;Acquisto di beni e servizi;2;Acquisto di servizi;9;Manutenzione ordinaria e riparazioni;5;Manutenzione ordinaria e riparazioni di attrezzature;12/10/2023
3274;1;9999999;746,61;746,61;PULIAUTOMATIC SRL;ZAD3A175AF;SALDO Fatt.n. 96/V12  del 28/09/2023 INTERVENTO DI MANUTENZIONE SU LAVASCIUGA MODELLO R.55/B A BATTERIA MATR.09000507 PALESTRA COMUNALI;10/10/2023;1938;0;139;1;Spese correnti;3;Acquisto di beni e servizi;2;Acquisto di servizi;9;Manutenzione ordinaria e riparazioni;5;Manutenzione ordinaria e riparazioni di attrezzature;12/10/2023
3275;1;9999999;300;300;CENTRO PER LA SALUTE DEL BAMBINO - ONLUS;Z183C77108;SALDO Fatt.n. FATTPA 10723  del 28/09/2023 VOLUMI DA DONARE AI NUOVI NATI NEL COMUNE;10/10/2023;621;0;698;1;Spese correnti;3;Acquisto di beni e servizi;1;Acquisto di beni;2;Altri beni di consumo;9;Beni per attività di rappresentanza;12/10/2023
3276;1;9999999;1.974,62;1.974,62;FASTWEB SPA;5133642F61;SALDO Fatt.n. PAE0028624  del 31/08/2023 CANONE CONNETIVITA CITTA METROPOLITANA PERIODO DAL 1 LUGLIO AL 31 AGOSTO 2023;11/10/2023;134;32;33;1;Spese correnti;3;Acquisto di beni e servizi;2;Acquisto di servizi;5;Utenze e canoni;999;Utenze e canoni per altri servizi n.a.c.;16/10/2023
3277;1;9999999;1.499,11;1.499,11;FASTWEB SPA;5133642F61;SALDO Fatt.n. PAE0028623  del 31/08/2023 CANONE CONNETIVITA SCUOLE PERIODO DAL 1 LUGLIO AL 31 AGOSTO 2023;11/10/2023;1334;0;46;1;Spese correnti;3;Acquisto di beni e servizi;2;Acquisto di servizi;5;Utenze e canoni;1;Telefonia fissa;16/10/2023
3278;1;9999999;1.793,25;1.793,25;DISMA SAS DI ANGELO RIGO & C.;ZBB3AB6AC1;SALDO Fatt.n. 093/2023  del 30/09/2023 SERVIZIO DI SUPPORTO ALLE ATTIVITA DELLA BIBLIOTECA COMUNALE  - SETTEMBRE 2023;11/10/2023;2049;0;383;1;Spese correnti;3;Acquisto di beni e servizi;2;Acquisto di servizi;99;Altri servizi;999;Altri servizi diversi n.a.c.;16/10/2023
3279;1;9999999;20.000,00;20.000,00;A.S. SERVICES SRL;955617336E;ACCONTO Fatt.n. FATTPA 1423  del 29/09/2023 EFFICIENTAMENTO ENERGETICO SALA TEATRALE COMUNALE  INTERVENTO PER LA PROMOZIONE E RIDUZIONE DEI CONSUMI ENERGETICI  PNRR - CERTIFICATO DI PAGAMENTO N 1;12/10/2023;7400;0;1043;2;Spese in conto capitale;2;Investimenti fissi lordi e acquisto di terreni;1;Beni materiali;10;Beni immobili di valore culturale, storico ed artistico;999;Beni immobili di valore culturale, storico ed artistico n.a.c.;16/10/2023
3280;1;9999999;143.243,93;143.243,93;A.S. SERVICES SRL;955617336E;SALDO Fatt.n. FATTPA 1423  del 29/09/2023 EFFICIENTAMENTO ENERGETICO SALA TEATRALE COMUNALE  INTERVENTO PER LA PROMOZIONE E RIDUZIONE DEI CONSUMI ENERGETICI  PNRR - CERTIFICATO DI PAGAMENTO N 1;12/10/2023;7400;0;1043;2;Spese in conto capitale;2;Investimenti fissi lordi e acquisto di terreni;1;Beni materiali;10;Beni immobili di valore culturale, storico ed artistico;999;Beni immobili di valore culturale, storico ed artistico n.a.c.;16/10/2023
3281;1;9999999;50,37;103,42;V.E.R.I.T.A.S. SPA; ;SALDO Fatt.n. 600007071631  del 14/09/2023 PERIODO 18.04.2023-31.08.2023 - CONSUMI MAGAZZINO COMUNALE;13/10/2023;134;30;230;1;Spese correnti;3;Acquisto di beni e servizi;2;Acquisto di servizi;5;Utenze e canoni;5;Acqua;17/10/2023
3281;2;9999999;53,05;103,42;V.E.R.I.T.A.S. SPA; ;SALDO Fatt.n. 600007071651  del 14/09/2023 PERIODO 04.02.2023-31.08.2023 - ANTINCENDIO ECOCENTRO COMUNALE;13/10/2023;134;30;230;1;Spese correnti;3;Acquisto di beni e servizi;2;Acquisto di servizi;5;Utenze e canoni;5;Acqua;17/10/2023
3282;1;9999999;12,15;12,15;V.E.R.I.T.A.S. SPA; ;ACCONTO Fatt.n. 600007071621  del 14/09/2023 PERIODO 01.07.2023-31.08.2023 - CONSUMI SEDE MUNICIPALE;13/10/2023;134;30;230;1;Spese correnti;3;Acquisto di beni e servizi;2;Acquisto di servizi;5;Utenze e canoni;5;Acqua;17/10/2023
3283;1;9999999;4,69;136,77;V.E.R.I.T.A.S. SPA; ;SALDO Fatt.n. 600007071640  del 14/09/2023 PERIODO 04.02.2023-31.08.2023 - CONSUMI P.ZZA S.D.A. CALTANA;13/10/2023;134;31;231;1;Spese correnti;3;Acquisto di beni e servizi;2;Acquisto di servizi;5;Utenze e canoni;5;Acqua;17/10/2023
3283;2;9999999;25,99;136,77;V.E.R.I.T.A.S. SPA; ;SALDO Fatt.n. 600007071628  del 14/09/2023 PERIODO 22.07.2022-31.08.2023 - DISTRIBUTORE ACQUA CASELLE;13/10/2023;134;31;231;1;Spese correnti;3;Acquisto di beni e servizi;2;Acquisto di servizi;5;Utenze e canoni;5;Acqua;17/10/2023
3283;3;9999999;53,04;136,77;V.E.R.I.T.A.S. SPA; ;SALDO Fatt.n. 600007071629  del 14/09/2023 PERIODO 21.07.2022-31.08.2023 - ANTINCENDIO PARCHEGGIO SMS;13/10/2023;134;31;231;1;Spese correnti;3;Acquisto di beni e servizi;2;Acquisto di servizi;5;Utenze e canoni;5;Acqua;17/10/2023
3283;4;9999999;53,05;136,77;V.E.R.I.T.A.S. SPA; ;SALDO Fatt.n. 600007071641  del 14/09/2023 PERIODO 01.07.2023-31.08.2023 - ANTINCENDIO PARCHEGGIO STIGLIANO;13/10/2023;134;31;231;1;Spese correnti;3;Acquisto di beni e servizi;2;Acquisto di servizi;5;Utenze e canoni;5;Acqua;17/10/2023
3284;1;9999999;8,68;167,86;V.E.R.I.T.A.S. SPA; ;SALDO Fatt.n. 600007071642  del 14/09/2023 PERIODO 28.01.2023-31.08.2023 - CONSUMI PER MANIFESTAZIONI CALTANA;13/10/2023;134;31;231;1;Spese correnti;3;Acquisto di beni e servizi;2;Acquisto di servizi;5;Utenze e canoni;5;Acqua;17/10/2023
3284;2;9999999;53,06;167,86;V.E.R.I.T.A.S. SPA; ;SALDO Fatt.n. 600007071643  del 14/09/2023 PERIODO 01.07.2023-31.08.2023 - ANTINCENDIO Z.I. SMS;13/10/2023;134;31;231;1;Spese correnti;3;Acquisto di beni e servizi;2;Acquisto di servizi;5;Utenze e canoni;5;Acqua;17/10/2023
3284;3;9999999;53,06;167,86;V.E.R.I.T.A.S. SPA; ;SALDO Fatt.n. 600007071644  del 14/09/2023 PERIODO 01.07.2023-31.08.2023 - ANTINCENDIO Z.I. SMS;13/10/2023;134;31;231;1;Spese correnti;3;Acquisto di beni e servizi;2;Acquisto di servizi;5;Utenze e canoni;5;Acqua;17/10/2023
3284;4;9999999;53,06;167,86;V.E.R.I.T.A.S. SPA; ;SALDO Fatt.n. 600007071645  del 14/09/2023 PERIODO 01.07.2023-31.08.2023 - ANTINCENDIO PARCHEGGIO C.C. PRISMA;13/10/2023;134;31;231;1;Spese correnti;3;Acquisto di beni e servizi;2;Acquisto di servizi;5;Utenze e canoni;5;Acqua;17/10/2023
3285;1;9999999;10,28;169,46;V.E.R.I.T.A.S. SPA; ;SALDO Fatt.n. 600007071647  del 14/09/2023 PERIODO 14.07.2022-31.08.2023 - CONSUMI FONTANA VETERNIGO;13/10/2023;134;31;231;1;Spese correnti;3;Acquisto di beni e servizi;2;Acquisto di servizi;5;Utenze e canoni;5;Acqua;17/10/2023
3285;2;9999999;53,06;169,46;V.E.R.I.T.A.S. SPA; ;SALDO Fatt.n. 600007071646  del 14/09/2023 PERIODO 01.07.2023-31.08.2023 - ANTINCENDIO STRADA PRESSO ALLOGGIO GUIOTTO;13/10/2023;134;31;231;1;Spese correnti;3;Acquisto di beni e servizi;2;Acquisto di servizi;5;Utenze e canoni;5;Acqua;17/10/2023
3285;3;9999999;53,06;169,46;V.E.R.I.T.A.S. SPA; ;SALDO Fatt.n. 600007071649  del 14/09/2023 PERIODO 01.07.2023-31.08.2023 - ANTINCENDIO PER MANIFESTAZIONI SMS;13/10/2023;134;31;231;1;Spese correnti;3;Acquisto di beni e servizi;2;Acquisto di servizi;5;Utenze e canoni;5;Acqua;17/10/2023
3285;4;9999999;53,06;169,46;V.E.R.I.T.A.S. SPA; ;SALDO Fatt.n. 600007071656  del 14/09/2023 PERIODO 01.07.2023-31.08.2023 - ANTINCENDIO PIAZZA BEVILACQUA S.ANGELO;13/10/2023;134;31;231;1;Spese correnti;3;Acquisto di beni e servizi;2;Acquisto di servizi;5;Utenze e canoni;5;Acqua;17/10/2023
3286;1;9999999;8,44;147,64;V.E.R.I.T.A.S. SPA; ;SALDO Fatt.n. 600007071661  del 14/09/2023 PERIODO 26.07.2022-31.08.2023 - CONSUMI FONTANA VERDE CASELLE;13/10/2023;134;31;231;1;Spese correnti;3;Acquisto di beni e servizi;2;Acquisto di servizi;5;Utenze e canoni;5;Acqua;17/10/2023
3286;2;9999999;15,83;147,64;V.E.R.I.T.A.S. SPA; ;SALDO Fatt.n. 600007071658  del 14/09/2023 PERIODO 01.07.2023-31.08.2023 - CONSUMI PARCHEGGIO CASELLE;13/10/2023;134;31;231;1;Spese correnti;3;Acquisto di beni e servizi;2;Acquisto di servizi;5;Utenze e canoni;5;Acqua;17/10/2023
3286;3;9999999;23,83;147,64;V.E.R.I.T.A.S. SPA; ;SALDO Fatt.n. 600007071657  del 14/09/2023 PERIODO 29.10.2022-31.08.2023 - CONSUMI PARCHEGGIO C.C.PRISMA CASELLE;13/10/2023;134;31;231;1;Spese correnti;3;Acquisto di beni e servizi;2;Acquisto di servizi;5;Utenze e canoni;5;Acqua;17/10/2023
3286;4;9999999;46,48;147,64;V.E.R.I.T.A.S. SPA; ;SALDO Fatt.n. 600007071660  del 14/09/2023 PERIODO 22.07.2022-31.08.2023 - CONSUMI PIAZZA CASELLE;13/10/2023;134;31;231;1;Spese correnti;3;Acquisto di beni e servizi;2;Acquisto di servizi;5;Utenze e canoni;5;Acqua;17/10/2023
3286;5;9999999;53,06;147,64;V.E.R.I.T.A.S. SPA; ;SALDO Fatt.n. 600007071659  del 14/09/2023 PERIODO 01.07.2023-31.08.2023 - ANTINCENDIO PARCHEGGIO CASELLE;13/10/2023;134;31;231;1;Spese correnti;3;Acquisto di beni e servizi;2;Acquisto di servizi;5;Utenze e canoni;5;Acqua;17/10/2023
3287;1;9999999;165,53;165,53;V.E.R.I.T.A.S. SPA; ;SALDO Fatt.n. 600007071621  del 14/09/2023 PERIODO 01.07.2023-31.08.2023 - CONSUMI SEDE MUNICIPALE;13/10/2023;134;31;231;1;Spese correnti;3;Acquisto di beni e servizi;2;Acquisto di servizi;5;Utenze e canoni;5;Acqua;17/10/2023
3288;1;9999999;15;15;V.E.R.I.T.A.S. SPA; ;ACCONTO Fatt.n. 600007071626  del 14/09/2023 PERIODO 27.01.2023-31.08.2023 - ANTINCENDIO SC. ELEM - PALESTRA VETERNIGO;13/10/2023;1334;30;232;1;Spese correnti;3;Acquisto di beni e servizi;2;Acquisto di servizi;5;Utenze e canoni;5;Acqua;17/10/2023
3289;1;9999999;23,05;23,05;V.E.R.I.T.A.S. SPA; ;ACCONTO Fatt.n. 600007071626  del 14/09/2023 PERIODO 27.01.2023-31.08.2023 - ANTINCENDIO SC. ELEM - PALESTRA VETERNIGO;13/10/2023;1334;30;232;1;Spese correnti;3;Acquisto di beni e servizi;2;Acquisto di servizi;5;Utenze e canoni;5;Acqua;17/10/2023
3290;1;9999999;104,09;104,09;V.E.R.I.T.A.S. SPA; ;ACCONTO Fatt.n. 600007071618  del 14/09/2023 PERIODO 01.07.2023-31.08.2023 - CONSUMI PALESTRA SMS;13/10/2023;1334;30;232;1;Spese correnti;3;Acquisto di beni e servizi;2;Acquisto di servizi;5;Utenze e canoni;5;Acqua;17/10/2023
3291;1;9999999;53,05;547,76;V.E.R.I.T.A.S. SPA; ;SALDO Fatt.n. 600007071624  del 14/09/2023 PERIODO 21.01.2023-31.08.2023 - ANTINCENDIO SC. ELEM. CALTANA;13/10/2023;1334;30;232;1;Spese correnti;3;Acquisto di beni e servizi;2;Acquisto di servizi;5;Utenze e canoni;5;Acqua;17/10/2023
3291;2;9999999;121,71;547,76;V.E.R.I.T.A.S. SPA; ;SALDO Fatt.n. 600007071613  del 14/09/2023 PERIODO 14.07.2023-31.08.2023 - CONSUMI SC. ELEM. CALTANA;13/10/2023;1334;30;232;1;Spese correnti;3;Acquisto di beni e servizi;2;Acquisto di servizi;5;Utenze e canoni;5;Acqua;17/10/2023
3291;3;9999999;373;547,76;V.E.R.I.T.A.S. SPA; ;SALDO Fatt.n. 600007071623  del 14/09/2023 PERIODO 14.01.2022-31.08.2023 - CONSUMI SC. ELEM. SMS;13/10/2023;1334;30;232;1;Spese correnti;3;Acquisto di beni e servizi;2;Acquisto di servizi;5;Utenze e canoni;5;Acqua;17/10/2023
3292;1;9999999;26,53;26,53;V.E.R.I.T.A.S. SPA; ;ACCONTO Fatt.n. 600007071654  del 14/09/2023 PERIODO 21.01.2023-31.08.2023 - ANTINCENDIO PALESTRA CALTANA;13/10/2023;1334;30;232;1;Spese correnti;3;Acquisto di beni e servizi;2;Acquisto di servizi;5;Utenze e canoni;5;Acqua;17/10/2023
3293;1;9999999;137,66;137,66;V.E.R.I.T.A.S. SPA; ;ACCONTO Fatt.n. 600007071653  del 14/09/2023 PERIODO 21.01.2023-31.08.2023 - CONSUMI PALESTRA CALTANA;13/10/2023;1334;30;232;1;Spese correnti;3;Acquisto di beni e servizi;2;Acquisto di servizi;5;Utenze e canoni;5;Acqua;17/10/2023
3294;1;9999999;37,6;37,6;V.E.R.I.T.A.S. SPA; ;ACCONTO Fatt.n. 600007071615  del 14/09/2023 PERIODO 01.07.2023-31.08.2023 - CONSUMI SC. ELEM - PALESTRA STIGLIANO;13/10/2023;1334;30;232;1;Spese correnti;3;Acquisto di beni e servizi;2;Acquisto di servizi;5;Utenze e canoni;5;Acqua;17/10/2023
3295;1;9999999;39,75;39,75;V.E.R.I.T.A.S. SPA; ;ACCONTO Fatt.n. 600007071615  del 14/09/2023 PERIODO 01.07.2023-31.08.2023 - CONSUMI SC. ELEM - PALESTRA STIGLIANO;13/10/2023;1334;30;232;1;Spese correnti;3;Acquisto di beni e servizi;2;Acquisto di servizi;5;Utenze e canoni;5;Acqua;17/10/2023
3296;1;9999999;10;10;V.E.R.I.T.A.S. SPA; ;ACCONTO Fatt.n. 600007071627  del 14/09/2023 PERIODO 27.01.2023-31.08.2023 - ANTINCENDIO SC. ELEM-PALESTRA-ASILO S.ANGELO;13/10/2023;1334;30;232;1;Spese correnti;3;Acquisto di beni e servizi;2;Acquisto di servizi;5;Utenze e canoni;5;Acqua;17/10/2023
3297;1;9999999;33,05;33,05;V.E.R.I.T.A.S. SPA; ;ACCONTO Fatt.n. 600007071627  del 14/09/2023 PERIODO 27.01.2023-31.08.2023 - ANTINCENDIO SC. ELEM-PALESTRA-ASILO S.ANGELO;13/10/2023;1334;30;232;1;Spese correnti;3;Acquisto di beni e servizi;2;Acquisto di servizi;5;Utenze e canoni;5;Acqua;17/10/2023
3298;1;9999999;65;65;V.E.R.I.T.A.S. SPA; ;ACCONTO Fatt.n. 600007071616  del 14/09/2023 PERIODO 27.01.2023-31.08.2023 - CONSUMI SC. ELEM - PALESTRA VETERNIGO;13/10/2023;1334;30;232;1;Spese correnti;3;Acquisto di beni e servizi;2;Acquisto di servizi;5;Utenze e canoni;5;Acqua;17/10/2023
3299;1;9999999;107,07;107,07;V.E.R.I.T.A.S. SPA; ;ACCONTO Fatt.n. 600007071616  del 14/09/2023 PERIODO 27.01.2023-31.08.2023 - CONSUMI SC. ELEM - PALESTRA VETERNIGO;13/10/2023;1334;30;232;1;Spese correnti;3;Acquisto di beni e servizi;2;Acquisto di servizi;5;Utenze e canoni;5;Acqua;17/10/2023
3300;1;9999999;11;11;V.E.R.I.T.A.S. SPA; ;ACCONTO Fatt.n. 600007071625  del 14/09/2023 PERIODO 01.07.2023-31.08.2023 - ANTINCENDIO SC. ELEM - PALESTRA CASELLE;13/10/2023;1334;30;232;1;Spese correnti;3;Acquisto di beni e servizi;2;Acquisto di servizi;5;Utenze e canoni;5;Acqua;17/10/2023
3301;1;9999999;31,05;31,05;V.E.R.I.T.A.S. SPA; ;ACCONTO Fatt.n. 600007071625  del 14/09/2023 PERIODO 01.07.2023-31.08.2023 - ANTINCENDIO SC. ELEM - PALESTRA CASELLE;13/10/2023;1334;30;232;1;Spese correnti;3;Acquisto di beni e servizi;2;Acquisto di servizi;5;Utenze e canoni;5;Acqua;17/10/2023
3302;1;9999999;76;76;V.E.R.I.T.A.S. SPA; ;ACCONTO Fatt.n. 600007071617  del 14/09/2023 PERIODO 27.01.2023-31.08.2023 - CONSUMI SC. ELEM - PALESTRA - ASILO S.ANGELO;13/10/2023;1334;30;232;1;Spese correnti;3;Acquisto di beni e servizi;2;Acquisto di servizi;5;Utenze e canoni;5;Acqua;17/10/2023
3303;1;9999999;230,01;230,01;V.E.R.I.T.A.S. SPA; ;ACCONTO Fatt.n. 600007071617  del 14/09/2023 PERIODO 27.01.2023-31.08.2023 - CONSUMI SC. ELEM - PALESTRA - ASILO S.ANGELO;13/10/2023;1334;30;232;1;Spese correnti;3;Acquisto di beni e servizi;2;Acquisto di servizi;5;Utenze e canoni;5;Acqua;17/10/2023
3304;1;9999999;30;30;V.E.R.I.T.A.S. SPA; ;ACCONTO Fatt.n. 600007071614  del 14/09/2023 PERIODO 22.07.2022-31.08.2023 - CONSUMI SC. ELEM - PALESTRA CASELLE;13/10/2023;1334;30;232;1;Spese correnti;3;Acquisto di beni e servizi;2;Acquisto di servizi;5;Utenze e canoni;5;Acqua;17/10/2023
3305;1;9999999;91,58;91,58;V.E.R.I.T.A.S. SPA; ;ACCONTO Fatt.n. 600007071614  del 14/09/2023 PERIODO 22.07.2022-31.08.2023 - CONSUMI SC. ELEM - PALESTRA CASELLE;13/10/2023;1334;30;232;1;Spese correnti;3;Acquisto di beni e servizi;2;Acquisto di servizi;5;Utenze e canoni;5;Acqua;17/10/2023
3306;1;9999999;1.152,91;1.152,91;V.E.R.I.T.A.S. SPA; ;SALDO Fatt.n. 600007071622  del 14/09/2023 PERIODO 21.07.2022-31.08.2023 - CONSUMI SC. MEDIA SMA;13/10/2023;1334;30;341;1;Spese correnti;3;Acquisto di beni e servizi;2;Acquisto di servizi;5;Utenze e canoni;5;Acqua;17/10/2023
3307;1;9999999;-250,93;790,08;V.E.R.I.T.A.S. SPA; ;SALDO Fatt.n. 600007071655  del 14/09/2023 NOTA DI ACCREDITO PER CONG. CONSUMI - PERIODO 22.07.2022-31.08.2023 -;13/10/2023;1834;0;233;1;Spese correnti;3;Acquisto di beni e servizi;2;Acquisto di servizi;5;Utenze e canoni;5;Acqua;17/10/2023
3307;2;9999999;-1,66;790,08;V.E.R.I.T.A.S. SPA; ;SALDO Fatt.n. 600007071648  del 14/09/2023 NOTA DI ACCREDITO PER CONG. CONSUMI -  PERIODO 22.07.2022-31.08.2023;13/10/2023;1834;0;233;1;Spese correnti;3;Acquisto di beni e servizi;2;Acquisto di servizi;5;Utenze e canoni;5;Acqua;17/10/2023
3307;3;9999999;1.042,67;790,08;V.E.R.I.T.A.S. SPA; ;SALDO Fatt.n. 600007071619  del 14/09/2023 PERIODO 22.07.2022-31.08.2023 - CONSUMI VILLA FARSETTI;13/10/2023;1834;0;233;1;Spese correnti;3;Acquisto di beni e servizi;2;Acquisto di servizi;5;Utenze e canoni;5;Acqua;17/10/2023
3308;1;9999999;71,86;71,86;V.E.R.I.T.A.S. SPA; ;SALDO Fatt.n. 600007071630  del 14/09/2023 PERIODO 22.07.2022-31.08.2023 - ANTINCENDIO VILLA FARSETTI;13/10/2023;1834;0;233;1;Spese correnti;3;Acquisto di beni e servizi;2;Acquisto di servizi;5;Utenze e canoni;5;Acqua;17/10/2023
3309;1;9999999;15;15;V.E.R.I.T.A.S. SPA; ;SALDO Fatt.n. 600007071626  del 14/09/2023 PERIODO 27.01.2023-31.08.2023 - ANTINCENDIO SC. ELEM - PALESTRA VETERNIGO;13/10/2023;1934;0;234;1;Spese correnti;3;Acquisto di beni e servizi;2;Acquisto di servizi;5;Utenze e canoni;5;Acqua;17/10/2023
3310;1;9999999;104,08;104,08;V.E.R.I.T.A.S. SPA; ;SALDO Fatt.n. 600007071618  del 14/09/2023 PERIODO 01.07.2023-31.08.2023 - CONSUMI PALESTRA SMS;13/10/2023;1934;0;234;1;Spese correnti;3;Acquisto di beni e servizi;2;Acquisto di servizi;5;Utenze e canoni;5;Acqua;17/10/2023
3311;1;9999999;26,52;26,52;V.E.R.I.T.A.S. SPA; ;SALDO Fatt.n. 600007071654  del 14/09/2023 PERIODO 21.01.2023-31.08.2023 - ANTINCENDIO PALESTRA CALTANA;13/10/2023;1934;0;234;1;Spese correnti;3;Acquisto di beni e servizi;2;Acquisto di servizi;5;Utenze e canoni;5;Acqua;17/10/2023
3312;1;9999999;137,66;137,66;V.E.R.I.T.A.S. SPA; ;SALDO Fatt.n. 600007071653  del 14/09/2023 PERIODO 21.01.2023-31.08.2023 - CONSUMI PALESTRA CALTANA;13/10/2023;1934;0;234;1;Spese correnti;3;Acquisto di beni e servizi;2;Acquisto di servizi;5;Utenze e canoni;5;Acqua;17/10/2023
3313;1;9999999;56,4;56,4;V.E.R.I.T.A.S. SPA; ;SALDO Fatt.n. 600007071615  del 14/09/2023 PERIODO 01.07.2023-31.08.2023 - CONSUMI SC. ELEM - PALESTRA STIGLIANO;13/10/2023;1934;0;234;1;Spese correnti;3;Acquisto di beni e servizi;2;Acquisto di servizi;5;Utenze e canoni;5;Acqua;17/10/2023
3314;1;9999999;10;10;V.E.R.I.T.A.S. SPA; ;SALDO Fatt.n. 600007071627  del 14/09/2023 PERIODO 27.01.2023-31.08.2023 - ANTINCENDIO SC. ELEM-PALESTRA-ASILO S.ANGELO;13/10/2023;1934;0;234;1;Spese correnti;3;Acquisto di beni e servizi;2;Acquisto di servizi;5;Utenze e canoni;5;Acqua;17/10/2023
3315;1;9999999;65;65;V.E.R.I.T.A.S. SPA; ;SALDO Fatt.n. 600007071616  del 14/09/2023 PERIODO 27.01.2023-31.08.2023 - CONSUMI SC. ELEM - PALESTRA VETERNIGO;13/10/2023;1934;0;234;1;Spese correnti;3;Acquisto di beni e servizi;2;Acquisto di servizi;5;Utenze e canoni;5;Acqua;17/10/2023
3316;1;9999999;11;11;V.E.R.I.T.A.S. SPA; ;SALDO Fatt.n. 600007071625  del 14/09/2023 PERIODO 01.07.2023-31.08.2023 - ANTINCENDIO SC. ELEM - PALESTRA CASELLE;13/10/2023;1934;0;234;1;Spese correnti;3;Acquisto di beni e servizi;2;Acquisto di servizi;5;Utenze e canoni;5;Acqua;17/10/2023
3317;1;9999999;76;76;V.E.R.I.T.A.S. SPA; ;SALDO Fatt.n. 600007071617  del 14/09/2023 PERIODO 27.01.2023-31.08.2023 - CONSUMI SC. ELEM - PALESTRA - ASILO S.ANGELO;13/10/2023;1934;0;234;1;Spese correnti;3;Acquisto di beni e servizi;2;Acquisto di servizi;5;Utenze e canoni;5;Acqua;17/10/2023
3318;1;9999999;30;30;V.E.R.I.T.A.S. SPA; ;SALDO Fatt.n. 600007071614  del 14/09/2023 PERIODO 22.07.2022-31.08.2023 - CONSUMI SC. ELEM - PALESTRA CASELLE;13/10/2023;1934;0;234;1;Spese correnti;3;Acquisto di beni e servizi;2;Acquisto di servizi;5;Utenze e canoni;5;Acqua;17/10/2023
3319;1;9999999;-71,22;159,47;V.E.R.I.T.A.S. SPA; ;SALDO Fatt.n. 600007071652  del 14/09/2023 NOTA DI ACCREDITO PER CONG. CONSUMI PERIODO 04.02.2023-31.08.2023;13/10/2023;3534;0;235;1;Spese correnti;3;Acquisto di beni e servizi;2;Acquisto di servizi;5;Utenze e canoni;5;Acqua;17/10/2023
3319;2;9999999;230,69;159,47;V.E.R.I.T.A.S. SPA; ;SALDO Fatt.n. 600007071632  del 14/09/2023 PERIODO 13.07.2022-31.08.2023 - ANTINCENDIO MAGAZZINO COMUNALE;13/10/2023;3534;0;235;1;Spese correnti;3;Acquisto di beni e servizi;2;Acquisto di servizi;5;Utenze e canoni;5;Acqua;17/10/2023
3320;1;9999999;-301,34;261,28;V.E.R.I.T.A.S. SPA; ;SALDO Fatt.n. 600007071620  del 14/09/2023 NOTA DI ACCREDITO PER CONG. CONSUMI  - PERIODO 27.07.2022-31.08.2023;13/10/2023;4434;0;237;1;Spese correnti;3;Acquisto di beni e servizi;2;Acquisto di servizi;5;Utenze e canoni;5;Acqua;17/10/2023
3320;2;9999999;-66,13;261,28;V.E.R.I.T.A.S. SPA; ;SALDO Fatt.n. 600007071650  del 14/09/2023 NOTA DI ACCREDITO PER CONGUAGLIO CONSUMI PERIODO 16.07.2022-31.08.2023;13/10/2023;4434;0;237;1;Spese correnti;3;Acquisto di beni e servizi;2;Acquisto di servizi;5;Utenze e canoni;5;Acqua;17/10/2023
3320;3;9999999;-41,15;261,28;V.E.R.I.T.A.S. SPA; ;SALDO Fatt.n. 600007071639  del 14/09/2023 NOTA DI ACCREDITO PER CONG. CONSUMIPERIODO 01.02.2023-31.08.2023;13/10/2023;4434;0;237;1;Spese correnti;3;Acquisto di beni e servizi;2;Acquisto di servizi;5;Utenze e canoni;5;Acqua;17/10/2023
3320;4;9999999;669,9;261,28;V.E.R.I.T.A.S. SPA; ;SALDO Fatt.n. 600007071635  del 14/09/2023 PERIODO 03.02.2023-31.08.2023 - CONSUMI CIMITERO VETERNIGO;13/10/2023;4434;0;237;1;Spese correnti;3;Acquisto di beni e servizi;2;Acquisto di servizi;5;Utenze e canoni;5;Acqua;17/10/2023
3321;1;9999999;5,87;331,95;V.E.R.I.T.A.S. SPA; ;SALDO Fatt.n. 600007071637  del 14/09/2023 PERIODO 26.07.2022-31.08.2023 - CONSUMI CIMITERO CASELLE;13/10/2023;4434;0;237;1;Spese correnti;3;Acquisto di beni e servizi;2;Acquisto di servizi;5;Utenze e canoni;5;Acqua;17/10/2023
3321;2;9999999;13,44;331,95;V.E.R.I.T.A.S. SPA; ;SALDO Fatt.n. 600007071634  del 14/09/2023 PERIODO 20.01.2023-31.08.2023 - CONSUMI CIMITERO CALTANA;13/10/2023;4434;0;237;1;Spese correnti;3;Acquisto di beni e servizi;2;Acquisto di servizi;5;Utenze e canoni;5;Acqua;17/10/2023
3321;3;9999999;15,95;331,95;V.E.R.I.T.A.S. SPA; ;SALDO Fatt.n. 600007071636  del 14/09/2023 PERIODO 27.01.2023-31.08.2023 - CONSUMI CIMITERO S.ANGELO;13/10/2023;4434;0;237;1;Spese correnti;3;Acquisto di beni e servizi;2;Acquisto di servizi;5;Utenze e canoni;5;Acqua;17/10/2023
3321;4;9999999;60,64;331,95;V.E.R.I.T.A.S. SPA; ;SALDO Fatt.n. 600007071638  del 14/09/2023 PERIODO 01.07.2023-31.08.2023 - CONSUMI CIMITERO STIGLIANO;13/10/2023;4434;0;237;1;Spese correnti;3;Acquisto di beni e servizi;2;Acquisto di servizi;5;Utenze e canoni;5;Acqua;17/10/2023
3321;5;9999999;236,05;331,95;V.E.R.I.T.A.S. SPA; ;SALDO Fatt.n. 600007071633  del 14/09/2023 PERIODO 20.07.2022-31.08.2023 - CONSUMI CIMITERO SMS;13/10/2023;4434;0;237;1;Spese correnti;3;Acquisto di beni e servizi;2;Acquisto di servizi;5;Utenze e canoni;5;Acqua;17/10/2023
3322;1;9999999;702,55;702,55;KUWAIT PETROLEUM ITALIA SPA;Z543524413;SALDO Fatt.n. PJ07387447  del 30/09/2023 SETTEMBRE 2023 - FORNITURA CARBURANTE;13/10/2023;521;0;186;1;Spese correnti;3;Acquisto di beni e servizi;1;Acquisto di beni;2;Altri beni di consumo;999;Altri beni e materiali di consumo n.a.c.;17/10/2023
3323;1;9999999;487,09;487,09;C.E.I.F. DI BESSEGA DANIELE;Z2A39B329B;SALDO Fatt.n. 1-11  del 30/09/2023 MATERIALE VARIO PER MANUTENZIONI;16/10/2023;522;0;81;1;Spese correnti;3;Acquisto di beni e servizi;1;Acquisto di beni;2;Altri beni di consumo;999;Altri beni e materiali di consumo n.a.c.;18/10/2023
3324;1;9999999;248,08;248,08;GOTTARDO DINO & C.SNC;Z573BAB73F;ACCONTO Fatt.n. 62  del 07/10/2023 ESECUZIONE INTERVENTI DI MANUTENZIONE ORDINARIA PER OPERE  DA FABBRO NEI FABBRICATI COMUNALI - 2ACCONTO;16/10/2023;548;0;572;1;Spese correnti;3;Acquisto di beni e servizi;2;Acquisto di servizi;9;Manutenzione ordinaria e riparazioni;8;Manutenzione ordinaria e riparazioni di beni immobili;18/10/2023
3325;1;9999999;330,64;330,64;GOTTARDO DINO & C.SNC;Z573BAB73F;ACCONTO Fatt.n. 62  del 07/10/2023 ESECUZIONE INTERVENTI DI MANUTENZIONE ORDINARIA PER OPERE  DA FABBRO NEI FABBRICATI COMUNALI - 2ACCONTO;16/10/2023;1338;0;573;1;Spese correnti;3;Acquisto di beni e servizi;2;Acquisto di servizi;9;Manutenzione ordinaria e riparazioni;8;Manutenzione ordinaria e riparazioni di beni immobili;18/10/2023
3326;1;9999999;490;490;GOTTARDO DINO & C.SNC;Z573BAB73F;SALDO Fatt.n. 62  del 07/10/2023 ESECUZIONE INTERVENTI DI MANUTENZIONE ORDINARIA PER OPERE  DA FABBRO NEI FABBRICATI COMUNALI - 2ACCONTO;16/10/2023;1838;0;574;1;Spese correnti;3;Acquisto di beni e servizi;2;Acquisto di servizi;9;Manutenzione ordinaria e riparazioni;8;Manutenzione ordinaria e riparazioni di beni immobili;18/10/2023
3327;1;9999999;11,7;223,37;SONEPAR ITALIA  SPA;ZB939BAE73;SALDO Fatt.n. 0031274852  del 30/09/2023 MATERIALE ELETTRICO PER MANUTENZIONI;16/10/2023;3538;0;679;1;Spese correnti;3;Acquisto di beni e servizi;2;Acquisto di servizi;9;Manutenzione ordinaria e riparazioni;4;Manutenzione ordinaria e riparazioni di impianti e macchinari;18/10/2023
3327;2;9999999;65,37;223,37;SONEPAR ITALIA  SPA;ZB939BAE73;SALDO Fatt.n. 0031274851  del 30/09/2023 MATERIALE ELETTRICO PER MANUTENZIONI;16/10/2023;3538;0;679;1;Spese correnti;3;Acquisto di beni e servizi;2;Acquisto di servizi;9;Manutenzione ordinaria e riparazioni;4;Manutenzione ordinaria e riparazioni di impianti e macchinari;18/10/2023
3327;3;9999999;146,3;223,37;SONEPAR ITALIA  SPA;ZB939BAE73;SALDO Fatt.n. 0031274853  del 30/09/2023 MATERIALE ELETTRICO PER MANUTENZIONI;16/10/2023;3538;0;679;1;Spese correnti;3;Acquisto di beni e servizi;2;Acquisto di servizi;9;Manutenzione ordinaria e riparazioni;4;Manutenzione ordinaria e riparazioni di impianti e macchinari;18/10/2023
3328;1;9999999;579,17;579,17;PSR PRODUCT SERVICE ROAD S.R.L.;Z7F3B711D6;SALDO Fatt.n. 173/VP1  del 27/09/2023 MANUTENZIONE SEGNALETICA STRADALE;16/10/2023;8565;0;508;2;Spese in conto capitale;2;Investimenti fissi lordi e acquisto di terreni;1;Beni materiali;9;Beni immobili;12;Infrastrutture stradali;18/10/2023
3329;1;9999999;34,44;34,44;DOLOMITI ENERGIA SPA;9740529ACE;SALDO Fatt.n. 42304709212  del 29/09/2023 AGOSTO 2023 CONSUMI SEDE MUNICIPALE;16/10/2023;134;30;342;1;Spese correnti;3;Acquisto di beni e servizi;2;Acquisto di servizi;5;Utenze e canoni;6;Gas;18/10/2023
3330;1;9999999;13,28;13,28;DOLOMITI ENERGIA SPA;9740529ACE;SALDO Fatt.n. 42304709215  del 29/09/2023 AGOSTO 2023 CONSUMI ALLOGGIO VIA DON GALLERANI CALTANA;16/10/2023;134;30;342;1;Spese correnti;3;Acquisto di beni e servizi;2;Acquisto di servizi;5;Utenze e canoni;6;Gas;18/10/2023
3331;1;9999999;2,92;2,92;DOLOMITI ENERGIA SPA;9740529ACE;SALDO Fatt.n. 42304709214  del 29/09/2023 AGOSTO 2023 CONSUMI IMM. COMUNALE VIA OLIMPIA SMS;16/10/2023;134;30;342;1;Spese correnti;3;Acquisto di beni e servizi;2;Acquisto di servizi;5;Utenze e canoni;6;Gas;18/10/2023
3332;1;9999999;34,44;34,44;DOLOMITI ENERGIA SPA;9740529ACE;SALDO Fatt.n. 42304709210  del 29/09/2023 AGOSTO 2023 CONSUMI SC. ELEM. CALTANA;16/10/2023;1334;30;344;1;Spese correnti;3;Acquisto di beni e servizi;2;Acquisto di servizi;5;Utenze e canoni;6;Gas;18/10/2023
3333;1;9999999;58,41;58,41;DOLOMITI ENERGIA SPA;9740529ACE;ACCONTO Fatt.n. 42304709219  del 29/09/2023 AGOSTO 2023 CONSUMI PALESTRA CALTANA;16/10/2023;1334;30;344;1;Spese correnti;3;Acquisto di beni e servizi;2;Acquisto di servizi;5;Utenze e canoni;6;Gas;18/10/2023
3334;1;9999999;74,52;74,52;DOLOMITI ENERGIA SPA;9740529ACE;SALDO Fatt.n. 42304709216  del 29/09/2023 AGOSTO 2023 CONSUMI SC. ELEM - SC. MEDIA SMS;16/10/2023;1334;30;344;1;Spese correnti;3;Acquisto di beni e servizi;2;Acquisto di servizi;5;Utenze e canoni;6;Gas;18/10/2023
3335;1;9999999;54,11;54,11;DOLOMITI ENERGIA SPA;9740529ACE;ACCONTO Fatt.n. 42304709217  del 29/09/2023 AGOSTO 2023 CONSUMI PALESTRA SMS;16/10/2023;1334;30;344;1;Spese correnti;3;Acquisto di beni e servizi;2;Acquisto di servizi;5;Utenze e canoni;6;Gas;18/10/2023
3336;1;9999999;177;177;DOLOMITI ENERGIA SPA;9740529ACE;ACCONTO Fatt.n. 42304709213  del 29/09/2023 AGOSTO 2023 CONSUMI SC. ELEM - PALESTRA - ASILO S.ANGELO;16/10/2023;1334;30;344;1;Spese correnti;3;Acquisto di beni e servizi;2;Acquisto di servizi;5;Utenze e canoni;6;Gas;18/10/2023
3337;1;9999999;530,8;530,8;DOLOMITI ENERGIA SPA;9740529ACE;ACCONTO Fatt.n. 42304709213  del 29/09/2023 AGOSTO 2023 CONSUMI SC. ELEM - PALESTRA - ASILO S.ANGELO;16/10/2023;1334;30;344;1;Spese correnti;3;Acquisto di beni e servizi;2;Acquisto di servizi;5;Utenze e canoni;6;Gas;18/10/2023
3338;1;9999999;85;85;DOLOMITI ENERGIA SPA;9740529ACE;ACCONTO Fatt.n. 42304709211  del 29/09/2023 AGOSTO 2023 CONSUMI SC. ELEM - PALESTRA CASELLE;16/10/2023;1334;30;344;1;Spese correnti;3;Acquisto di beni e servizi;2;Acquisto di servizi;5;Utenze e canoni;6;Gas;18/10/2023
3339;1;9999999;254,8;254,8;DOLOMITI ENERGIA SPA;9740529ACE;ACCONTO Fatt.n. 42304709211  del 29/09/2023 AGOSTO 2023 CONSUMI SC. ELEM - PALESTRA CASELLE;16/10/2023;1334;30;344;1;Spese correnti;3;Acquisto di beni e servizi;2;Acquisto di servizi;5;Utenze e canoni;6;Gas;18/10/2023
3340;1;9999999;9,6;9,6;DOLOMITI ENERGIA SPA;9740529ACE;ACCONTO Fatt.n. 42304709207  del 29/09/2023 AGOSTO 2023 CONSUMI SC. ELEM - PALESTRA STIGLIANO;16/10/2023;1334;30;344;1;Spese correnti;3;Acquisto di beni e servizi;2;Acquisto di servizi;5;Utenze e canoni;6;Gas;18/10/2023
3341;1;9999999;10,44;10,44;DOLOMITI ENERGIA SPA;9740529ACE;ACCONTO Fatt.n. 42304709207  del 29/09/2023 AGOSTO 2023 CONSUMI SC. ELEM - PALESTRA STIGLIANO;16/10/2023;1334;30;344;1;Spese correnti;3;Acquisto di beni e servizi;2;Acquisto di servizi;5;Utenze e canoni;6;Gas;18/10/2023
3342;1;9999999;13;13;DOLOMITI ENERGIA SPA;9740529ACE;ACCONTO Fatt.n. 42304709208  del 29/09/2023 AGOSTO 2023 CONSUMI SC. ELEM - PALESTRA VETERNIGO;16/10/2023;1334;30;344;1;Spese correnti;3;Acquisto di beni e servizi;2;Acquisto di servizi;5;Utenze e canoni;6;Gas;18/10/2023
3343;1;9999999;20,9;20,9;DOLOMITI ENERGIA SPA;9740529ACE;ACCONTO Fatt.n. 42304709208  del 29/09/2023 AGOSTO 2023 CONSUMI SC. ELEM - PALESTRA VETERNIGO;16/10/2023;1334;30;344;1;Spese correnti;3;Acquisto di beni e servizi;2;Acquisto di servizi;5;Utenze e canoni;6;Gas;18/10/2023
3344;1;9999999;58,41;58,41;DOLOMITI ENERGIA SPA;9740529ACE;SALDO Fatt.n. 42304709219  del 29/09/2023 AGOSTO 2023 CONSUMI PALESTRA CALTANA;16/10/2023;1934;0;346;1;Spese correnti;3;Acquisto di beni e servizi;2;Acquisto di servizi;5;Utenze e canoni;6;Gas;18/10/2023
3345;1;9999999;12,78;12,78;DOLOMITI ENERGIA SPA;9740529ACE;SALDO Fatt.n. 42304709220  del 29/09/2023 AGOSTO 2023 CONSUMI IMP. SPORT. PARROCCHIA CASELLE;16/10/2023;1934;0;346;1;Spese correnti;3;Acquisto di beni e servizi;2;Acquisto di servizi;5;Utenze e canoni;6;Gas;18/10/2023
3346;1;9999999;54,1;54,1;DOLOMITI ENERGIA SPA;9740529ACE;SALDO Fatt.n. 42304709217  del 29/09/2023 AGOSTO 2023 CONSUMI PALESTRA SMS;16/10/2023;1934;0;346;1;Spese correnti;3;Acquisto di beni e servizi;2;Acquisto di servizi;5;Utenze e canoni;6;Gas;18/10/2023
3347;1;9999999;177;177;DOLOMITI ENERGIA SPA;9740529ACE;SALDO Fatt.n. 42304709213  del 29/09/2023 AGOSTO 2023 CONSUMI SC. ELEM - PALESTRA - ASILO S.ANGELO;16/10/2023;1934;0;346;1;Spese correnti;3;Acquisto di beni e servizi;2;Acquisto di servizi;5;Utenze e canoni;6;Gas;18/10/2023
3348;1;9999999;85;85;DOLOMITI ENERGIA SPA;9740529ACE;SALDO Fatt.n. 42304709211  del 29/09/2023 AGOSTO 2023 CONSUMI SC. ELEM - PALESTRA CASELLE;16/10/2023;1934;0;346;1;Spese correnti;3;Acquisto di beni e servizi;2;Acquisto di servizi;5;Utenze e canoni;6;Gas;18/10/2023
3349;1;9999999;14,4;14,4;DOLOMITI ENERGIA SPA;9740529ACE;SALDO Fatt.n. 42304709207  del 29/09/2023 AGOSTO 2023 CONSUMI SC. ELEM - PALESTRA STIGLIANO;16/10/2023;1934;0;346;1;Spese correnti;3;Acquisto di beni e servizi;2;Acquisto di servizi;5;Utenze e canoni;6;Gas;18/10/2023
3350;1;9999999;13;13;DOLOMITI ENERGIA SPA;9740529ACE;SALDO Fatt.n. 42304709208  del 29/09/2023 AGOSTO 2023 CONSUMI SC. ELEM - PALESTRA VETERNIGO;16/10/2023;1934;0;346;1;Spese correnti;3;Acquisto di beni e servizi;2;Acquisto di servizi;5;Utenze e canoni;6;Gas;18/10/2023
3351;1;9999999;5,41;5,41;DOLOMITI ENERGIA SPA;9740529ACE;SALDO Fatt.n. 42304709218  del 29/09/2023 AGOSTO 2023 CONSUMI MAGAZZINO COMUNALE;16/10/2023;3534;0;347;1;Spese correnti;3;Acquisto di beni e servizi;2;Acquisto di servizi;5;Utenze e canoni;6;Gas;18/10/2023
3352;1;9999999;179,66;179,66;DOLOMITI ENERGIA SPA;9740529ACE;SALDO Fatt.n. 42304709209  del 29/09/2023 AGOSTO 2023 CONSUMI VILLA FARSETTI;16/10/2023;4234;0;348;1;Spese correnti;3;Acquisto di beni e servizi;2;Acquisto di servizi;5;Utenze e canoni;6;Gas;18/10/2023
3353;1;9999999;10.566,78;10.566,78;DIVERSI-AMMINISTRATORI COM.LI; ;STIPENDI MESE DI OTTOBRE 23;18/10/2023;30;99;0;1;Spese correnti;3;Acquisto di beni e servizi;2;Acquisto di servizi;1;Organi e incarichi istituzionali dell'amministrazione;1;Organi istituzionali dell'amministrazione - Indennità;26/10/2023
3427;1;9999999;250;250;OMESSO NOMINATIVO NEL RISPETTO DELLA NORMATIVA SULLA PROTEZIONE DATI PERSONALI; ;SETTEMBRE 2023 - PROGETTO RIA;18/10/2023;3957;54;124;1;Spese correnti;4;Trasferimenti correnti;2;Trasferimenti correnti a Famiglie;5;Altri trasferimenti a famiglie;999;Altri trasferimenti a famiglie n.a.c.;24/10/2023
3428;1;9999999;250;250;OMESSO NOMINATIVO NEL RISPETTO DELLA NORMATIVA SULLA PROTEZIONE DATI PERSONALI; ;SETTEMBRE 2023 - PROGETTO RIA;18/10/2023;3957;54;124;1;Spese correnti;4;Trasferimenti correnti;2;Trasferimenti correnti a Famiglie;5;Altri trasferimenti a famiglie;999;Altri trasferimenti a famiglie n.a.c.;23/10/2023
3429;1;9999999;250;250;OMESSO NOMINATIVO NEL RISPETTO DELLA NORMATIVA SULLA PROTEZIONE DATI PERSONALI; ;SETTEMBRE 2023 - PROGETTO RIA;18/10/2023;3957;54;124;1;Spese correnti;4;Trasferimenti correnti;2;Trasferimenti correnti a Famiglie;5;Altri trasferimenti a famiglie;999;Altri trasferimenti a famiglie n.a.c.;02/11/2023
3430;1;9999999;250;250;OMESSO NOMINATIVO NEL RISPETTO DELLA NORMATIVA SULLA PROTEZIONE DATI PERSONALI; ;SETTEMBRE 2023 - PROGETTO RIA;18/10/2023;3957;54;124;1;Spese correnti;4;Trasferimenti correnti;2;Trasferimenti correnti a Famiglie;5;Altri trasferimenti a famiglie;999;Altri trasferimenti a famiglie n.a.c.;23/10/2023
3431;1;9999999;250;250;OMESSO NOMINATIVO NEL RISPETTO DELLA NORMATIVA SULLA PROTEZIONE DATI PERSONALI; ;SETTEMBRE 2023 - PROGETTO RIA;18/10/2023;3957;54;124;1;Spese correnti;4;Trasferimenti correnti;2;Trasferimenti correnti a Famiglie;5;Altri trasferimenti a famiglie;999;Altri trasferimenti a famiglie n.a.c.;09/11/2023
3432;1;9999999;250;250;OMESSO NOMINATIVO NEL RISPETTO DELLA NORMATIVA SULLA PROTEZIONE DATI PERSONALI; ;SETTEMBRE 2023 - PROGETTO RIA;18/10/2023;3957;54;124;1;Spese correnti;4;Trasferimenti correnti;2;Trasferimenti correnti a Famiglie;5;Altri trasferimenti a famiglie;999;Altri trasferimenti a famiglie n.a.c.;23/10/2023
3433;1;9999999;808,77;808,77;MANO AMICA - GRUPPO SALESE DI IMPEGNO SOCIALE O.D.V.; ;RIMBORSO SPESA SOSTENUTA PER  POLIZZE ASSICURATIVE SERVIZIO PRE SCUOLA;18/10/2023;1650;0;649;1;Spese correnti;4;Trasferimenti correnti;4;Trasferimenti correnti a Istituzioni Sociali Private;1;Trasferimenti correnti a Istituzioni Sociali Private;1;Trasferimenti correnti a Istituzioni Sociali Private;23/10/2023
3434;1;9999999;500;500;PARROCCHIA DI  S.BIAGIO CALTANA;Z833B73345;PROGETTO CENTRO ANZIANI IN GIRO PER LE FRAZIONI ANNO 2023;18/10/2023;4059;0;797;1;Spese correnti;4;Trasferimenti correnti;4;Trasferimenti correnti a Istituzioni Sociali Private;1;Trasferimenti correnti a Istituzioni Sociali Private;1;Trasferimenti correnti a Istituzioni Sociali Private;23/10/2023
3435;1;9999999;500;500;PARROCCHIA DI S. MICHELE ARCANGELO S.ANGELO; ;PROGETTO CENTRO ANZIANI IN GIRO PER LE FRAZIONI -;18/10/2023;4059;0;798;1;Spese correnti;4;Trasferimenti correnti;4;Trasferimenti correnti a Istituzioni Sociali Private;1;Trasferimenti correnti a Istituzioni Sociali Private;1;Trasferimenti correnti a Istituzioni Sociali Private;23/10/2023
3436;1;9999999;500;500;PARROCCHIA TRASFIGURAZIONE DEL SIGNORE  VETERNIGO; ;PROGETTO CENTRO ANZIANI IN GIRO PER LE FRAZIONI - ANNO 2023;18/10/2023;4059;0;799;1;Spese correnti;4;Trasferimenti correnti;4;Trasferimenti correnti a Istituzioni Sociali Private;1;Trasferimenti correnti a Istituzioni Sociali Private;1;Trasferimenti correnti a Istituzioni Sociali Private;23/10/2023
3437;1;9999999;500;500;UNIONE SPORTIVA SAN MARCO STIGLIANO A.S.D.; ;PROGETTO CENTRO ANZIANI IN GIRO PER LE FRAZIONI - ANNO 2023;18/10/2023;4059;0;800;1;Spese correnti;4;Trasferimenti correnti;4;Trasferimenti correnti a Istituzioni Sociali Private;1;Trasferimenti correnti a Istituzioni Sociali Private;1;Trasferimenti correnti a Istituzioni Sociali Private;23/10/2023
3438;1;9999999;8.478,68;8.478,68;L'ISOLA SOC. COOPERATIVA SOCIALE;9135335CEA;SALDO Fatt.n. 16/PA  del 26/09/2023 INTERVENTI DI MANUTENZIONE DEL VERDE - V SFALCIO;18/10/2023;2549;0;338;1;Spese correnti;3;Acquisto di beni e servizi;2;Acquisto di servizi;99;Altri servizi;9;Acquisto di sevizi per verde e arredo urbano;23/10/2023
3439;1;9999999;7.197,22;7.197,22;PSR PRODUCT SERVICE ROAD S.R.L.;Z7F3B711D6;SALDO Fatt.n. 172/VP1  del 27/09/2023 MANUTENZIONE SEGNALETICA STRADALE;18/10/2023;8565;0;508;2;Spese in conto capitale;2;Investimenti fissi lordi e acquisto di terreni;1;Beni materiali;9;Beni immobili;12;Infrastrutture stradali;23/10/2023
3440;1;9999999;5,39;5,39;COMUNE DI S.MARIA DI SALA; ;CONTRIBUTO IFEL RISCOSSIONE IMU RENDICONTO AL 29-09-2023;19/10/2023;332;0;0;1;Spese correnti;3;Acquisto di beni e servizi;2;Acquisto di servizi;3;Aggi di riscossione;999;Altri aggi di riscossione n.a.c.;30/10/2023
3441;1;9999999;14,32;14,32;COMUNE DI S.MARIA DI SALA; ;CONTRIBUTO IFEL RISCOSSIONE IMU RENDICONTO AL 18-10-2023;19/10/2023;332;0;0;1;Spese correnti;3;Acquisto di beni e servizi;2;Acquisto di servizi;3;Aggi di riscossione;999;Altri aggi di riscossione n.a.c.;30/10/2023
3443;1;9999999;770;770;OMESSO NOMINATIVO NEL RISPETTO DELLA NORMATIVA SULLA PROTEZIONE DATI PERSONALI; ;OTTOBRE 2023 INTEGRAZIONE RETTA CASA DI RIPOSO RELAXXI DI NOALE;23/10/2023;3844;0;296;1;Spese correnti;3;Acquisto di beni e servizi;2;Acquisto di servizi;15;Contratti di servizio pubblico;8;Contratti di servizio di assistenza sociale residenziale e semiresidenziale;30/10/2023
3444;1;9999999;490;490;OMESSO NOMINATIVO NEL RISPETTO DELLA NORMATIVA SULLA PROTEZIONE DATI PERSONALI; ;OTTOBRE 2023  INTEGRAZIONE RETTA CASA DI RIPOSO RESIDENZA RIVIERA DEL BRENTA - CENTRO DI SOGGIORNO PER ANZIANI DI DOLO;23/10/2023;3844;0;125;1;Spese correnti;3;Acquisto di beni e servizi;2;Acquisto di servizi;15;Contratti di servizio pubblico;8;Contratti di servizio di assistenza sociale residenziale e semiresidenziale;30/10/2023
3445;1;9999999;719;719;OMESSO NOMINATIVO NEL RISPETTO DELLA NORMATIVA SULLA PROTEZIONE DATI PERSONALI; ;OTTOBRE 2023 INTEGRAZIONE RETTA CASA DI RIPOSO CENTRO RESIDENZIALE ANZIANI  UMBERTO PRIMO DI STRA;23/10/2023;3844;0;298;1;Spese correnti;3;Acquisto di beni e servizi;2;Acquisto di servizi;15;Contratti di servizio pubblico;8;Contratti di servizio di assistenza sociale residenziale e semiresidenziale;30/10/2023
3446;1;9999999;700;700;OMESSO NOMINATIVO NEL RISPETTO DELLA NORMATIVA SULLA PROTEZIONE DATI PERSONALI; ;OTTOBRE 2023 INTEGRAZIONE RETTA CASA DI RIPOSO RELAXXI DI NOALE;23/10/2023;3844;0;363;1;Spese correnti;3;Acquisto di beni e servizi;2;Acquisto di servizi;15;Contratti di servizio pubblico;8;Contratti di servizio di assistenza sociale residenziale e semiresidenziale;30/10/2023
3447;1;9999999;916,5;916,5;OMESSO NOMINATIVO NEL RISPETTO DELLA NORMATIVA SULLA PROTEZIONE DATI PERSONALI; ;OTTOBRE 2023 INTEGRAZIONE RETTA CASA DI RIPOSO IPAB L.MARIUTTO DI MIRANO;23/10/2023;3844;0;364;1;Spese correnti;3;Acquisto di beni e servizi;2;Acquisto di servizi;15;Contratti di servizio pubblico;8;Contratti di servizio di assistenza sociale residenziale e semiresidenziale;30/10/2023
3448;1;9999999;526;526;OMESSO NOMINATIVO NEL RISPETTO DELLA NORMATIVA SULLA PROTEZIONE DATI PERSONALI; ;OTTOBRE 2023  INTEGRAZIONE RETTA CASA DI RIPOSO RELAXXI DI NOALE;23/10/2023;3844;0;365;1;Spese correnti;3;Acquisto di beni e servizi;2;Acquisto di servizi;15;Contratti di servizio pubblico;8;Contratti di servizio di assistenza sociale residenziale e semiresidenziale;30/10/2023
3449;1;9999999;500;500;OMESSO NOMINATIVO NEL RISPETTO DELLA NORMATIVA SULLA PROTEZIONE DATI PERSONALI; ;OTTOBRE 2023  INTEGRAZIONE RETTA CASA DI RIPOSO DON ORIONE DI TREBASELEGHE.;23/10/2023;3844;0;126;1;Spese correnti;3;Acquisto di beni e servizi;2;Acquisto di servizi;15;Contratti di servizio pubblico;8;Contratti di servizio di assistenza sociale residenziale e semiresidenziale;30/10/2023
3450;1;9999999;550,5;550,5;OMESSO NOMINATIVO NEL RISPETTO DELLA NORMATIVA SULLA PROTEZIONE DATI PERSONALI; ;OTTOBRE 2023  INTEGRAZIONE RETTA CASA DI RIPOSO E SOGGIORNO DON VITTORIO ALLEGRI DI SALZANO -;23/10/2023;3844;0;294;1;Spese correnti;3;Acquisto di beni e servizi;2;Acquisto di servizi;15;Contratti di servizio pubblico;8;Contratti di servizio di assistenza sociale residenziale e semiresidenziale;30/10/2023
3451;1;9999999;1.100,00;1.100,00;OMESSO NOMINATIVO NEL RISPETTO DELLA NORMATIVA SULLA PROTEZIONE DATI PERSONALI; ;OTTOBRE 2023  INTEGRAZIONE RETTA CASA DI RIPOSO LA SALUTE DI FIESSO DARTICO;23/10/2023;3844;0;295;1;Spese correnti;3;Acquisto di beni e servizi;2;Acquisto di servizi;15;Contratti di servizio pubblico;8;Contratti di servizio di assistenza sociale residenziale e semiresidenziale;30/10/2023
3452;1;9999999;24,51;24,51;C/C/P 1039683022 -RISCOSSIONE COATTIVA EX ICP DPA; ;SPESE GESTIONE CONTI CORRENTI POSTALI RISCOSSIONE COATTIVA CCP 001039683022SETTEMBRE 2023;23/10/2023;146;0;52;1;Spese correnti;3;Acquisto di beni e servizi;2;Acquisto di servizi;17;Servizi finanziari;999;Spese per servizi finanziari n.a.c.;30/10/2023
3453;1;9999999;492;492;ASSOCIAZIONE NAZIONALE NOTIFICHE ATTI;Z6C3C6055E;SALDO Fatt.n. FATTPA 39523  del 16/10/2023 PARTECIPAZIONE CORSO DI FORMAZIONE GDS LENDINARA 13 13-10-2023 MESSO COMUNALE;24/10/2023;833;0;681;1;Spese correnti;3;Acquisto di beni e servizi;2;Acquisto di servizi;4;Acquisto di servizi per formazione e addestramento del personale dell'ente;4;Acquisto di servizi per formazione obbligatoria;30/10/2023
3454;1;9999999;50,52;50,52;ABACO S.P.A.;Z4B0FF1CA6;SALDO Fatt.n. 2023140003960  del 06/10/2023 AGGIO RISCOSSIONE COATTIVA CDS LOTTO 1 RENDICONTO SETTEMBRE 2023 CIG Z4B0FF1CA6;24/10/2023;1132;0;643;1;Spese correnti;3;Acquisto di beni e servizi;2;Acquisto di servizi;3;Aggi di riscossione;999;Altri aggi di riscossione n.a.c.;30/10/2023
3455;1;9999999;266,82;266,82;BIROMANIA DA LINDA DI FAVARETTO LINDA; ;SALDO Fatt.n. FPA 7/23  del 04/10/2023 FORNITURA LIBRI DI TESTO  PER SCUOLE  ELEMENTARI  A.S. 2023-2024;24/10/2023;1357;0;555;1;Spese correnti;4;Trasferimenti correnti;2;Trasferimenti correnti a Famiglie;5;Altri trasferimenti a famiglie;999;Altri trasferimenti a famiglie n.a.c.;30/10/2023
3456;1;9999999;207,01;207,01;A TUTTO TONDO DI BOTTACIN SONIA; ;SALDO Fatt.n. 54/00  del 06/10/2023 FORNITURA LIBRI DI TESTO  PER SCUOLE  ELEMENTARI  A.S. 2023-2024;24/10/2023;1357;0;555;1;Spese correnti;4;Trasferimenti correnti;2;Trasferimenti correnti a Famiglie;5;Altri trasferimenti a famiglie;999;Altri trasferimenti a famiglie n.a.c.;30/10/2023
3457;1;9999999;107,37;107,37;I COLORI DEL VILLAGGIO DI NEGRI OTTAVIA - CARTOLERIA; ;SALDO Fatt.n. 41  del 12/10/2023 FORNITURA LIBRI DI TESTO  PER SCUOLE  ELEMENTARI  A.S. 2023-2024;24/10/2023;1357;0;555;1;Spese correnti;4;Trasferimenti correnti;2;Trasferimenti correnti a Famiglie;5;Altri trasferimenti a famiglie;999;Altri trasferimenti a famiglie n.a.c.;30/10/2023
3458;1;9999999;37,27;37,27;LUCA E BETTY DI NOVELLO LUCA; ;SALDO Fatt.n. 6P.A.  del 05/10/2023 FORNITURA LIBRI DI TESTO  PER SCUOLE  ELEMENTARI  A.S. 2023-2024;24/10/2023;1357;0;555;1;Spese correnti;4;Trasferimenti correnti;2;Trasferimenti correnti a Famiglie;5;Altri trasferimenti a famiglie;999;Altri trasferimenti a famiglie n.a.c.;30/10/2023
3459;1;9999999;994,06;994,06;ASPEX SRL;ZBF3B277E5;SALDO Fatt.n. 231/FPA  del 29/09/2023 FORNITURA ASFALTO A FREDDO PER MANUTENZIONE STRADE COMUNALI;24/10/2023;3538;0;438;1;Spese correnti;3;Acquisto di beni e servizi;2;Acquisto di servizi;9;Manutenzione ordinaria e riparazioni;8;Manutenzione ordinaria e riparazioni di beni immobili;30/10/2023
3460;1;9999999;195;195;DUE BI DI BERTOLDO COSTANTINO E PAOLO SNC;ZDC3BE77AD;SALDO Fatt.n. 13Bis  del 03/10/2023 SERVIZIO DI SANIFICAZIONE PARCO MEZZI COMUNALI;24/10/2023;3542;0;598;1;Spese correnti;3;Acquisto di beni e servizi;2;Acquisto di servizi;13;Servizi ausiliari per il funzionamento dell'ente;2;Servizi di pulizia e lavanderia;30/10/2023
3461;1;9999999;6.933,52;6.933,52;FILIPPIN LAURA; ;SALDO Fatt.n. 6  del 16/10/2023 COMPENSO COMPONENTE COLLEGIO DEI REVISORI DEI CONTI PERIODO 01-08-2022 -31-07/2023;24/10/2023;230;0;863;1;Spese correnti;3;Acquisto di beni e servizi;2;Acquisto di servizi;1;Organi e incarichi istituzionali dell'amministrazione;8;Compensi agli organi istituzionali di revisione, di controllo ed altri incarichi istituzionali dell'amministrazione;30/10/2023
3462;1;9999999;5.034,58;5.034,58;LA CARTOLERIA DI MARTA DALLE FRATTE; ;SALDO Fatt.n. 5/PA  del 10/10/2023 FORNITURA LIBRI DI TESTO  PER SCUOLE  ELEMENTARI  A.S. 2023-2024;24/10/2023;1357;0;555;1;Spese correnti;4;Trasferimenti correnti;2;Trasferimenti correnti a Famiglie;5;Altri trasferimenti a famiglie;999;Altri trasferimenti a famiglie n.a.c.;30/10/2023
3463;1;9999999;800;800;OMESSO NOMINATIVO NEL RISPETTO DELLA NORMATIVA SULLA PROTEZIONE DATI PERSONALI; ;ULTERIORE LIQUIDAZIONE CONTRIBUTO REGIONALE IMPEGNATIVA DI CURA DOMICILIARE ICD B - 1 SEMESTRE 2023, ICD M e Mgs - 2 TRIMESTRE 2023 -;26/10/2023;3957;50;715;1;Spese correnti;4;Trasferimenti correnti;2;Trasferimenti correnti a Famiglie;2;Interventi assistenziali;999;Altri assegni e sussidi assistenziali;30/10/2023
3464;1;9999999;480;480;OMESSO NOMINATIVO NEL RISPETTO DELLA NORMATIVA SULLA PROTEZIONE DATI PERSONALI; ;CONTRIBUTO REGIONALE IMPEGNATIVA DI CURA DOMICILIARE ICD B - 1 SEMESTRE 2023, ICD M e Mgs - 2 TRIMESTRE 2023 -;26/10/2023;3957;50;728;1;Spese correnti;4;Trasferimenti correnti;2;Trasferimenti correnti a Famiglie;2;Interventi assistenziali;999;Altri assegni e sussidi assistenziali;14/11/2023
3465;1;9999999;170;170;OMESSO NOMINATIVO NEL RISPETTO DELLA NORMATIVA SULLA PROTEZIONE DATI PERSONALI; ;OTTOBRE 2023 MINIMO VITALE;26/10/2023;4157;0;838;1;Spese correnti;4;Trasferimenti correnti;2;Trasferimenti correnti a Famiglie;2;Interventi assistenziali;999;Altri assegni e sussidi assistenziali;07/11/2023
3466;1;9999999;150;150;OMESSO NOMINATIVO NEL RISPETTO DELLA NORMATIVA SULLA PROTEZIONE DATI PERSONALI; ;OTTOBRE 2023 MINIMO VITALE;26/10/2023;4157;0;584;1;Spese correnti;4;Trasferimenti correnti;2;Trasferimenti correnti a Famiglie;2;Interventi assistenziali;999;Altri assegni e sussidi assistenziali;06/11/2023
3467;1;9999999;150;150;OMESSO NOMINATIVO NEL RISPETTO DELLA NORMATIVA SULLA PROTEZIONE DATI PERSONALI; ;OTTOBRE 2023 MINIMO VITALE;26/10/2023;4157;0;833;1;Spese correnti;4;Trasferimenti correnti;2;Trasferimenti correnti a Famiglie;2;Interventi assistenziali;999;Altri assegni e sussidi assistenziali;30/10/2023
3468;1;9999999;500;500;OMESSO NOMINATIVO NEL RISPETTO DELLA NORMATIVA SULLA PROTEZIONE DATI PERSONALI; ;OTTOBRE 2023 MINIMO VITALE;26/10/2023;4157;0;839;1;Spese correnti;4;Trasferimenti correnti;2;Trasferimenti correnti a Famiglie;2;Interventi assistenziali;999;Altri assegni e sussidi assistenziali;13/11/2023
3469;1;9999999;100;100;OMESSO NOMINATIVO NEL RISPETTO DELLA NORMATIVA SULLA PROTEZIONE DATI PERSONALI; ;OTTOBRE 2023 MINIMO VITALE;26/10/2023;4157;0;585;1;Spese correnti;4;Trasferimenti correnti;2;Trasferimenti correnti a Famiglie;2;Interventi assistenziali;999;Altri assegni e sussidi assistenziali;13/11/2023
3470;1;9999999;100;100;OMESSO NOMINATIVO NEL RISPETTO DELLA NORMATIVA SULLA PROTEZIONE DATI PERSONALI; ;OTTOBRE 2023 MINIMO VITALE;26/10/2023;4157;0;657;1;Spese correnti;4;Trasferimenti correnti;2;Trasferimenti correnti a Famiglie;2;Interventi assistenziali;999;Altri assegni e sussidi assistenziali;31/10/2023
3471;1;9999999;150;150;OMESSO NOMINATIVO NEL RISPETTO DELLA NORMATIVA SULLA PROTEZIONE DATI PERSONALI; ;OTTOBRE 2023 MINIMO VITALE;26/10/2023;4157;0;834;1;Spese correnti;4;Trasferimenti correnti;2;Trasferimenti correnti a Famiglie;2;Interventi assistenziali;999;Altri assegni e sussidi assistenziali;06/11/2023
3472;1;9999999;150;150;OMESSO NOMINATIVO NEL RISPETTO DELLA NORMATIVA SULLA PROTEZIONE DATI PERSONALI; ;OTTOBRE 2023 MINIMO VITALE;26/10/2023;4157;0;840;1;Spese correnti;4;Trasferimenti correnti;2;Trasferimenti correnti a Famiglie;2;Interventi assistenziali;999;Altri assegni e sussidi assistenziali;03/11/2023
3473;1;9999999;150;150;OMESSO NOMINATIVO NEL RISPETTO DELLA NORMATIVA SULLA PROTEZIONE DATI PERSONALI; ;OTTOBRE 2023 MINIMO VITALE;26/10/2023;4157;0;692;1;Spese correnti;4;Trasferimenti correnti;2;Trasferimenti correnti a Famiglie;2;Interventi assistenziali;999;Altri assegni e sussidi assistenziali;15/11/2023
3474;1;9999999;500;500;OMESSO NOMINATIVO NEL RISPETTO DELLA NORMATIVA SULLA PROTEZIONE DATI PERSONALI; ;OTTOBRE 2023 MINIMO VITALE;26/10/2023;3957;54;124;1;Spese correnti;4;Trasferimenti correnti;2;Trasferimenti correnti a Famiglie;5;Altri trasferimenti a famiglie;999;Altri trasferimenti a famiglie n.a.c.;07/11/2023
3475;1;9999999;150;150;OMESSO NOMINATIVO NEL RISPETTO DELLA NORMATIVA SULLA PROTEZIONE DATI PERSONALI; ;OTTOBRE 2023 MINIMO VITALE;26/10/2023;4157;0;659;1;Spese correnti;4;Trasferimenti correnti;2;Trasferimenti correnti a Famiglie;2;Interventi assistenziali;999;Altri assegni e sussidi assistenziali;14/11/2023
3476;1;9999999;450;450;OMESSO NOMINATIVO NEL RISPETTO DELLA NORMATIVA SULLA PROTEZIONE DATI PERSONALI; ;OTTOBRE 2023 MINIMO VITALE;26/10/2023;4157;0;835;1;Spese correnti;4;Trasferimenti correnti;2;Trasferimenti correnti a Famiglie;2;Interventi assistenziali;999;Altri assegni e sussidi assistenziali;06/11/2023
3477;1;9999999;150;150;OMESSO NOMINATIVO NEL RISPETTO DELLA NORMATIVA SULLA PROTEZIONE DATI PERSONALI; ;OTTOBRE 2023 MINIMO VITALE;26/10/2023;4157;0;841;1;Spese correnti;4;Trasferimenti correnti;2;Trasferimenti correnti a Famiglie;2;Interventi assistenziali;999;Altri assegni e sussidi assistenziali;10/11/2023
3478;1;9999999;150;150;OMESSO NOMINATIVO NEL RISPETTO DELLA NORMATIVA SULLA PROTEZIONE DATI PERSONALI; ;OTTOBRE 2023 MINIMO VITALE;26/10/2023;4157;0;280;1;Spese correnti;4;Trasferimenti correnti;2;Trasferimenti correnti a Famiglie;2;Interventi assistenziali;999;Altri assegni e sussidi assistenziali;08/11/2023
3479;1;9999999;700;700;OMESSO NOMINATIVO NEL RISPETTO DELLA NORMATIVA SULLA PROTEZIONE DATI PERSONALI; ;OTTOBRE 2023 - PROGETTO RILEVANZA SOCIALE;26/10/2023;4157;0;65;1;Spese correnti;4;Trasferimenti correnti;2;Trasferimenti correnti a Famiglie;2;Interventi assistenziali;999;Altri assegni e sussidi assistenziali;30/10/2023
3480;1;9999999;140;140;OMESSO NOMINATIVO NEL RISPETTO DELLA NORMATIVA SULLA PROTEZIONE DATI PERSONALI; ;OTTOBRE 2023 MINIMO VITALE;26/10/2023;4157;0;842;1;Spese correnti;4;Trasferimenti correnti;2;Trasferimenti correnti a Famiglie;2;Interventi assistenziali;999;Altri assegni e sussidi assistenziali;27/11/2023
3481;1;9999999;150;150;OMESSO NOMINATIVO NEL RISPETTO DELLA NORMATIVA SULLA PROTEZIONE DATI PERSONALI; ;OTTOBRE 2023 MINIMO VITALE;26/10/2023;4157;0;655;1;Spese correnti;4;Trasferimenti correnti;2;Trasferimenti correnti a Famiglie;2;Interventi assistenziali;999;Altri assegni e sussidi assistenziali;30/10/2023
3482;1;9999999;150;150;OMESSO NOMINATIVO NEL RISPETTO DELLA NORMATIVA SULLA PROTEZIONE DATI PERSONALI; ;OTTOBRE 2023 MINIMO VITALE;26/10/2023;4157;0;583;1;Spese correnti;4;Trasferimenti correnti;2;Trasferimenti correnti a Famiglie;2;Interventi assistenziali;999;Altri assegni e sussidi assistenziali;13/12/2023
3483;1;9999999;150;150;OMESSO NOMINATIVO NEL RISPETTO DELLA NORMATIVA SULLA PROTEZIONE DATI PERSONALI; ;OTTOBRE 2023 MINIMO VITALE;26/10/2023;4157;0;836;1;Spese correnti;4;Trasferimenti correnti;2;Trasferimenti correnti a Famiglie;2;Interventi assistenziali;999;Altri assegni e sussidi assistenziali;13/11/2023
3484;1;9999999;700;700;OMESSO NOMINATIVO NEL RISPETTO DELLA NORMATIVA SULLA PROTEZIONE DATI PERSONALI; ;OTTOBRE 2023 MINIMO VITALE;26/10/2023;4157;0;843;1;Spese correnti;4;Trasferimenti correnti;2;Trasferimenti correnti a Famiglie;2;Interventi assistenziali;999;Altri assegni e sussidi assistenziali;15/11/2023
3485;1;9999999;130;130;OMESSO NOMINATIVO NEL RISPETTO DELLA NORMATIVA SULLA PROTEZIONE DATI PERSONALI; ;OTTOBRE 2023 MINIMO VITALE;26/10/2023;4157;0;837;1;Spese correnti;4;Trasferimenti correnti;2;Trasferimenti correnti a Famiglie;2;Interventi assistenziali;999;Altri assegni e sussidi assistenziali;06/11/2023
3486;1;9999999;100;100;OMESSO NOMINATIVO NEL RISPETTO DELLA NORMATIVA SULLA PROTEZIONE DATI PERSONALI; ;OTTOBRE 2023 MINIMO VITALE;26/10/2023;4157;0;660;1;Spese correnti;4;Trasferimenti correnti;2;Trasferimenti correnti a Famiglie;2;Interventi assistenziali;999;Altri assegni e sussidi assistenziali;30/10/2023
3487;1;9999999;120;120;OMESSO NOMINATIVO NEL RISPETTO DELLA NORMATIVA SULLA PROTEZIONE DATI PERSONALI; ;CONTRIBUTO REGIONALE IMPEGNATIVA DI CURA DOMICILIARE ICD B - 1 SEMESTRE 2023, ICD M e Mgs - 2 TRIMESTRE 2023 -;26/10/2023;3957;50;785;1;Spese correnti;4;Trasferimenti correnti;2;Trasferimenti correnti a Famiglie;2;Interventi assistenziali;999;Altri assegni e sussidi assistenziali;30/10/2023
3488;1;9999999;40.000,00;40.000,00;BARZON COSTRUZIONI GENERALI SRL;9778907158;ACCONTO Fatt.n. 19/01  del 09/10/2023 INTERVENTO DI RIQUALIFICAZIONE STRUTTURALE E PRESTAZIONALE DELLA PALESTRA DEL CAPOLUOGO. PNRR M5 C2 I.2.1;30/10/2023;8400;0;1122;2;Spese in conto capitale;2;Investimenti fissi lordi e acquisto di terreni;1;Beni materiali;9;Beni immobili;16;Impianti sportivi;02/11/2023
3489;1;9999999;113.789,36;113.789,36;BARZON COSTRUZIONI GENERALI SRL;9778907158;SALDO Fatt.n. 19/01  del 09/10/2023 INTERVENTO DI RIQUALIFICAZIONE STRUTTURALE E PRESTAZIONALE DELLA PALESTRA DEL CAPOLUOGO. PNRR M5 C2 I.2.1;30/10/2023;8400;0;1122;2;Spese in conto capitale;2;Investimenti fissi lordi e acquisto di terreni;1;Beni materiali;9;Beni immobili;16;Impianti sportivi;02/11/2023
3490;1;9999999;122;122;I.A.C.E. SRL;Z2C39B6912;SALDO Fatt.n. 1562/2023  del 09/10/2023 VERIFICA PERIODICA ASCENSORE SEDE MUNICIPALE;30/10/2023;548;0;82;1;Spese correnti;3;Acquisto di beni e servizi;2;Acquisto di servizi;9;Manutenzione ordinaria e riparazioni;4;Manutenzione ordinaria e riparazioni di impianti e macchinari;02/11/2023
3491;1;9999999;2.348,50;2.348,50;DANIELE LUCA - VIVAI PIANTE;Z573CF5DEF;SALDO Fatt.n. 77  del 25/10/2023 INTERVENTI DIFFUSI DI MESSA IN SICUREZZA DELLA VIABILITA COMUNALE IN SEGUITO AGLI EVENTI CALAMITOSI DEL 22 LUGLIO 2023- RIMOZIONE ALBERATURE;30/10/2023;2549;0;857;1;Spese correnti;3;Acquisto di beni e servizi;2;Acquisto di servizi;99;Altri servizi;9;Acquisto di sevizi per verde e arredo urbano;02/11/2023
3492;1;9999999;5,9;5,9;ENEL ENERGIA SPA;97224145D7;ACCONTO Fatt.n. 004372966634  del 06/10/2023 SETTEMBRE 2023 - CONSUMI CIMITERO CASELLE - LAMPADE VOTIVE;02/11/2023;134;30;312;1;Spese correnti;3;Acquisto di beni e servizi;2;Acquisto di servizi;5;Utenze e canoni;4;Energia elettrica;06/11/2023
3493;1;9999999;5,68;5,68;ENEL ENERGIA SPA;97224145D7;ACCONTO Fatt.n. 004372966639  del 06/10/2023 SETTEMBRE 2023 - CONSUMI CIMITERO VETERNIGO - LAMPADE VOTIVE;02/11/2023;134;30;312;1;Spese correnti;3;Acquisto di beni e servizi;2;Acquisto di servizi;5;Utenze e canoni;4;Energia elettrica;06/11/2023
3494;1;9999999;7,41;7,41;ENEL ENERGIA SPA;97224145D7;ACCONTO Fatt.n. 004373904789  del 07/10/2023 SETTEMBRE 2023 - CONSUMI CIMITERO SMS - LAMPADE VOTIVE;02/11/2023;134;30;312;1;Spese correnti;3;Acquisto di beni e servizi;2;Acquisto di servizi;5;Utenze e canoni;4;Energia elettrica;06/11/2023
3495;1;9999999;3,51;3,51;ENEL ENERGIA SPA;97224145D7;ACCONTO Fatt.n. 004380561698  del 12/10/2023 SETTEMBRE 2023 - CONSUMI CIMITERO S.ANGELO - LAMPADE VOTIVE;02/11/2023;134;30;312;1;Spese correnti;3;Acquisto di beni e servizi;2;Acquisto di servizi;5;Utenze e canoni;4;Energia elettrica;06/11/2023
3496;1;9999999;6,59;6,59;ENEL ENERGIA SPA;97224145D7;ACCONTO Fatt.n. 004372966627  del 06/10/2023 SETTEMBRE 2023 - CONSUMI CIMITERO CALTANA - LAMPADE VOTIVE;02/11/2023;134;30;312;1;Spese correnti;3;Acquisto di beni e servizi;2;Acquisto di servizi;5;Utenze e canoni;4;Energia elettrica;06/11/2023
3497;1;9999999;54,53;466,97;ENEL ENERGIA SPA;97224145D7;SALDO Fatt.n. 004378221117  del 10/10/2023 SETTEMBRE 2023 - CONSUMI PARCHEGGIO SMS;02/11/2023;134;31;313;1;Spese correnti;3;Acquisto di beni e servizi;2;Acquisto di servizi;5;Utenze e canoni;4;Energia elettrica;06/11/2023
3497;2;9999999;79,68;466,97;ENEL ENERGIA SPA;97224145D7;SALDO Fatt.n. 004373904788  del 07/10/2023 SETTEMBRE 2023 - CONSUMI FONTANA VETERNIGO;02/11/2023;134;31;313;1;Spese correnti;3;Acquisto di beni e servizi;2;Acquisto di servizi;5;Utenze e canoni;4;Energia elettrica;06/11/2023
3497;3;9999999;94,62;466,97;ENEL ENERGIA SPA;97224145D7;SALDO Fatt.n. 004375671659  del 09/10/2023 SETTEMBRE 2023 - CONSUMI  PARCHEGGIO C.C. PRISMA CASELLE;02/11/2023;134;31;313;1;Spese correnti;3;Acquisto di beni e servizi;2;Acquisto di servizi;5;Utenze e canoni;4;Energia elettrica;06/11/2023
3497;4;9999999;101,88;466,97;ENEL ENERGIA SPA;97224145D7;SALDO Fatt.n. 004373904792  del 07/10/2023 SETTEMBRE 2023 - CONSUMI  PARCHEGGIO OVALE SMS;02/11/2023;134;31;313;1;Spese correnti;3;Acquisto di beni e servizi;2;Acquisto di servizi;5;Utenze e canoni;4;Energia elettrica;06/11/2023
3497;5;9999999;136,26;466,97;ENEL ENERGIA SPA;97224145D7;SALDO Fatt.n. 004378221116  del 10/10/2023 SETTEMBRE 2023 - CONSUMI P.ZZA S.D.A. CALTANA;02/11/2023;134;31;313;1;Spese correnti;3;Acquisto di beni e servizi;2;Acquisto di servizi;5;Utenze e canoni;4;Energia elettrica;06/11/2023
3498;1;9999999;17,74;370,98;ENEL ENERGIA SPA;97224145D7;SALDO Fatt.n. 004372966638  del 06/10/2023 SETTEMBRE 2023 - CONSUMI IMMOBILE COMUNALE VIA OLIMPIA SMS;02/11/2023;134;31;313;1;Spese correnti;3;Acquisto di beni e servizi;2;Acquisto di servizi;5;Utenze e canoni;4;Energia elettrica;06/11/2023
3498;2;9999999;39,58;370,98;ENEL ENERGIA SPA;97224145D7;SALDO Fatt.n. 004372966630  del 06/10/2023 SETTEMBRE 2023 - CONSUMI VIA DON GALLERANI CALTANA;02/11/2023;134;31;313;1;Spese correnti;3;Acquisto di beni e servizi;2;Acquisto di servizi;5;Utenze e canoni;4;Energia elettrica;06/11/2023
3498;3;9999999;76,14;370,98;ENEL ENERGIA SPA;97224145D7;SALDO Fatt.n. 004372966637  del 06/10/2023 SETTEMBRE 2023 - CONSUMI MERCATO CALTANA;02/11/2023;134;31;313;1;Spese correnti;3;Acquisto di beni e servizi;2;Acquisto di servizi;5;Utenze e canoni;4;Energia elettrica;06/11/2023
3498;4;9999999;101,26;370,98;ENEL ENERGIA SPA;97224145D7;SALDO Fatt.n. 004372966640  del 06/10/2023 SETTEMBRE 2023 - CONSUMI MERCATO SMS;02/11/2023;134;31;313;1;Spese correnti;3;Acquisto di beni e servizi;2;Acquisto di servizi;5;Utenze e canoni;4;Energia elettrica;06/11/2023
3498;5;9999999;136,26;370,98;ENEL ENERGIA SPA;97224145D7;SALDO Fatt.n. 004372966629  del 06/10/2023 SETTEMBRE 2023 - CONSUMI MERCATO CASELLE;02/11/2023;134;31;313;1;Spese correnti;3;Acquisto di beni e servizi;2;Acquisto di servizi;5;Utenze e canoni;4;Energia elettrica;06/11/2023
3499;1;9999999;1.127,34;1.127,34;ENEL ENERGIA SPA;97224145D7;ACCONTO Fatt.n. 004375671658  del 09/10/2023 SETTEMBRE 2023 - CONSUMI SEDE MUNICIPALE;02/11/2023;134;31;313;1;Spese correnti;3;Acquisto di beni e servizi;2;Acquisto di servizi;5;Utenze e canoni;4;Energia elettrica;06/11/2023
3500;1;9999999;238,01;1.523,33;ENEL ENERGIA SPA;97224145D7;SALDO Fatt.n. 004373904794  del 07/10/2023 SETTEMBRE 2023 - CONSUMI SC. ELEM. CALTANA;02/11/2023;1334;30;314;1;Spese correnti;3;Acquisto di beni e servizi;2;Acquisto di servizi;5;Utenze e canoni;4;Energia elettrica;06/11/2023
3500;2;9999999;342,91;1.523,33;ENEL ENERGIA SPA;97224145D7;SALDO Fatt.n. 004372966636  del 06/10/2023 SETTEMBRE 2023 - CONSUMI SC. ELEM CASELLE;02/11/2023;1334;30;314;1;Spese correnti;3;Acquisto di beni e servizi;2;Acquisto di servizi;5;Utenze e canoni;4;Energia elettrica;06/11/2023
3500;3;9999999;942,41;1.523,33;ENEL ENERGIA SPA;97224145D7;SALDO Fatt.n. 004372966628  del 06/10/2023 SETTEMBRE 2023 - CONSUMI SC. ELEM - SC. MEDIA SMS;02/11/2023;1334;30;314;1;Spese correnti;3;Acquisto di beni e servizi;2;Acquisto di servizi;5;Utenze e canoni;4;Energia elettrica;06/11/2023
3501;1;9999999;183,07;183,07;ENEL ENERGIA SPA;97224145D7;SALDO Fatt.n. 004372966632  del 06/10/2023 SETTEMBRE 2023 - CONSUMI IMP. SPORT. PARROCCHIA CASELLE;02/11/2023;1334;30;314;1;Spese correnti;3;Acquisto di beni e servizi;2;Acquisto di servizi;5;Utenze e canoni;4;Energia elettrica;06/11/2023
3502;1;9999999;940,4;940,4;ENEL ENERGIA SPA;97224145D7;SALDO Fatt.n. 004372966641  del 06/10/2023 SETTEMBRE 2023 - CONSUMI IMP. SPORT. VETERNIGO;02/11/2023;1334;30;314;1;Spese correnti;3;Acquisto di beni e servizi;2;Acquisto di servizi;5;Utenze e canoni;4;Energia elettrica;06/11/2023
3503;1;9999999;1.194,84;1.194,84;ENEL ENERGIA SPA;97224145D7;SALDO Fatt.n. 004372966643  del 06/10/2023 SETTEMBRE 2023 - CONSUMI  IMP.SPORT. SMS;02/11/2023;1334;30;314;1;Spese correnti;3;Acquisto di beni e servizi;2;Acquisto di servizi;5;Utenze e canoni;4;Energia elettrica;06/11/2023
3504;1;9999999;160;160;ENEL ENERGIA SPA;97224145D7;ACCONTO Fatt.n. 004373904795  del 07/10/2023 SETTEMBRE 2023 - CONSUMI SC. ELEM. -  PALESTRA VETERNIGO;02/11/2023;1334;30;314;1;Spese correnti;3;Acquisto di beni e servizi;2;Acquisto di servizi;5;Utenze e canoni;4;Energia elettrica;06/11/2023
3505;1;9999999;261,03;261,03;ENEL ENERGIA SPA;97224145D7;ACCONTO Fatt.n. 004373904795  del 07/10/2023 SETTEMBRE 2023 - CONSUMI SC. ELEM. -  PALESTRA VETERNIGO;02/11/2023;1334;30;314;1;Spese correnti;3;Acquisto di beni e servizi;2;Acquisto di servizi;5;Utenze e canoni;4;Energia elettrica;06/11/2023
3506;1;9999999;198;198;ENEL ENERGIA SPA;97224145D7;ACCONTO Fatt.n. 004372966635  del 06/10/2023 SETTEMBRE 2023 - CONSUMI SC. ELEM - PALESTRA STIGLIANO;02/11/2023;1334;30;314;1;Spese correnti;3;Acquisto di beni e servizi;2;Acquisto di servizi;5;Utenze e canoni;4;Energia elettrica;06/11/2023
3507;1;9999999;132;132;ENEL ENERGIA SPA;97224145D7;ACCONTO Fatt.n. 004372966635  del 06/10/2023 SETTEMBRE 2023 - CONSUMI SC. ELEM - PALESTRA STIGLIANO;02/11/2023;1334;30;314;1;Spese correnti;3;Acquisto di beni e servizi;2;Acquisto di servizi;5;Utenze e canoni;4;Energia elettrica;06/11/2023
3508;1;9999999;141,6;141,6;ENEL ENERGIA SPA;97224145D7;SALDO Fatt.n. 004372966635  del 06/10/2023 SETTEMBRE 2023 - CONSUMI SC. ELEM - PALESTRA STIGLIANO;02/11/2023;1334;30;314;1;Spese correnti;3;Acquisto di beni e servizi;2;Acquisto di servizi;5;Utenze e canoni;4;Energia elettrica;06/11/2023
3509;1;9999999;186;186;ENEL ENERGIA SPA;97224145D7;ACCONTO Fatt.n. 004380561697  del 12/10/2023 SETTEMBRE 2023 - CONSUMI SC. ELEM - PALESTRA - ASILO S.ANGELO;02/11/2023;1334;30;314;1;Spese correnti;3;Acquisto di beni e servizi;2;Acquisto di servizi;5;Utenze e canoni;4;Energia elettrica;06/11/2023
3510;1;9999999;186;186;ENEL ENERGIA SPA;97224145D7;ACCONTO Fatt.n. 004380561697  del 12/10/2023 SETTEMBRE 2023 - CONSUMI SC. ELEM - PALESTRA - ASILO S.ANGELO;02/11/2023;1334;30;314;1;Spese correnti;3;Acquisto di beni e servizi;2;Acquisto di servizi;5;Utenze e canoni;4;Energia elettrica;06/11/2023
3511;1;9999999;556,87;556,87;ENEL ENERGIA SPA;97224145D7;SALDO Fatt.n. 004380561697  del 12/10/2023 SETTEMBRE 2023 - CONSUMI SC. ELEM - PALESTRA - ASILO S.ANGELO;02/11/2023;1334;30;314;1;Spese correnti;3;Acquisto di beni e servizi;2;Acquisto di servizi;5;Utenze e canoni;4;Energia elettrica;06/11/2023
3512;1;9999999;333,28;333,28;ENEL ENERGIA SPA;97224145D7;ACCONTO Fatt.n. 004374701064  del 08/10/2023 SETTEMBRE 2023 - CONSUMI PALESTRA CALTANA;02/11/2023;1334;30;314;1;Spese correnti;3;Acquisto di beni e servizi;2;Acquisto di servizi;5;Utenze e canoni;4;Energia elettrica;06/11/2023
3513;1;9999999;333,27;333,27;ENEL ENERGIA SPA;97224145D7;SALDO Fatt.n. 004374701064  del 08/10/2023 SETTEMBRE 2023 - CONSUMI PALESTRA CALTANA;02/11/2023;1334;30;314;1;Spese correnti;3;Acquisto di beni e servizi;2;Acquisto di servizi;5;Utenze e canoni;4;Energia elettrica;06/11/2023
3514;1;9999999;176,48;176,48;ENEL ENERGIA SPA;97224145D7;ACCONTO Fatt.n. 004372966633  del 06/10/2023 SETTEMBRE 2023 - CONSUMI PALESTRA SMS;02/11/2023;1334;30;314;1;Spese correnti;3;Acquisto di beni e servizi;2;Acquisto di servizi;5;Utenze e canoni;4;Energia elettrica;06/11/2023
3515;1;9999999;176,49;176,49;ENEL ENERGIA SPA;97224145D7;SALDO Fatt.n. 004372966633  del 06/10/2023 SETTEMBRE 2023 - CONSUMI PALESTRA SMS;02/11/2023;1334;30;314;1;Spese correnti;3;Acquisto di beni e servizi;2;Acquisto di servizi;5;Utenze e canoni;4;Energia elettrica;06/11/2023
3516;1;9999999;68,74;68,74;ENEL ENERGIA SPA;97224145D7;ACCONTO Fatt.n. 004373904790  del 07/10/2023 SETTEMBRE 2023 - CONSUMI PALESTRA CASELLE;02/11/2023;1334;30;314;1;Spese correnti;3;Acquisto di beni e servizi;2;Acquisto di servizi;5;Utenze e canoni;4;Energia elettrica;06/11/2023
3517;1;9999999;68,73;68,73;ENEL ENERGIA SPA;97224145D7;SALDO Fatt.n. 004373904790  del 07/10/2023 SETTEMBRE 2023 - CONSUMI PALESTRA CASELLE;02/11/2023;1334;30;314;1;Spese correnti;3;Acquisto di beni e servizi;2;Acquisto di servizi;5;Utenze e canoni;4;Energia elettrica;06/11/2023
3518;1;9999999;811,58;811,58;ENEL ENERGIA SPA;97224145D7;SALDO Fatt.n. 004373904791  del 07/10/2023 SETTEMBRE 2023 - CONSUMI VILLA FARSETTI;02/11/2023;1834;0;315;1;Spese correnti;3;Acquisto di beni e servizi;2;Acquisto di servizi;5;Utenze e canoni;4;Energia elettrica;06/11/2023
3519;1;9999999;74,64;74,64;ENEL ENERGIA SPA;97224145D7;ACCONTO Fatt.n. 004372966627  del 06/10/2023 SETTEMBRE 2023 - CONSUMI CIMITERO CALTANA - LAMPADE VOTIVE;02/11/2023;1834;0;315;1;Spese correnti;3;Acquisto di beni e servizi;2;Acquisto di servizi;5;Utenze e canoni;4;Energia elettrica;06/11/2023
3520;1;9999999;36,04;36,04;ENEL ENERGIA SPA;97224145D7;SALDO Fatt.n. 004372966631  del 06/10/2023 SETTEMBRE 2023 - CONSUMI CALCETTO CASELLE;02/11/2023;1934;0;316;1;Spese correnti;3;Acquisto di beni e servizi;2;Acquisto di servizi;5;Utenze e canoni;4;Energia elettrica;06/11/2023
3521;1;9999999;170,35;170,35;ENEL ENERGIA SPA;97224145D7;SALDO Fatt.n. 004373904793  del 07/10/2023 SETTEMBRE 2023 - CONSUMI CAMPO DA CALCIO SMS;02/11/2023;1934;0;316;1;Spese correnti;3;Acquisto di beni e servizi;2;Acquisto di servizi;5;Utenze e canoni;4;Energia elettrica;06/11/2023
3522;1;9999999;263,54;263,54;ENEL ENERGIA SPA;97224145D7;SALDO Fatt.n. 004372966642  del 06/10/2023 SETTEMBRE 2023 - CONSUMI IMP. SPORT. CALTANA;02/11/2023;1934;0;316;1;Spese correnti;3;Acquisto di beni e servizi;2;Acquisto di servizi;5;Utenze e canoni;4;Energia elettrica;06/11/2023
3523;1;9999999;160;160;ENEL ENERGIA SPA;97224145D7;SALDO Fatt.n. 004373904795  del 07/10/2023 SETTEMBRE 2023 - CONSUMI SC. ELEM. -  PALESTRA VETERNIGO;02/11/2023;1934;0;316;1;Spese correnti;3;Acquisto di beni e servizi;2;Acquisto di servizi;5;Utenze e canoni;4;Energia elettrica;06/11/2023
3524;1;9999999;267,72;267,72;ENEL ENERGIA SPA;97224145D7;SALDO Fatt.n. 004374701063  del 08/10/2023 SETTEMBRE 2023 - CONSUMI MAGAZZINO COMUNALE;02/11/2023;3534;0;318;1;Spese correnti;3;Acquisto di beni e servizi;2;Acquisto di servizi;5;Utenze e canoni;4;Energia elettrica;06/11/2023
3525;1;9999999;353,06;353,06;ENEL ENERGIA SPA;97224145D7;SALDO Fatt.n. 004375671658  del 09/10/2023 SETTEMBRE 2023 - CONSUMI SEDE MUNICIPALE;02/11/2023;3534;0;318;1;Spese correnti;3;Acquisto di beni e servizi;2;Acquisto di servizi;5;Utenze e canoni;4;Energia elettrica;06/11/2023
3526;1;9999999;64,1;64,1;ENEL ENERGIA SPA;97224145D7;SALDO Fatt.n. 004372966625  del 06/10/2023 SETTEMBRE 2023 - CONSUMI ECOCENTRO COMUNALE;02/11/2023;3534;0;318;1;Spese correnti;3;Acquisto di beni e servizi;2;Acquisto di servizi;5;Utenze e canoni;4;Energia elettrica;06/11/2023
3527;1;9999999;360,72;19.814,87;ENEL ENERGIA SPA;97224145D7;SALDO Fatt.n. 004381115179  del 14/10/2023 SETTEMBRE 2023 - CONSUMI ILLUMINAZIONE PUBBLICA;02/11/2023;3544;0;321;1;Spese correnti;3;Acquisto di beni e servizi;2;Acquisto di servizi;15;Contratti di servizio pubblico;15;Contratti di servizio per l'illuminazione pubblica;06/11/2023
3527;2;9999999;3.736,40;19.814,87;ENEL ENERGIA SPA;97224145D7;SALDO Fatt.n. 004381115180  del 14/10/2023 SETTEMBRE 2023 - CONSUMI ILLUMINAZIONE PUBBLICA;02/11/2023;3544;0;321;1;Spese correnti;3;Acquisto di beni e servizi;2;Acquisto di servizi;15;Contratti di servizio pubblico;15;Contratti di servizio per l'illuminazione pubblica;06/11/2023
3527;3;9999999;15.717,75;19.814,87;ENEL ENERGIA SPA;97224145D7;SALDO Fatt.n. 004381115178  del 14/10/2023 SETTEMBRE 2023 - CONSUMI ILLUMINAZIONE PUBBLICA;02/11/2023;3544;0;321;1;Spese correnti;3;Acquisto di beni e servizi;2;Acquisto di servizi;15;Contratti di servizio pubblico;15;Contratti di servizio per l'illuminazione pubblica;06/11/2023
3528;1;9999999;527,98;527,98;ENEL ENERGIA SPA;97224145D7;SALDO Fatt.n. 004375671657  del 09/10/2023 SETTEMBRE 2023 - CONSUMI VILLA FARSETTI;02/11/2023;4234;0;319;1;Spese correnti;3;Acquisto di beni e servizi;2;Acquisto di servizi;5;Utenze e canoni;4;Energia elettrica;06/11/2023
3529;1;9999999;56;56;ENEL ENERGIA SPA;97224145D7;SALDO Fatt.n. 004372966634  del 06/10/2023 SETTEMBRE 2023 - CONSUMI CIMITERO CASELLE - LAMPADE VOTIVE;02/11/2023;4234;0;319;1;Spese correnti;3;Acquisto di beni e servizi;2;Acquisto di servizi;5;Utenze e canoni;4;Energia elettrica;06/11/2023
3530;1;9999999;38;38;ENEL ENERGIA SPA;97224145D7;SALDO Fatt.n. 004372966639  del 06/10/2023 SETTEMBRE 2023 - CONSUMI CIMITERO VETERNIGO - LAMPADE VOTIVE;02/11/2023;4234;0;319;1;Spese correnti;3;Acquisto di beni e servizi;2;Acquisto di servizi;5;Utenze e canoni;4;Energia elettrica;06/11/2023
3531;1;9999999;47;47;ENEL ENERGIA SPA;97224145D7;SALDO Fatt.n. 004373904789  del 07/10/2023 SETTEMBRE 2023 - CONSUMI CIMITERO SMS - LAMPADE VOTIVE;02/11/2023;4234;0;319;1;Spese correnti;3;Acquisto di beni e servizi;2;Acquisto di servizi;5;Utenze e canoni;4;Energia elettrica;06/11/2023
3532;1;9999999;40;40;ENEL ENERGIA SPA;97224145D7;SALDO Fatt.n. 004380561698  del 12/10/2023 SETTEMBRE 2023 - CONSUMI CIMITERO S.ANGELO - LAMPADE VOTIVE;02/11/2023;4234;0;319;1;Spese correnti;3;Acquisto di beni e servizi;2;Acquisto di servizi;5;Utenze e canoni;4;Energia elettrica;06/11/2023
3533;1;9999999;15,08;15,08;ENEL ENERGIA SPA;97224145D7;ACCONTO Fatt.n. 004372966627  del 06/10/2023 SETTEMBRE 2023 - CONSUMI CIMITERO CALTANA - LAMPADE VOTIVE;02/11/2023;4234;0;319;1;Spese correnti;3;Acquisto di beni e servizi;2;Acquisto di servizi;5;Utenze e canoni;4;Energia elettrica;06/11/2023
3534;1;9999999;41,87;41,87;ENEL ENERGIA SPA;97224145D7;SALDO Fatt.n. 004372966626  del 06/10/2023 SETTEMBRE 2023 - CONSUMI CIMITERO STIGLIANO - LAMPADE VOTIVE;02/11/2023;4434;0;320;1;Spese correnti;3;Acquisto di beni e servizi;2;Acquisto di servizi;5;Utenze e canoni;4;Energia elettrica;06/11/2023
3535;1;9999999;74,28;74,28;ENEL ENERGIA SPA;97224145D7;SALDO Fatt.n. 004372966627  del 06/10/2023 SETTEMBRE 2023 - CONSUMI CIMITERO CALTANA - LAMPADE VOTIVE;02/11/2023;4434;0;320;1;Spese correnti;3;Acquisto di beni e servizi;2;Acquisto di servizi;5;Utenze e canoni;4;Energia elettrica;06/11/2023
3536;1;9999999;300;300;ASSOCIAZIONE AICS  - COMITATO PROVINCIALE DI VENEZIA APS; ;PROGETTO IN OCCASIONE DELLA GIORNATA MONDIALE DELLA SALUTE MENTALE - ANNO 2023;02/11/2023;4059;0;801;1;Spese correnti;4;Trasferimenti correnti;4;Trasferimenti correnti a Istituzioni Sociali Private;1;Trasferimenti correnti a Istituzioni Sociali Private;1;Trasferimenti correnti a Istituzioni Sociali Private;06/11/2023
3538;1;9999999;29,67;29,67;C/C/P 15453301 SERVIZIO DI TESORERIA COM; ;SPESE GESTIONE CONTO CORRENTE  POSTALE 15453301 OTTOBRE 2023;02/11/2023;146;0;52;1;Spese correnti;3;Acquisto di beni e servizi;2;Acquisto di servizi;17;Servizi finanziari;999;Spese per servizi finanziari n.a.c.;07/11/2023
3539;1;9999999;300;300;OMESSO NOMINATIVO NEL RISPETTO DELLA NORMATIVA SULLA PROTEZIONE DATI PERSONALI; ;NOVEMBRE/DICEMBRE 2023 AFFIDO FAMILIARE;02/11/2023;3757;50;680;1;Spese correnti;4;Trasferimenti correnti;2;Trasferimenti correnti a Famiglie;2;Interventi assistenziali;999;Altri assegni e sussidi assistenziali;07/11/2023
3540;1;9999999;150;150;OMESSO NOMINATIVO NEL RISPETTO DELLA NORMATIVA SULLA PROTEZIONE DATI PERSONALI; ;NOVEMBRE 2023 AFFIDO FAMILIARE;02/11/2023;3757;50;619;1;Spese correnti;4;Trasferimenti correnti;2;Trasferimenti correnti a Famiglie;2;Interventi assistenziali;999;Altri assegni e sussidi assistenziali;07/11/2023
3541;1;9999999;136,64;2.100,87;TIM SPA - TELECOM ITALIA SPA;ZE027DF92B;SALDO Fatt.n. 4220423800062866  del 11/10/2023 PERIODO 6 AGO-SETT 2023 ATTIVAZIONE PER DSL PROFESSIONAL;02/11/2023;134;0;179;1;Spese correnti;3;Acquisto di beni e servizi;2;Acquisto di servizi;5;Utenze e canoni;999;Utenze e canoni per altri servizi n.a.c.;07/11/2023
3541;2;9999999;866,25;2.100,87;TIM SPA - TELECOM ITALIA SPA;ZA738154E0;SALDO Fatt.n. 8E00868145  del 11/10/2023 PERIODO 6 AGO-SETT 2023 CONNETTIVITA FIBRA GBE;02/11/2023;134;0;179;1;Spese correnti;3;Acquisto di beni e servizi;2;Acquisto di servizi;5;Utenze e canoni;999;Utenze e canoni per altri servizi n.a.c.;07/11/2023
3541;3;9999999;1.097,98;2.100,87;TIM SPA - TELECOM ITALIA SPA;ZE027DF92B;SALDO Fatt.n. 4220423800063232  del 11/10/2023 PERIODO 6 AGO-SETT 2023 - CONNETTIVITA FIBRA GBE;02/11/2023;134;0;179;1;Spese correnti;3;Acquisto di beni e servizi;2;Acquisto di servizi;5;Utenze e canoni;999;Utenze e canoni per altri servizi n.a.c.;07/11/2023
3542;1;9999999;79,3;1.266,47;TIM SPA - TELECOM ITALIA SPA;Z502F0ADA2;SALDO Fatt.n. 8E00867949  del 11/10/2023 PERIODO 6 AGO-SETT 2023 - FAX SEDE MUNICIPALE;02/11/2023;134;0;944;1;Spese correnti;3;Acquisto di beni e servizi;2;Acquisto di servizi;5;Utenze e canoni;1;Telefonia fissa;07/11/2023
3542;2;9999999;79,3;1.266,47;TIM SPA - TELECOM ITALIA SPA;Z502F0ADA2;SALDO Fatt.n. 8E00869461  del 11/10/2023 PERIODO 6 AGO-SETT 2023 - FAX BIBLIOTECA;02/11/2023;134;0;944;1;Spese correnti;3;Acquisto di beni e servizi;2;Acquisto di servizi;5;Utenze e canoni;1;Telefonia fissa;07/11/2023
3542;3;9999999;79,3;1.266,47;TIM SPA - TELECOM ITALIA SPA;Z502F0ADA2;SALDO Fatt.n. 8E00870621  del 11/10/2023 PERIODO 6 AGO-SETT 2023 UTENZA CENTRO PRELIEVI;02/11/2023;134;0;944;1;Spese correnti;3;Acquisto di beni e servizi;2;Acquisto di servizi;5;Utenze e canoni;1;Telefonia fissa;07/11/2023
3542;4;9999999;103,7;1.266,47;TIM SPA - TELECOM ITALIA SPA;Z502F0ADA2;SALDO Fatt.n. 8E00866732  del 11/10/2023 PERIODO 6 AGO-SETT 2023 FAX POLIZIA LOCALE;02/11/2023;134;0;944;1;Spese correnti;3;Acquisto di beni e servizi;2;Acquisto di servizi;5;Utenze e canoni;1;Telefonia fissa;07/11/2023
3542;5;9999999;115,9;1.266,47;TIM SPA - TELECOM ITALIA SPA;Z502F0ADA2;SALDO Fatt.n. 8E00866417  del 11/10/2023 PERIODO 6 AGO-SETT 2023 UTENZA SERVIZI SOCIALI;02/11/2023;134;0;944;1;Spese correnti;3;Acquisto di beni e servizi;2;Acquisto di servizi;5;Utenze e canoni;1;Telefonia fissa;07/11/2023
3542;6;9999999;125,68;1.266,47;TIM SPA - TELECOM ITALIA SPA;Z502F0ADA2;SALDO Fatt.n. 8E00865458  del 11/10/2023 PERIODO 6 AGO-SETT 2023 UTENZA SEDE MUNICIPALE;02/11/2023;134;0;944;1;Spese correnti;3;Acquisto di beni e servizi;2;Acquisto di servizi;5;Utenze e canoni;1;Telefonia fissa;07/11/2023
3542;7;9999999;134,2;1.266,47;TIM SPA - TELECOM ITALIA SPA;Z502F0ADA2;SALDO Fatt.n. 8E00867952  del 11/10/2023 PERIODO 6 AGO-SETT 2023 - UTENZA POLIZIA LOCALE;02/11/2023;134;0;944;1;Spese correnti;3;Acquisto di beni e servizi;2;Acquisto di servizi;5;Utenze e canoni;1;Telefonia fissa;07/11/2023
3542;8;9999999;134,2;1.266,47;TIM SPA - TELECOM ITALIA SPA;Z502F0ADA2;SALDO Fatt.n. 8E00867976  del 11/10/2023 PERIODO 6 AGO-SETT 2023 - UTENZA BIBLIOTECA COMUNALE;02/11/2023;134;0;944;1;Spese correnti;3;Acquisto di beni e servizi;2;Acquisto di servizi;5;Utenze e canoni;1;Telefonia fissa;07/11/2023
3542;9;9999999;134,2;1.266,47;TIM SPA - TELECOM ITALIA SPA;Z502F0ADA2;SALDO Fatt.n. 8E00869753  del 11/10/2023 PERIODO 6 AGO-SETT 2023 - UTENZA SEDE MUNICIPALE;02/11/2023;134;0;944;1;Spese correnti;3;Acquisto di beni e servizi;2;Acquisto di servizi;5;Utenze e canoni;1;Telefonia fissa;07/11/2023
3542;10;9999999;134,29;1.266,47;TIM SPA - TELECOM ITALIA SPA;Z502F0ADA2;SALDO Fatt.n. 8E00869460  del 11/10/2023 PERIODO 6 AGO-SETT 2023 UTENZA SEDE MUNICIPALE;02/11/2023;134;0;944;1;Spese correnti;3;Acquisto di beni e servizi;2;Acquisto di servizi;5;Utenze e canoni;1;Telefonia fissa;07/11/2023
3542;11;9999999;146,4;1.266,47;TIM SPA - TELECOM ITALIA SPA;Z502F0ADA2;SALDO Fatt.n. 8E00869009  del 11/10/2023 PERIODO 6 AGO-SETT 2023 FAX CENTRO PRELIEVI;02/11/2023;134;0;944;1;Spese correnti;3;Acquisto di beni e servizi;2;Acquisto di servizi;5;Utenze e canoni;1;Telefonia fissa;07/11/2023
3543;1;9999999;440,78;440,78;TIM SPA - TELECOM ITALIA SPA;ZC0320B772;SALDO Fatt.n. 7X04812029  del 11/10/2023 PERIODO 6 AGO-SETT 2023 CONVENZIONE CONSIP TELEFONIA MOBILE 8;02/11/2023;134;32;178;1;Spese correnti;3;Acquisto di beni e servizi;2;Acquisto di servizi;5;Utenze e canoni;2;Telefonia mobile;07/11/2023
3544;1;9999999;3.927,33;3.927,33;COOP.SOCIALE LIBERTA' ONLUS;Z673AAF407;SALDO Fatt.n. 943  del 30/09/2023 SERVIZIO DI PULIZIA E SANIFICAZIONE UFFICI COMUNALI SETTEMBRE 2023;02/11/2023;142;0;384;1;Spese correnti;3;Acquisto di beni e servizi;2;Acquisto di servizi;13;Servizi ausiliari per il funzionamento dell'ente;2;Servizi di pulizia e lavanderia;07/11/2023
3545;1;9999999;2.347,95;2.347,95;ABACO S.P.A.;766214493F;SALDO Fatt.n. 2023120005151  del 09/10/2023 AGGIO CUP - ESPOSIZIONI PUBBLICITARIE RENDICONTO SETTEMBRE 2023 CIG.766214493F;02/11/2023;332;0;1228;1;Spese correnti;3;Acquisto di beni e servizi;2;Acquisto di servizi;3;Aggi di riscossione;999;Altri aggi di riscossione n.a.c.;07/11/2023
3546;1;9999999;140,3;140,3;VEDETTA 2 MONDIALPOL SPA;ZD032B120B;SALDO Fatt.n. V9-3270  del 11/10/2023 SETTEMBRE 2023 SERVIZIO DI VIGILANZA MAGAZZINO -PROTEZIONE CIVILE V.LE FERRARIS - VILLA FARSETTI;02/11/2023;548;0;688;1;Spese correnti;3;Acquisto di beni e servizi;2;Acquisto di servizi;9;Manutenzione ordinaria e riparazioni;8;Manutenzione ordinaria e riparazioni di beni immobili;07/11/2023
3547;1;9999999;5.111,80;5.111,80;ASTON ENERGY SRL;ZAC3C6885A;SALDO Fatt.n. 000077/PA  del 09/10/2023 SOSTITUZIONE DELLE BATTERIE DEI GRUPPI STATICI DI CONTINUITA DELLA SEDE MUNICIPALE;02/11/2023;548;0;689;1;Spese correnti;3;Acquisto di beni e servizi;2;Acquisto di servizi;9;Manutenzione ordinaria e riparazioni;11;Manutenzione ordinaria e riparazioni di altri beni materiali;07/11/2023
3548;1;9999999;1.573,80;1.573,80;FORNITECNICA S.R.L.;ZA934CBAAD;SALDO Fatt.n. 000265PA23  del 10/10/2023 COSTO COPIA PERIODO OTTOBRE - DICEMBRE 2023;02/11/2023;748;0;62;1;Spese correnti;3;Acquisto di beni e servizi;2;Acquisto di servizi;19;Servizi informatici e di telecomunicazioni;9;Servizi per le postazioni di lavoro e relativa manutenzione;07/11/2023
3549;1;9999999;381,47;381,47;CANON ITALIA S.P.A.;Z03356BDFB;SALDO Fatt.n. 2307900089193  del 04/10/2023 ADESIONE CONVENZIONE CONSIP MULTIFUNZIONE A NOLEGGIO - PERIODO DAL 1 LUGLIO AL 30 SETTEMBRE 2023;02/11/2023;748;0;227;1;Spese correnti;3;Acquisto di beni e servizi;2;Acquisto di servizi;19;Servizi informatici e di telecomunicazioni;9;Servizi per le postazioni di lavoro e relativa manutenzione;07/11/2023
3550;1;9999999;408,4;408,4;EGAF EDIZIONI SRL;Z1A3C9B8F3;SALDO Fatt.n. 2023-V-VS2-1172  del 11/10/2023 ACQUISTO ABBONAMENTO AL PRONTUARIO VIOLAZIONI AL CODICE DELLA STRADA E PRODOTTI CORRELATI ANNO 2024 PER POLIZIA LOCALE;02/11/2023;1121;6;814;1;Spese correnti;3;Acquisto di beni e servizi;1;Acquisto di beni;2;Altri beni di consumo;14;Stampati specialistici;07/11/2023
3551;1;9999999;507,52;507,52;PIEROBON DIEGO;ZCC3C6E356;SALDO Fatt.n. 4/PA  del 10/10/2023 PREDISPOSIZIONE E  REDAZIONE DUVRI RELATIVO ALLE ATTIVITA DI VIGILANZA PRESSO LE SCUOLE- PRESCUOLA E SUPPORTO ALLA POPOLAZIONE MINORILE;02/11/2023;1257;0;648;1;Spese correnti;4;Trasferimenti correnti;4;Trasferimenti correnti a Istituzioni Sociali Private;1;Trasferimenti correnti a Istituzioni Sociali Private;1;Trasferimenti correnti a Istituzioni Sociali Private;07/11/2023
3552;1;9999999;237,68;3.722,07;DUSSMANN SERVICE SRL;90957312AC;SALDO Fatt.n. 32346936  del 30/09/2023 SETTEMBRE 2023 - PASTI SCUOLA MATERNA S. ANGELO BAMBINI E INSEGNANTI;02/11/2023;1344;0;149;1;Spese correnti;3;Acquisto di beni e servizi;2;Acquisto di servizi;15;Contratti di servizio pubblico;6;Contratti di servizio per le mense scolastiche;07/11/2023
3552;2;9999999;366;3.722,07;DUSSMANN SERVICE SRL;90957312AC;SALDO Fatt.n. 32346948  del 30/09/2023 ONERI DELLA SICUREZZA SU CONTRATTO MENSA SCOLASTICA PERIODO 2023-2024;02/11/2023;1344;0;149;1;Spese correnti;3;Acquisto di beni e servizi;2;Acquisto di servizi;15;Contratti di servizio pubblico;6;Contratti di servizio per le mense scolastiche;07/11/2023
3552;3;9999999;3.118,39;3.722,07;DUSSMANN SERVICE SRL;90957312AC;SALDO Fatt.n. 32346937  del 30/09/2023 SETTEMBRE 2023 - PASTI SCUOLE ELEMENTARI BAMBINI E INSEGNANTI;02/11/2023;1344;0;149;1;Spese correnti;3;Acquisto di beni e servizi;2;Acquisto di servizi;15;Contratti di servizio pubblico;6;Contratti di servizio per le mense scolastiche;07/11/2023
3553;1;9999999;386,93;386,93;CARTOLIBRERIA LAMON; ;SALDO Fatt.n. 101  del 17/10/2023 FORNITURA LIBRI DI TESTO PER SCUOLE ELEMENTARI A.S. 2023-2024;02/11/2023;1357;0;555;1;Spese correnti;4;Trasferimenti correnti;2;Trasferimenti correnti a Famiglie;5;Altri trasferimenti a famiglie;999;Altri trasferimenti a famiglie n.a.c.;07/11/2023
3554;1;9999999;52,68;52,68;BARZON MARINA; ;SALDO Fatt.n. 24  del 27/10/2023 FORNITURA LIBRI DI TESTO PER SCUOLE ELEMENTARI A.S. 2023-2024;02/11/2023;1357;0;555;1;Spese correnti;4;Trasferimenti correnti;2;Trasferimenti correnti a Famiglie;5;Altri trasferimenti a famiglie;999;Altri trasferimenti a famiglie n.a.c.;07/11/2023
3555;1;9999999;26,4;26,4;BOESSO DI SIMIONATO MARTA CARTOLERIA; ;SALDO Fatt.n. 14/PA  del 24/10/2023 FORNITURA LIBRI DI TESTO PER SCUOLE ELEMENTARI A.S. 2023-2024;02/11/2023;1357;0;555;1;Spese correnti;4;Trasferimenti correnti;2;Trasferimenti correnti a Famiglie;5;Altri trasferimenti a famiglie;999;Altri trasferimenti a famiglie n.a.c.;07/11/2023
3556;1;9999999;77,36;77,36;FORNITURE UFFICIO DI VALENTINA ROSIN; ;SALDO Fatt.n. 1148  del 26/10/2023 FORNITURA LIBRI DI TESTO PER SCUOLE ELEMENTARI A.S. 2023-2024;02/11/2023;1357;0;555;1;Spese correnti;4;Trasferimenti correnti;2;Trasferimenti correnti a Famiglie;5;Altri trasferimenti a famiglie;999;Altri trasferimenti a famiglie n.a.c.;07/11/2023
3557;1;9999999;1.268,80;1.268,80;BUGGIN ANTONIO;Z373A8A984;SALDO Fatt.n. FATTPA 3223  del 10/10/2023 REDAZIONE DELLA VARIANTE URBANISTICA AL PIANO DEGLI INTERVENTI PER LA REALIIZZAZIONE ASILO NIDO PER PROGETTO PNRR;03/11/2023;540;0;340;1;Spese correnti;3;Acquisto di beni e servizi;2;Acquisto di servizi;11;Prestazioni professionali e specialistiche;999;Altre prestazioni professionali e specialistiche n.a.c.;07/11/2023
3558;1;9999999;732;732;ASTON ENERGY SRL;Z623507EF3;SALDO Fatt.n. 000078/PA  del 09/10/2023 MANUTENZIONE DEL GRUPPO STATICO DI CONTINUITA DELLA SEDE MUNICIPALE;03/11/2023;548;0;131;1;Spese correnti;3;Acquisto di beni e servizi;2;Acquisto di servizi;9;Manutenzione ordinaria e riparazioni;4;Manutenzione ordinaria e riparazioni di impianti e macchinari;07/11/2023
3559;1;9999999;10.473,67;10.473,67;BONAVENTURA EXPRESS SRL;8704892021;SALDO Fatt.n. 424PA  del 05/10/2023 TRASPORTO SCOLASTICO SETTEMBRE 2023;03/11/2023;1344;0;388;1;Spese correnti;3;Acquisto di beni e servizi;2;Acquisto di servizi;15;Contratti di servizio pubblico;2;Contratti di servizio di trasporto scolastico;07/11/2023
3560;1;9999999;16.932,91;16.932,91;BOESSO DI SIMIONATO MARTA CARTOLERIA; ;SALDO Fatt.n. 13/PA  del 24/10/2023 FORNITURA LIBRI DI TESTO PER SCUOLE ELEMENTARI A.S. 2023-2024;03/11/2023;1357;0;555;1;Spese correnti;4;Trasferimenti correnti;2;Trasferimenti correnti a Famiglie;5;Altri trasferimenti a famiglie;999;Altri trasferimenti a famiglie n.a.c.;07/11/2023
3561;1;9999999;20.083,60;20.083,60;RB ENGINEERING SRL;94073685A8;SALDO Fatt.n. 260  del 16/10/2023 PROGETTAZIONE DEFINITIVA ED ESECUTIVA, DIREZIONE LAVORI, COORDINAMENTO SICUREZZA PER INTERVENTO DI EFFICIENTAMENTO ENERGETICO DELLA SALA TEATRALE PER   PNRR - FINANZIATO DALLUNIONE EUROPEA - NEXTGENERATIONEU - RISORS;03/11/2023;7401;0;762;2;Spese in conto capitale;2;Investimenti fissi lordi e acquisto di terreni;1;Beni materiali;10;Beni immobili di valore culturale, storico ed artistico;999;Beni immobili di valore culturale, storico ed artistico n.a.c.;07/11/2023
3562;1;9999999;246,57;246,57;ABACO S.P.A.;766214493F;SALDO Fatt.n. 2023140003961  del 06/10/2023 AGGIO SU RISCOSSIONI - ICI IMU T ASI LOTTO 10-11-12-13-14-15-16-17-18- 19-20DET . 788-19 RENDICONTO SETTEMBRE 2023 CIG 766214493F;06/11/2023;332;0;122;1;Spese correnti;3;Acquisto di beni e servizi;2;Acquisto di servizi;3;Aggi di riscossione;999;Altri aggi di riscossione n.a.c.;09/11/2023
3563;1;9999999;114,78;114,78;MEB SRL;ZC839D1F3A;ACCONTO Fatt.n. 049934  del 30/09/2023 MATERIALE ELETTRICO PER MANUTENZIONI;06/11/2023;521;0;98;1;Spese correnti;3;Acquisto di beni e servizi;1;Acquisto di beni;2;Altri beni di consumo;999;Altri beni e materiali di consumo n.a.c.;09/11/2023
3564;1;9999999;43,21;43,21;MEB SRL;ZC839D1F3A;SALDO Fatt.n. 049934  del 30/09/2023 MATERIALE ELETTRICO PER MANUTENZIONI;06/11/2023;1338;0;97;1;Spese correnti;3;Acquisto di beni e servizi;2;Acquisto di servizi;9;Manutenzione ordinaria e riparazioni;4;Manutenzione ordinaria e riparazioni di impianti e macchinari;09/11/2023
3565;1;9999999;122;1.403,00;DEPURACQUE SERVIZI SRL;Z1D3C7C2C7;SALDO Fatt.n. 000032/PA  del 14/10/2023 FORNITURA DI N 02 FUSTI IN FERRO DA LT. 217 PER OPERAZIONI DI ASSORBIMENTO DI SOSTANZE INQUINANTI PRESSO LO SCOLO LUSORE;06/11/2023;3538;0;788;1;Spese correnti;3;Acquisto di beni e servizi;2;Acquisto di servizi;9;Manutenzione ordinaria e riparazioni;8;Manutenzione ordinaria e riparazioni di beni immobili;09/11/2023
3565;2;9999999;1.281,00;1.403,00;DEPURACQUE SERVIZI SRL;Z1D3C7C2C7;SALDO Fatt.n. 000030/PA  del 14/10/2023 RITIRO E SMALTIMENTO PANNE ASSORBENTI PER OPERAZIONI DI ASSORBIMENTO DI SOSTANZE INQUINANTI PRESSO LO SCOLO LUSORE;06/11/2023;3538;0;788;1;Spese correnti;3;Acquisto di beni e servizi;2;Acquisto di servizi;9;Manutenzione ordinaria e riparazioni;8;Manutenzione ordinaria e riparazioni di beni immobili;09/11/2023
3566;1;9999999;183;1.464,00;DEPURACQUE SERVIZI SRL;Z653C7DC11;SALDO Fatt.n. 000031/PA  del 14/10/2023 FORNITURA DI N 03 FUSTI IN FERRO DA LT. 217 PER SVERSAMENTO DI OLIO IN UN FOSSATO COMUNALE A SEGUITO INCIDENTE;06/11/2023;3538;0;789;1;Spese correnti;3;Acquisto di beni e servizi;2;Acquisto di servizi;9;Manutenzione ordinaria e riparazioni;8;Manutenzione ordinaria e riparazioni di beni immobili;09/11/2023
3566;2;9999999;1.281,00;1.464,00;DEPURACQUE SERVIZI SRL;Z653C7DC11;SALDO Fatt.n. 000029/PA  del 14/10/2023 RITIRO E SMALTIMENTO PANNE ASSORBENTI PER SVERSAMENTO DI OLIO NEL FOSSATO COMUNALE A SEGUITO INCIDENTE.;06/11/2023;3538;0;789;1;Spese correnti;3;Acquisto di beni e servizi;2;Acquisto di servizi;9;Manutenzione ordinaria e riparazioni;8;Manutenzione ordinaria e riparazioni di beni immobili;09/11/2023
3567;1;9999999;1.452,01;1.452,01;ARTEA  SNC DI LION & SALVIATO;90182921FD;SALDO Fatt.n. 23-2023/PA  del 15/10/2023 OPERAZIONI EFFETTUATE NEI CIMITERI DEL COMUNE DI SANTA MARIA DI SALA NEL MESE DI SETTEMBRE 2023;06/11/2023;4438;0;1152;1;Spese correnti;3;Acquisto di beni e servizi;2;Acquisto di servizi;9;Manutenzione ordinaria e riparazioni;8;Manutenzione ordinaria e riparazioni di beni immobili;09/11/2023
3568;1;9999999;4.056,00;4.056,00;BASSO EMANUELA;ZC0344D253;SALDO Fatt.n. 8  del 26/09/2023 PROGETTAZIONE ESECUTIVA E DIREZIONE LAVORI MESSA IN SICUREZZA MOBILITA VIARIA E PEDONALE NEL TERRITORIO COMUNALE;06/11/2023;8558;0;1110;2;Spese in conto capitale;2;Investimenti fissi lordi e acquisto di terreni;1;Beni materiali;9;Beni immobili;12;Infrastrutture stradali;09/11/2023
3569;1;9999999;199,84;199,84;ENI SUSTAINABLE MOBILITY SPA;Z063967AC5;ACCONTO Fatt.n. 30073573  del 30/09/2023 SETTEMBRE 2023 - FORNITURA METANO;06/11/2023;521;0;42;1;Spese correnti;3;Acquisto di beni e servizi;1;Acquisto di beni;2;Altri beni di consumo;999;Altri beni e materiali di consumo n.a.c.;08/11/2023
3570;1;9999999;40,66;40,66;ENI SUSTAINABLE MOBILITY SPA;Z063967AC5;SALDO Fatt.n. 30073573  del 30/09/2023 SETTEMBRE 2023 - FORNITURA METANO;06/11/2023;521;0;42;1;Spese correnti;3;Acquisto di beni e servizi;1;Acquisto di beni;2;Altri beni di consumo;999;Altri beni e materiali di consumo n.a.c.;09/11/2023
3573;1;9999999;566,92;566,92;PROCED SRL;Z8B3CEE891;SALDO Fatt.n. 2023S3002014  del 30/10/2023 FORNITURA 25 RISME CARTA BIANCA A3 E CANCELLERIA VARIA PER GLI UFFICI COMUNALI;07/11/2023;121;6;847;1;Spese correnti;3;Acquisto di beni e servizi;1;Acquisto di beni;2;Altri beni di consumo;1;Carta, cancelleria e stampati;09/11/2023
3574;1;9999999;140,3;140,3;VEDETTA 2 MONDIALPOL SPA;ZD032B120B;SALDO Fatt.n. V9-3369  del 02/11/2023 OTTOBRE 2023 SERVIZIO DI VIGILANZA MAGAZZINO -PROTEZIONE CIVILE V.LE FERRARIS - VILLA FARSETTI;07/11/2023;548;0;688;1;Spese correnti;3;Acquisto di beni e servizi;2;Acquisto di servizi;9;Manutenzione ordinaria e riparazioni;8;Manutenzione ordinaria e riparazioni di beni immobili;09/11/2023
3575;1;9999999;350;350;PUBBLIFORMEZ SRL;Z123CB352D;SALDO Fatt.n. 1284  del 24/10/2023 CORSO DI FORMAZIONE SU CONTRIBUTI E PENSIONI PARTECIPANTE Z.S.;07/11/2023;833;0;815;1;Spese correnti;3;Acquisto di beni e servizi;2;Acquisto di servizi;4;Acquisto di servizi per formazione e addestramento del personale dell'ente;4;Acquisto di servizi per formazione obbligatoria;09/11/2023
3576;1;9999999;2.000,00;2.000,00;EMMEDUE SAS DI MAMPRIN ANDREA & C.;Z0C3CBD45B;SALDO Fatt.n. 5/2023  del 23/10/2023 FORNITURA VOLUMI PER BIBLIOTECA;07/11/2023;1821;0;824;1;Spese correnti;3;Acquisto di beni e servizi;1;Acquisto di beni;2;Altri beni di consumo;999;Altri beni e materiali di consumo n.a.c.;09/11/2023
3577;1;9999999;1.793,25;1.793,25;DISMA SAS DI ANGELO RIGO & C.;ZBB3AB6AC1;SALDO Fatt.n. 104/2023  del 31/10/2023 SERVIZIO DI SUPPORTO ALLE ATTIVITA DELLA BIBLIOTECA COMUNALE  - OTTOBRE 2023;07/11/2023;2049;0;383;1;Spese correnti;3;Acquisto di beni e servizi;2;Acquisto di servizi;99;Altri servizi;999;Altri servizi diversi n.a.c.;09/11/2023
3578;1;9999999;515,52;18.826,27;V.E.R.I.T.A.S. SPA; ;SALDO Fatt.n. 9500001122  del 31/10/2023 DERATIZZAZIONE - DISINFESTAZIONE 2 TRIMESTRE 2023;07/11/2023;2549;0;300;1;Spese correnti;3;Acquisto di beni e servizi;2;Acquisto di servizi;99;Altri servizi;9;Acquisto di sevizi per verde e arredo urbano;09/11/2023
3578;2;9999999;18.310,75;18.826,27;V.E.R.I.T.A.S. SPA; ;SALDO Fatt.n. 9500001126  del 31/10/2023 LARVICIDA 2 TRIMESTRE 2023;07/11/2023;2549;0;300;1;Spese correnti;3;Acquisto di beni e servizi;2;Acquisto di servizi;99;Altri servizi;9;Acquisto di sevizi per verde e arredo urbano;09/11/2023
3579;1;9999999;2.806,00;2.806,00;SCANTAMBURLO PIETRO;Z6B3CF5B7B;SALDO Fatt.n. 126  del 26/10/2023 MESSA IN SICUREZZA DELLA VIABILITA COMUNALE EVENTI CALAMITOSI DEL 22 LUGLIO 2023 - SGOMBERO E PULIZIA RAMAGLIE;07/11/2023;2549;0;855;1;Spese correnti;3;Acquisto di beni e servizi;2;Acquisto di servizi;99;Altri servizi;9;Acquisto di sevizi per verde e arredo urbano;09/11/2023
3580;1;9999999;131,17;131,17;IDRONORD SRL;ZB839B31A9;SALDO Fatt.n. 2471  del 26/10/2023 MATERIALE EDILE PER MANUTENZIONI;07/11/2023;3538;0;79;1;Spese correnti;3;Acquisto di beni e servizi;2;Acquisto di servizi;9;Manutenzione ordinaria e riparazioni;8;Manutenzione ordinaria e riparazioni di beni immobili;09/11/2023
3581;1;9999999;11,2;710,14;SONEPAR ITALIA  SPA;ZB939BAE73;SALDO Fatt.n. 0031305042  del 31/10/2023 MATERIALE ELETTRICO PER MANUTENZIONI;07/11/2023;3538;0;679;1;Spese correnti;3;Acquisto di beni e servizi;2;Acquisto di servizi;9;Manutenzione ordinaria e riparazioni;4;Manutenzione ordinaria e riparazioni di impianti e macchinari;09/11/2023
3581;2;9999999;53,27;710,14;SONEPAR ITALIA  SPA;ZB939BAE73;SALDO Fatt.n. 0031305040  del 31/10/2023 MATERIALE ELETTRICO PER MANUTENZIONI;07/11/2023;3538;0;679;1;Spese correnti;3;Acquisto di beni e servizi;2;Acquisto di servizi;9;Manutenzione ordinaria e riparazioni;4;Manutenzione ordinaria e riparazioni di impianti e macchinari;09/11/2023
3581;3;9999999;112,48;710,14;SONEPAR ITALIA  SPA;ZB939BAE73;SALDO Fatt.n. 0031305041  del 31/10/2023 MATERIALE ELETTRICO PER MANUTENZIONI;07/11/2023;3538;0;679;1;Spese correnti;3;Acquisto di beni e servizi;2;Acquisto di servizi;9;Manutenzione ordinaria e riparazioni;4;Manutenzione ordinaria e riparazioni di impianti e macchinari;09/11/2023
3581;4;9999999;533,19;710,14;SONEPAR ITALIA  SPA;ZB939BAE73;SALDO Fatt.n. 0031305043  del 31/10/2023 MATERIALE ELETTRICO PER MANUTENZIONI;07/11/2023;3538;0;679;1;Spese correnti;3;Acquisto di beni e servizi;2;Acquisto di servizi;9;Manutenzione ordinaria e riparazioni;4;Manutenzione ordinaria e riparazioni di impianti e macchinari;09/11/2023
3582;1;9999999;963,31;963,31;PROCED SRL;Z8B3CEE891;SALDO Fatt.n. 2023S3002033  del 31/10/2023 FORNITURA DI UN BANCALE 240 RISME CARTA BIANCA A4 PER GLI UFFICI COMUNALI;07/11/2023;521;6;848;1;Spese correnti;3;Acquisto di beni e servizi;1;Acquisto di beni;2;Altri beni di consumo;1;Carta, cancelleria e stampati;09/11/2023
3583;1;9999999;487,37;487,37;C.E.I.F. DI BESSEGA DANIELE;Z2A39B329B;SALDO Fatt.n. 1-13  del 31/10/2023 MATERIALE VARIO PER MANUTENZIONI;07/11/2023;522;0;81;1;Spese correnti;3;Acquisto di beni e servizi;1;Acquisto di beni;2;Altri beni di consumo;999;Altri beni e materiali di consumo n.a.c.;09/11/2023
3586;1;9999999;2.954,83;2.954,83;AGENZIA DELLE ENTRATE - IVA; ;LIQUIDAZIONE IVA COMMERCIALE MESE DI OTTOBRE 2023;09/11/2023;291;0;877;1;Spese correnti;10;Altre spese correnti;3;Versamenti IVA a debito;1;Versamenti IVA a debito per le gestioni commerciali;1;Versamenti IVA a debito per le gestioni commerciali;15/11/2023
3588;1;9999999;19.201,73;19.201,73;BONAVENTURA EXPRESS SRL;8704892021;SALDO Fatt.n. 444PA  del 31/10/2023 TRASPORTO SCOLASTICO OTTOBRE 2023;09/11/2023;1344;0;388;1;Spese correnti;3;Acquisto di beni e servizi;2;Acquisto di servizi;15;Contratti di servizio pubblico;2;Contratti di servizio di trasporto scolastico;14/11/2023
3589;1;9999999;24,49;24,49;EDICOLA ROSSETTI CARTOLIBRERIA DI MAURIZIO ROSSETTI; ;SALDO Fatt.n. PA008/2023  del 25/10/2023 FORNITURA LIBRI DI TESTO PER SCUOLE ELEMENTARI A.S. 2023-2024;09/11/2023;1357;0;555;1;Spese correnti;4;Trasferimenti correnti;2;Trasferimenti correnti a Famiglie;5;Altri trasferimenti a famiglie;999;Altri trasferimenti a famiglie n.a.c.;14/11/2023
3590;1;9999999;950,71;950,71;ONORANZE FUNEBRI FREZZATO ALESSIO;ZAC3ABF8CD;SALDO Fatt.n. 56/001  del 07/11/2023 FORNITURA E POSA CORONA ALLORO COMMEMORAZIONE CIVILE 26 OTTOBRE E 4 NOVEMBRE 2023;09/11/2023;1831;0;399;1;Spese correnti;3;Acquisto di beni e servizi;2;Acquisto di servizi;2;Organizzazione eventi, pubblicita` e servizi per trasferta;999;Altre spese per relazioni pubbliche, convegni e mostre, pubblicita` n.a.c;14/11/2023
3591;1;9999999;17,62;17,62;DOLOMITI ENERGIA SPA;9740529ACE;SALDO Fatt.n. 42305297182  del 30/10/2023 SETTEMBRE 2023 CONSUMI ALLOGGIO VIA DON GALLERANI CALTANA;09/11/2023;134;30;342;1;Spese correnti;3;Acquisto di beni e servizi;2;Acquisto di servizi;5;Utenze e canoni;6;Gas;14/11/2023
3592;1;9999999;34,44;34,44;DOLOMITI ENERGIA SPA;9740529ACE;SALDO Fatt.n. 42305297179  del 30/10/2023 SETTEMBRE 2023 CONSUMI SEDE MUNICIPALE;09/11/2023;134;30;342;1;Spese correnti;3;Acquisto di beni e servizi;2;Acquisto di servizi;5;Utenze e canoni;6;Gas;14/11/2023
3593;1;9999999;74,52;74,52;DOLOMITI ENERGIA SPA;9740529ACE;SALDO Fatt.n. 42305297183  del 30/10/2023 SETTEMBRE 2023 CONSUMI SC. ELEM - SC. MEDIA SMS;09/11/2023;1334;30;344;1;Spese correnti;3;Acquisto di beni e servizi;2;Acquisto di servizi;5;Utenze e canoni;6;Gas;14/11/2023
3594;1;9999999;34,44;34,44;DOLOMITI ENERGIA SPA;9740529ACE;SALDO Fatt.n. 42305297177  del 30/10/2023 SETTEMBRE 2023 CONSUMI SC. ELEM CALTANA;09/11/2023;1334;30;344;1;Spese correnti;3;Acquisto di beni e servizi;2;Acquisto di servizi;5;Utenze e canoni;6;Gas;14/11/2023
3595;1;9999999;62;62;DOLOMITI ENERGIA SPA;9740529ACE;ACCONTO Fatt.n. 42305297175  del 30/10/2023 SETTEMBRE 2023 CONSUMI SC. ELEM - PALESTRA VETERNIGO;09/11/2023;1334;30;344;1;Spese correnti;3;Acquisto di beni e servizi;2;Acquisto di servizi;5;Utenze e canoni;6;Gas;14/11/2023
3596;1;9999999;100,52;100,52;DOLOMITI ENERGIA SPA;9740529ACE;ACCONTO Fatt.n. 42305297175  del 30/10/2023 SETTEMBRE 2023 CONSUMI SC. ELEM - PALESTRA VETERNIGO;09/11/2023;1334;30;344;1;Spese correnti;3;Acquisto di beni e servizi;2;Acquisto di servizi;5;Utenze e canoni;6;Gas;14/11/2023
3597;1;9999999;66,67;66,67;DOLOMITI ENERGIA SPA;9740529ACE;ACCONTO Fatt.n. 42305297184  del 30/10/2023 SETTEMBRE 2023 CONSUMI PALESTRA SMS;09/11/2023;1334;30;344;1;Spese correnti;3;Acquisto di beni e servizi;2;Acquisto di servizi;5;Utenze e canoni;6;Gas;14/11/2023
3598;1;9999999;157,84;157,84;DOLOMITI ENERGIA SPA;9740529ACE;ACCONTO Fatt.n. 42305297186  del 30/10/2023 SETTEMBRE 2023 CONSUMI PALESTRA CALTANA;09/11/2023;1334;30;344;1;Spese correnti;3;Acquisto di beni e servizi;2;Acquisto di servizi;5;Utenze e canoni;6;Gas;14/11/2023
3599;1;9999999;214;214;DOLOMITI ENERGIA SPA;9740529ACE;ACCONTO Fatt.n. 42305297180  del 30/10/2023 SETTEMBRE 2023 CONSUMI SC. ELEM - PALESTRA - ASILO S.ANGELO;09/11/2023;1334;30;344;1;Spese correnti;3;Acquisto di beni e servizi;2;Acquisto di servizi;5;Utenze e canoni;6;Gas;14/11/2023
3600;1;9999999;640,24;640,24;DOLOMITI ENERGIA SPA;9740529ACE;ACCONTO Fatt.n. 42305297180  del 30/10/2023 SETTEMBRE 2023 CONSUMI SC. ELEM - PALESTRA - ASILO S.ANGELO;09/11/2023;1334;30;344;1;Spese correnti;3;Acquisto di beni e servizi;2;Acquisto di servizi;5;Utenze e canoni;6;Gas;14/11/2023
3601;1;9999999;29,6;29,6;DOLOMITI ENERGIA SPA;9740529ACE;ACCONTO Fatt.n. 42305297174  del 30/10/2023 SETTEMBRE 2023 CONSUMI SC. ELEM - PALESTRA STIGLIANO;09/11/2023;1334;30;344;1;Spese correnti;3;Acquisto di beni e servizi;2;Acquisto di servizi;5;Utenze e canoni;6;Gas;14/11/2023
3602;1;9999999;31,83;31,83;DOLOMITI ENERGIA SPA;9740529ACE;ACCONTO Fatt.n. 42305297174  del 30/10/2023 SETTEMBRE 2023 CONSUMI SC. ELEM - PALESTRA STIGLIANO;09/11/2023;1334;30;344;1;Spese correnti;3;Acquisto di beni e servizi;2;Acquisto di servizi;5;Utenze e canoni;6;Gas;14/11/2023
3603;1;9999999;100;100;DOLOMITI ENERGIA SPA;9740529ACE;ACCONTO Fatt.n. 42305297178  del 30/10/2023 SETTEMBRE 2023 CONSUMI SC. ELEM - PALESTRA CASELLE;09/11/2023;1334;30;344;1;Spese correnti;3;Acquisto di beni e servizi;2;Acquisto di servizi;5;Utenze e canoni;6;Gas;14/11/2023
3604;1;9999999;299,74;299,74;DOLOMITI ENERGIA SPA;9740529ACE;ACCONTO Fatt.n. 42305297178  del 30/10/2023 SETTEMBRE 2023 CONSUMI SC. ELEM - PALESTRA CASELLE;09/11/2023;1334;30;344;1;Spese correnti;3;Acquisto di beni e servizi;2;Acquisto di servizi;5;Utenze e canoni;6;Gas;14/11/2023
3605;1;9999999;2,92;2,92;DOLOMITI ENERGIA SPA;9740529ACE;SALDO Fatt.n. 42305297181  del 30/10/2023 SETTEMBRE 2023 CONSUMI IMP. SPORT. SMS;09/11/2023;1934;0;346;1;Spese correnti;3;Acquisto di beni e servizi;2;Acquisto di servizi;5;Utenze e canoni;6;Gas;14/11/2023
3606;1;9999999;114,19;114,19;DOLOMITI ENERGIA SPA;9740529ACE;SALDO Fatt.n. 42305297187  del 30/10/2023 SETTEMBRE 2023 CONSUMI IMP. SPORT. PARROCCHIA CASELLE;09/11/2023;1934;0;346;1;Spese correnti;3;Acquisto di beni e servizi;2;Acquisto di servizi;5;Utenze e canoni;6;Gas;14/11/2023
3607;1;9999999;62;62;DOLOMITI ENERGIA SPA;9740529ACE;SALDO Fatt.n. 42305297175  del 30/10/2023 SETTEMBRE 2023 CONSUMI SC. ELEM - PALESTRA VETERNIGO;09/11/2023;1934;0;346;1;Spese correnti;3;Acquisto di beni e servizi;2;Acquisto di servizi;5;Utenze e canoni;6;Gas;14/11/2023
3608;1;9999999;66,68;66,68;DOLOMITI ENERGIA SPA;9740529ACE;SALDO Fatt.n. 42305297184  del 30/10/2023 SETTEMBRE 2023 CONSUMI PALESTRA SMS;09/11/2023;1934;0;346;1;Spese correnti;3;Acquisto di beni e servizi;2;Acquisto di servizi;5;Utenze e canoni;6;Gas;14/11/2023
3609;1;9999999;157,84;157,84;DOLOMITI ENERGIA SPA;9740529ACE;SALDO Fatt.n. 42305297186  del 30/10/2023 SETTEMBRE 2023 CONSUMI PALESTRA CALTANA;09/11/2023;1934;0;346;1;Spese correnti;3;Acquisto di beni e servizi;2;Acquisto di servizi;5;Utenze e canoni;6;Gas;14/11/2023
3610;1;9999999;214;214;DOLOMITI ENERGIA SPA;9740529ACE;SALDO Fatt.n. 42305297180  del 30/10/2023 SETTEMBRE 2023 CONSUMI SC. ELEM - PALESTRA - ASILO S.ANGELO;09/11/2023;1934;0;346;1;Spese correnti;3;Acquisto di beni e servizi;2;Acquisto di servizi;5;Utenze e canoni;6;Gas;14/11/2023
3611;1;9999999;44,4;44,4;DOLOMITI ENERGIA SPA;9740529ACE;SALDO Fatt.n. 42305297174  del 30/10/2023 SETTEMBRE 2023 CONSUMI SC. ELEM - PALESTRA STIGLIANO;09/11/2023;1934;0;346;1;Spese correnti;3;Acquisto di beni e servizi;2;Acquisto di servizi;5;Utenze e canoni;6;Gas;14/11/2023
3612;1;9999999;100;100;DOLOMITI ENERGIA SPA;9740529ACE;SALDO Fatt.n. 42305297178  del 30/10/2023 SETTEMBRE 2023 CONSUMI SC. ELEM - PALESTRA CASELLE;09/11/2023;1934;0;346;1;Spese correnti;3;Acquisto di beni e servizi;2;Acquisto di servizi;5;Utenze e canoni;6;Gas;14/11/2023
3613;1;9999999;7,41;7,41;DOLOMITI ENERGIA SPA;9740529ACE;SALDO Fatt.n. 42305297185  del 30/10/2023 SETTEMBRE 2023 CONSUMI MAGAZZINO COMUNALE;09/11/2023;3534;0;347;1;Spese correnti;3;Acquisto di beni e servizi;2;Acquisto di servizi;5;Utenze e canoni;6;Gas;14/11/2023
3614;1;9999999;196,14;196,14;DOLOMITI ENERGIA SPA;9740529ACE;SALDO Fatt.n. 42305297176  del 30/10/2023 SETTEMBRE 2023 CONSUMI VILLA FARSETTI;09/11/2023;4234;0;348;1;Spese correnti;3;Acquisto di beni e servizi;2;Acquisto di servizi;5;Utenze e canoni;6;Gas;14/11/2023
3616;1;9999999;800;800;CIRCOLO ARCI  F. PIROLA; ;CONTRIBUTO RASSEGNA CULTURALE NOVEMBRE LETTERARIO DONNA 2023;09/11/2023;1859;0;861;1;Spese correnti;4;Trasferimenti correnti;4;Trasferimenti correnti a Istituzioni Sociali Private;1;Trasferimenti correnti a Istituzioni Sociali Private;1;Trasferimenti correnti a Istituzioni Sociali Private;14/11/2023
3617;1;9999999;41,16;41,16;COMUNE DI CASTELFRANCO VENETO; ;RIMBORSO SPESE DI NOTIFICA BRAIDICH EMILIO NS PROT. 19652/2023;14/11/2023;146;0;48;1;Spese correnti;3;Acquisto di beni e servizi;2;Acquisto di servizi;17;Servizi finanziari;999;Spese per servizi finanziari n.a.c.;17/11/2023
3619;1;9999999;349,57;349,57;OMESSO NOMINATIVO NEL RISPETTO DELLA NORMATIVA SULLA PROTEZIONE DATI PERSONALI; ;RESTITUZIONE CONTRIBUTO DI COSTRUZIONE ALLA DITTA B.S.A. - CODICE 1509, SCIA PROT. N. 18158 DEL 27.07.2022;14/11/2023;8820;0;867;2;Spese in conto capitale;5;Altre spese in conto capitale;99;Altre spese in conto capitale n.a.c.;99;Altre spese in conto capitale n.a.c.;999;Altre spese in conto capitale n.a.c.;17/11/2023
3620;1;9999999;346,21;346,21;OMESSO NOMINATIVO NEL RISPETTO DELLA NORMATIVA SULLA PROTEZIONE DATI PERSONALI; ;RESTITUZIONE CONTRIBUTO DI COSTRUZIONE SCIA PROT. N. 27197 DEL 18.11.2021;14/11/2023;8820;0;868;2;Spese in conto capitale;5;Altre spese in conto capitale;99;Altre spese in conto capitale n.a.c.;99;Altre spese in conto capitale n.a.c.;999;Altre spese in conto capitale n.a.c.;17/11/2023
3622;1;9999999;3.000,00;3.000,00;PARROCCHIA DELLA  NATIVITA' B. VERGINE MARIA S.M.SALA; ;SALDO ANNO 2023 CONTRIBUTO LEGGE REGIONALE 44/87;14/11/2023;8705;0;422;2;Spese in conto capitale;3;Contributi agli investimenti;4;Contributi agli investimenti a Istituzioni Sociali Private;1;Contributi agli investimenti a Istituzioni Sociali Private;1;Contributi agli investimenti a Istituzioni Sociali Private;17/11/2023
3623;1;9999999;3.000,00;3.000,00;PARROCCHIA DI  S.BIAGIO CALTANA; ;SALDO ANNO 2023 CONTRIBUTO LEGGE REGIONALE 44/87;14/11/2023;8705;0;422;2;Spese in conto capitale;3;Contributi agli investimenti;4;Contributi agli investimenti a Istituzioni Sociali Private;1;Contributi agli investimenti a Istituzioni Sociali Private;1;Contributi agli investimenti a Istituzioni Sociali Private;17/11/2023
3624;1;9999999;3.000,00;3.000,00;PARROCCHIA DI  S.BIAGIO CALTANA; ;SALDO ANNO 2022 CONTRIBUTO LEGGE REGIONALE 44/87;14/11/2023;8705;0;913;2;Spese in conto capitale;3;Contributi agli investimenti;4;Contributi agli investimenti a Istituzioni Sociali Private;1;Contributi agli investimenti a Istituzioni Sociali Private;1;Contributi agli investimenti a Istituzioni Sociali Private;17/11/2023
3626;1;9999999;4.848,12;4.848,12;MUNGO SPA; ;LIQUIDAZIONE A DITTA MUNGO SPA RIMBORSO ASSENZE RETRIBUITE VICE SINDACO ARPI ALESSANDRO USUFRUITE NEI MESI DI LUGLIO, AGOSTO, SETTEMBRE E OTTOBRE 2023.;14/11/2023;30;99;143;1;Spese correnti;3;Acquisto di beni e servizi;2;Acquisto di servizi;1;Organi e incarichi istituzionali dell'amministrazione;1;Organi istituzionali dell'amministrazione - Indennità;17/11/2023
3627;1;9999999;213,5;213,5;EUROTECNICA SALMASO SRL;Z163CF8F16;SALDO Fatt.n. 458  del 27/10/2023 FORNITURA VALIGETTA CON 2 MICROFONI E CAVI;14/11/2023;522;0;859;1;Spese correnti;3;Acquisto di beni e servizi;1;Acquisto di beni;2;Altri beni di consumo;999;Altri beni e materiali di consumo n.a.c.;17/11/2023
3628;1;9999999;6.039,00;6.039,00;V.L.R.. DI VISENTIN LUCA & C.SNC;Z3B3CF5D40;SALDO Fatt.n. 177  del 26/10/2023 MESSA IN SICUREZZA VIABILITA COMUNALE PER EVENTI CALAMITOSI DEL 22 LUGLIO 2023;14/11/2023;3538;0;856;1;Spese correnti;3;Acquisto di beni e servizi;2;Acquisto di servizi;9;Manutenzione ordinaria e riparazioni;8;Manutenzione ordinaria e riparazioni di beni immobili;17/11/2023
3629;1;0;11,55;11,55;NEXI PAYMENTS SPA;Z122EED501;ACCONTO Fatt.n. 3606225  del 10/10/2023 Linea Diretta - Servizio Assistenza Nexi Payments SpA 02345448 Codice Personale didentificazione 046963476 CANONE POS - Comp. Luglio-Agosto e Settembre 23 11269357;14/11/2023;146;0;711;1;Spese correnti;3;Acquisto di beni e servizi;2;Acquisto di servizi;17;Servizi finanziari;999;Spese per servizi finanziari n.a.c.;14/11/2023
3630;1;9999999;52,5;52,5;NEXI PAYMENTS SPA;Z122EED501;SALDO Fatt.n. 3606225  del 10/10/2023 Linea Diretta - Servizio Assistenza Nexi Payments SpA 02345448 Codice Personale didentificazione 046963476 CANONE POS - Comp. Luglio-Agosto e Settembre 23 11269357;14/11/2023;146;0;711;1;Spese correnti;3;Acquisto di beni e servizi;2;Acquisto di servizi;17;Servizi finanziari;999;Spese per servizi finanziari n.a.c.;16/11/2023
3631;1;9999999;1;1;BANCA MPS SPA; ;COMMISSIONI BANCA INCASSI POS FISICO PAGO PA INTEGRATO CON IL NODO NAZIONALE DEI PAGAMENTI PAGO PA NANNO 2023-2025;14/11/2023;146;0;100;1;Spese correnti;3;Acquisto di beni e servizi;2;Acquisto di servizi;17;Servizi finanziari;999;Spese per servizi finanziari n.a.c.;16/11/2023
3632;1;9999999;135,58;135,58;OMESSO NOMINATIVO NEL RISPETTO DELLA NORMATIVA SULLA PROTEZIONE DATI PERSONALI; ;CONTRIBUTO ECONOMICO DESTINATO ALLE FAMIGLIE PER LA FREQUENZA DEI CENTRI ESTIVI NELLANNO 2023;15/11/2023;4157;53;567;1;Spese correnti;4;Trasferimenti correnti;2;Trasferimenti correnti a Famiglie;2;Interventi assistenziali;999;Altri assegni e sussidi assistenziali;20/11/2023
3633;1;9999999;163,68;163,68;OMESSO NOMINATIVO NEL RISPETTO DELLA NORMATIVA SULLA PROTEZIONE DATI PERSONALI; ;CONTRIBUTO ECONOMICO DESTINATO ALLE FAMIGLIE PER LA FREQUENZA DEI CENTRI ESTIVI NELLANNO 2023;15/11/2023;4157;53;567;1;Spese correnti;4;Trasferimenti correnti;2;Trasferimenti correnti a Famiglie;2;Interventi assistenziali;999;Altri assegni e sussidi assistenziali;20/11/2023
3634;1;9999999;19,15;19,15;OMESSO NOMINATIVO NEL RISPETTO DELLA NORMATIVA SULLA PROTEZIONE DATI PERSONALI; ;CONTRIBUTO ECONOMICO DESTINATO ALLE FAMIGLIE PER LA FREQUENZA DEI CENTRI ESTIVI NELLANNO 2023;15/11/2023;4157;53;567;1;Spese correnti;4;Trasferimenti correnti;2;Trasferimenti correnti a Famiglie;2;Interventi assistenziali;999;Altri assegni e sussidi assistenziali;20/11/2023
3635;1;9999999;161,98;161,98;OMESSO NOMINATIVO NEL RISPETTO DELLA NORMATIVA SULLA PROTEZIONE DATI PERSONALI; ;CONTRIBUTO ECONOMICO DESTINATO ALLE FAMIGLIE PER LA FREQUENZA DEI CENTRI ESTIVI NELLANNO 2023;15/11/2023;4157;53;567;1;Spese correnti;4;Trasferimenti correnti;2;Trasferimenti correnti a Famiglie;2;Interventi assistenziali;999;Altri assegni e sussidi assistenziali;20/11/2023
3636;1;9999999;200;200;OMESSO NOMINATIVO NEL RISPETTO DELLA NORMATIVA SULLA PROTEZIONE DATI PERSONALI; ;CONTRIBUTO ECONOMICO DESTINATO ALLE FAMIGLIE PER LA FREQUENZA DEI CENTRI ESTIVI NELLANNO 2023;15/11/2023;4157;53;567;1;Spese correnti;4;Trasferimenti correnti;2;Trasferimenti correnti a Famiglie;2;Interventi assistenziali;999;Altri assegni e sussidi assistenziali;20/11/2023
3637;1;9999999;186,48;186,48;OMESSO NOMINATIVO NEL RISPETTO DELLA NORMATIVA SULLA PROTEZIONE DATI PERSONALI; ;CONTRIBUTO ECONOMICO DESTINATO ALLE FAMIGLIE PER LA FREQUENZA DEI CENTRI ESTIVI NELLANNO 2023;15/11/2023;4157;53;567;1;Spese correnti;4;Trasferimenti correnti;2;Trasferimenti correnti a Famiglie;2;Interventi assistenziali;999;Altri assegni e sussidi assistenziali;20/11/2023
3638;1;9999999;140,96;140,96;OMESSO NOMINATIVO NEL RISPETTO DELLA NORMATIVA SULLA PROTEZIONE DATI PERSONALI; ;CONTRIBUTO ECONOMICO DESTINATO ALLE FAMIGLIE PER LA FREQUENZA DEI CENTRI ESTIVI NELLANNO 2023;15/11/2023;4157;53;567;1;Spese correnti;4;Trasferimenti correnti;2;Trasferimenti correnti a Famiglie;2;Interventi assistenziali;999;Altri assegni e sussidi assistenziali;20/11/2023
3639;1;9999999;284,54;284,54;OMESSO NOMINATIVO NEL RISPETTO DELLA NORMATIVA SULLA PROTEZIONE DATI PERSONALI; ;CONTRIBUTO ECONOMICO DESTINATO ALLE FAMIGLIE PER LA FREQUENZA DEI CENTRI ESTIVI NELLANNO 2023;15/11/2023;4157;53;567;1;Spese correnti;4;Trasferimenti correnti;2;Trasferimenti correnti a Famiglie;2;Interventi assistenziali;999;Altri assegni e sussidi assistenziali;20/11/2023
3640;1;9999999;165,56;165,56;OMESSO NOMINATIVO NEL RISPETTO DELLA NORMATIVA SULLA PROTEZIONE DATI PERSONALI; ;CONTRIBUTO ECONOMICO DESTINATO ALLE FAMIGLIE PER LA FREQUENZA DEI CENTRI ESTIVI NELLANNO 2023;15/11/2023;4157;53;567;1;Spese correnti;4;Trasferimenti correnti;2;Trasferimenti correnti a Famiglie;2;Interventi assistenziali;999;Altri assegni e sussidi assistenziali;20/11/2023
3641;1;9999999;123,68;123,68;OMESSO NOMINATIVO NEL RISPETTO DELLA NORMATIVA SULLA PROTEZIONE DATI PERSONALI; ;CONTRIBUTO ECONOMICO DESTINATO ALLE FAMIGLIE PER LA FREQUENZA DEI CENTRI ESTIVI NELLANNO 2023;15/11/2023;4157;53;567;1;Spese correnti;4;Trasferimenti correnti;2;Trasferimenti correnti a Famiglie;2;Interventi assistenziali;999;Altri assegni e sussidi assistenziali;20/11/2023
3642;1;9999999;121,99;121,99;OMESSO NOMINATIVO NEL RISPETTO DELLA NORMATIVA SULLA PROTEZIONE DATI PERSONALI; ;CONTRIBUTO ECONOMICO DESTINATO ALLE FAMIGLIE PER LA FREQUENZA DEI CENTRI ESTIVI NELLANNO 2023;15/11/2023;4157;53;567;1;Spese correnti;4;Trasferimenti correnti;2;Trasferimenti correnti a Famiglie;2;Interventi assistenziali;999;Altri assegni e sussidi assistenziali;20/11/2023
3643;1;9999999;179,86;179,86;OMESSO NOMINATIVO NEL RISPETTO DELLA NORMATIVA SULLA PROTEZIONE DATI PERSONALI; ;CONTRIBUTO ECONOMICO DESTINATO ALLE FAMIGLIE PER LA FREQUENZA DEI CENTRI ESTIVI NELLANNO 2023;15/11/2023;4157;53;567;1;Spese correnti;4;Trasferimenti correnti;2;Trasferimenti correnti a Famiglie;2;Interventi assistenziali;999;Altri assegni e sussidi assistenziali;20/11/2023
3644;1;9999999;185,24;185,24;OMESSO NOMINATIVO NEL RISPETTO DELLA NORMATIVA SULLA PROTEZIONE DATI PERSONALI; ;CONTRIBUTO ECONOMICO DESTINATO ALLE FAMIGLIE PER LA FREQUENZA DEI CENTRI ESTIVI NELLANNO 2023;15/11/2023;4157;53;567;1;Spese correnti;4;Trasferimenti correnti;2;Trasferimenti correnti a Famiglie;2;Interventi assistenziali;999;Altri assegni e sussidi assistenziali;20/11/2023
3645;1;9999999;200;200;OMESSO NOMINATIVO NEL RISPETTO DELLA NORMATIVA SULLA PROTEZIONE DATI PERSONALI; ;CONTRIBUTO ECONOMICO DESTINATO ALLE FAMIGLIE PER LA FREQUENZA DEI CENTRI ESTIVI NELLANNO 2023;15/11/2023;4157;53;567;1;Spese correnti;4;Trasferimenti correnti;2;Trasferimenti correnti a Famiglie;2;Interventi assistenziali;999;Altri assegni e sussidi assistenziali;20/11/2023
3646;1;9999999;200;200;OMESSO NOMINATIVO NEL RISPETTO DELLA NORMATIVA SULLA PROTEZIONE DATI PERSONALI; ;CONTRIBUTO ECONOMICO DESTINATO ALLE FAMIGLIE PER LA FREQUENZA DEI CENTRI ESTIVI NELLANNO 2023;15/11/2023;4157;53;567;1;Spese correnti;4;Trasferimenti correnti;2;Trasferimenti correnti a Famiglie;2;Interventi assistenziali;999;Altri assegni e sussidi assistenziali;20/11/2023
3647;1;9999999;200;200;OMESSO NOMINATIVO NEL RISPETTO DELLA NORMATIVA SULLA PROTEZIONE DATI PERSONALI; ;CONTRIBUTO ECONOMICO DESTINATO ALLE FAMIGLIE PER LA FREQUENZA DEI CENTRI ESTIVI NELLANNO 2023;15/11/2023;4157;53;567;1;Spese correnti;4;Trasferimenti correnti;2;Trasferimenti correnti a Famiglie;2;Interventi assistenziali;999;Altri assegni e sussidi assistenziali;20/11/2023
3648;1;9999999;175,27;175,27;OMESSO NOMINATIVO NEL RISPETTO DELLA NORMATIVA SULLA PROTEZIONE DATI PERSONALI; ;CONTRIBUTO ECONOMICO DESTINATO ALLE FAMIGLIE PER LA FREQUENZA DEI CENTRI ESTIVI NELLANNO 2023;15/11/2023;4157;53;567;1;Spese correnti;4;Trasferimenti correnti;2;Trasferimenti correnti a Famiglie;2;Interventi assistenziali;999;Altri assegni e sussidi assistenziali;20/11/2023
3649;1;9999999;600;600;OMESSO NOMINATIVO NEL RISPETTO DELLA NORMATIVA SULLA PROTEZIONE DATI PERSONALI; ;CONTRIBUTO ECONOMICO DESTINATO ALLE FAMIGLIE PER LA FREQUENZA DEI CENTRI ESTIVI NELLANNO 2023;15/11/2023;4157;53;567;1;Spese correnti;4;Trasferimenti correnti;2;Trasferimenti correnti a Famiglie;2;Interventi assistenziali;999;Altri assegni e sussidi assistenziali;20/11/2023
3650;1;9999999;400;400;OMESSO NOMINATIVO NEL RISPETTO DELLA NORMATIVA SULLA PROTEZIONE DATI PERSONALI; ;CONTRIBUTO ECONOMICO DESTINATO ALLE FAMIGLIE PER LA FREQUENZA DEI CENTRI ESTIVI NELLANNO 2023;15/11/2023;4157;53;567;1;Spese correnti;4;Trasferimenti correnti;2;Trasferimenti correnti a Famiglie;2;Interventi assistenziali;999;Altri assegni e sussidi assistenziali;20/11/2023
3651;1;9999999;131,9;131,9;OMESSO NOMINATIVO NEL RISPETTO DELLA NORMATIVA SULLA PROTEZIONE DATI PERSONALI; ;CONTRIBUTO ECONOMICO DESTINATO ALLE FAMIGLIE PER LA FREQUENZA DEI CENTRI ESTIVI NELLANNO 2023;15/11/2023;4157;53;567;1;Spese correnti;4;Trasferimenti correnti;2;Trasferimenti correnti a Famiglie;2;Interventi assistenziali;999;Altri assegni e sussidi assistenziali;20/11/2023
3652;1;9999999;54,85;54,85;OMESSO NOMINATIVO NEL RISPETTO DELLA NORMATIVA SULLA PROTEZIONE DATI PERSONALI; ;CONTRIBUTO ECONOMICO DESTINATO ALLE FAMIGLIE PER LA FREQUENZA DEI CENTRI ESTIVI NELLANNO 2023;15/11/2023;4157;53;567;1;Spese correnti;4;Trasferimenti correnti;2;Trasferimenti correnti a Famiglie;2;Interventi assistenziali;999;Altri assegni e sussidi assistenziali;20/11/2023
3653;1;9999999;400;400;OMESSO NOMINATIVO NEL RISPETTO DELLA NORMATIVA SULLA PROTEZIONE DATI PERSONALI; ;CONTRIBUTO ECONOMICO DESTINATO ALLE FAMIGLIE PER LA FREQUENZA DEI CENTRI ESTIVI NELLANNO 2023;15/11/2023;4157;53;567;1;Spese correnti;4;Trasferimenti correnti;2;Trasferimenti correnti a Famiglie;2;Interventi assistenziali;999;Altri assegni e sussidi assistenziali;20/11/2023
3654;1;9999999;31,38;31,38;OMESSO NOMINATIVO NEL RISPETTO DELLA NORMATIVA SULLA PROTEZIONE DATI PERSONALI; ;CONTRIBUTO ECONOMICO DESTINATO ALLE FAMIGLIE PER LA FREQUENZA DEI CENTRI ESTIVI NELLANNO 2023;15/11/2023;4157;53;567;1;Spese correnti;4;Trasferimenti correnti;2;Trasferimenti correnti a Famiglie;2;Interventi assistenziali;999;Altri assegni e sussidi assistenziali;20/11/2023
3655;1;9999999;197,62;197,62;OMESSO NOMINATIVO NEL RISPETTO DELLA NORMATIVA SULLA PROTEZIONE DATI PERSONALI; ;CONTRIBUTO ECONOMICO DESTINATO ALLE FAMIGLIE PER LA FREQUENZA DEI CENTRI ESTIVI NELLANNO 2023;15/11/2023;4157;53;567;1;Spese correnti;4;Trasferimenti correnti;2;Trasferimenti correnti a Famiglie;2;Interventi assistenziali;999;Altri assegni e sussidi assistenziali;20/11/2023
3656;1;9999999;3,2;3,2;OMESSO NOMINATIVO NEL RISPETTO DELLA NORMATIVA SULLA PROTEZIONE DATI PERSONALI; ;CONTRIBUTO ECONOMICO DESTINATO ALLE FAMIGLIE PER LA FREQUENZA DEI CENTRI ESTIVI NELLANNO 2023;15/11/2023;4157;53;567;1;Spese correnti;4;Trasferimenti correnti;2;Trasferimenti correnti a Famiglie;2;Interventi assistenziali;999;Altri assegni e sussidi assistenziali;20/11/2023
3657;1;9999999;192,61;192,61;OMESSO NOMINATIVO NEL RISPETTO DELLA NORMATIVA SULLA PROTEZIONE DATI PERSONALI; ;CONTRIBUTO ECONOMICO DESTINATO ALLE FAMIGLIE PER LA FREQUENZA DEI CENTRI ESTIVI NELLANNO 2023;15/11/2023;4157;53;567;1;Spese correnti;4;Trasferimenti correnti;2;Trasferimenti correnti a Famiglie;2;Interventi assistenziali;999;Altri assegni e sussidi assistenziali;20/11/2023
3658;1;9999999;200;200;OMESSO NOMINATIVO NEL RISPETTO DELLA NORMATIVA SULLA PROTEZIONE DATI PERSONALI; ;CONTRIBUTO ECONOMICO DESTINATO ALLE FAMIGLIE PER LA FREQUENZA DEI CENTRI ESTIVI NELLANNO 2023;15/11/2023;4157;53;567;1;Spese correnti;4;Trasferimenti correnti;2;Trasferimenti correnti a Famiglie;2;Interventi assistenziali;999;Altri assegni e sussidi assistenziali;20/11/2023
3659;1;9999999;236,2;236,2;OMESSO NOMINATIVO NEL RISPETTO DELLA NORMATIVA SULLA PROTEZIONE DATI PERSONALI; ;CONTRIBUTO ECONOMICO DESTINATO ALLE FAMIGLIE PER LA FREQUENZA DEI CENTRI ESTIVI NELLANNO 2023;15/11/2023;4157;53;567;1;Spese correnti;4;Trasferimenti correnti;2;Trasferimenti correnti a Famiglie;2;Interventi assistenziali;999;Altri assegni e sussidi assistenziali;20/11/2023
3660;1;9999999;55,28;55,28;OMESSO NOMINATIVO NEL RISPETTO DELLA NORMATIVA SULLA PROTEZIONE DATI PERSONALI; ;CONTRIBUTO ECONOMICO DESTINATO ALLE FAMIGLIE PER LA FREQUENZA DEI CENTRI ESTIVI NELLANNO 2023;15/11/2023;4157;53;567;1;Spese correnti;4;Trasferimenti correnti;2;Trasferimenti correnti a Famiglie;2;Interventi assistenziali;999;Altri assegni e sussidi assistenziali;20/11/2023
3661;1;9999999;350,06;350,06;OMESSO NOMINATIVO NEL RISPETTO DELLA NORMATIVA SULLA PROTEZIONE DATI PERSONALI; ;CONTRIBUTO ECONOMICO DESTINATO ALLE FAMIGLIE PER LA FREQUENZA DEI CENTRI ESTIVI NELLANNO 2023;15/11/2023;4157;53;567;1;Spese correnti;4;Trasferimenti correnti;2;Trasferimenti correnti a Famiglie;2;Interventi assistenziali;999;Altri assegni e sussidi assistenziali;20/11/2023
3662;1;9999999;200;200;OMESSO NOMINATIVO NEL RISPETTO DELLA NORMATIVA SULLA PROTEZIONE DATI PERSONALI; ;CONTRIBUTO ECONOMICO DESTINATO ALLE FAMIGLIE PER LA FREQUENZA DEI CENTRI ESTIVI NELLANNO 2023;15/11/2023;4157;53;567;1;Spese correnti;4;Trasferimenti correnti;2;Trasferimenti correnti a Famiglie;2;Interventi assistenziali;999;Altri assegni e sussidi assistenziali;20/11/2023
3663;1;9999999;148,81;148,81;OMESSO NOMINATIVO NEL RISPETTO DELLA NORMATIVA SULLA PROTEZIONE DATI PERSONALI; ;CONTRIBUTO ECONOMICO DESTINATO ALLE FAMIGLIE PER LA FREQUENZA DEI CENTRI ESTIVI NELLANNO 2023;15/11/2023;4157;53;567;1;Spese correnti;4;Trasferimenti correnti;2;Trasferimenti correnti a Famiglie;2;Interventi assistenziali;999;Altri assegni e sussidi assistenziali;20/11/2023
3664;1;9999999;129,67;129,67;OMESSO NOMINATIVO NEL RISPETTO DELLA NORMATIVA SULLA PROTEZIONE DATI PERSONALI; ;CONTRIBUTO ECONOMICO DESTINATO ALLE FAMIGLIE PER LA FREQUENZA DEI CENTRI ESTIVI NELLANNO 2023;15/11/2023;4157;53;567;1;Spese correnti;4;Trasferimenti correnti;2;Trasferimenti correnti a Famiglie;2;Interventi assistenziali;999;Altri assegni e sussidi assistenziali;20/11/2023
3665;1;9999999;167,16;167,16;OMESSO NOMINATIVO NEL RISPETTO DELLA NORMATIVA SULLA PROTEZIONE DATI PERSONALI; ;CONTRIBUTO ECONOMICO DESTINATO ALLE FAMIGLIE PER LA FREQUENZA DEI CENTRI ESTIVI NELLANNO 2023;15/11/2023;4157;53;567;1;Spese correnti;4;Trasferimenti correnti;2;Trasferimenti correnti a Famiglie;2;Interventi assistenziali;999;Altri assegni e sussidi assistenziali;20/11/2023
3666;1;9999999;115,67;115,67;OMESSO NOMINATIVO NEL RISPETTO DELLA NORMATIVA SULLA PROTEZIONE DATI PERSONALI; ;CONTRIBUTO ECONOMICO DESTINATO ALLE FAMIGLIE PER LA FREQUENZA DEI CENTRI ESTIVI NELLANNO 2023;15/11/2023;4157;53;567;1;Spese correnti;4;Trasferimenti correnti;2;Trasferimenti correnti a Famiglie;2;Interventi assistenziali;999;Altri assegni e sussidi assistenziali;20/11/2023
3667;1;9999999;200;200;OMESSO NOMINATIVO NEL RISPETTO DELLA NORMATIVA SULLA PROTEZIONE DATI PERSONALI; ;CONTRIBUTO ECONOMICO DESTINATO ALLE FAMIGLIE PER LA FREQUENZA DEI CENTRI ESTIVI NELLANNO 2023;15/11/2023;4157;53;567;1;Spese correnti;4;Trasferimenti correnti;2;Trasferimenti correnti a Famiglie;2;Interventi assistenziali;999;Altri assegni e sussidi assistenziali;20/11/2023
3668;1;9999999;200;200;OMESSO NOMINATIVO NEL RISPETTO DELLA NORMATIVA SULLA PROTEZIONE DATI PERSONALI; ;CONTRIBUTO ECONOMICO DESTINATO ALLE FAMIGLIE PER LA FREQUENZA DEI CENTRI ESTIVI NELLANNO 2023;15/11/2023;4157;53;567;1;Spese correnti;4;Trasferimenti correnti;2;Trasferimenti correnti a Famiglie;2;Interventi assistenziali;999;Altri assegni e sussidi assistenziali;20/11/2023
3669;1;9999999;66,52;66,52;OMESSO NOMINATIVO NEL RISPETTO DELLA NORMATIVA SULLA PROTEZIONE DATI PERSONALI; ;CONTRIBUTO ECONOMICO DESTINATO ALLE FAMIGLIE PER LA FREQUENZA DEI CENTRI ESTIVI NELLANNO 2023;15/11/2023;4157;53;567;1;Spese correnti;4;Trasferimenti correnti;2;Trasferimenti correnti a Famiglie;2;Interventi assistenziali;999;Altri assegni e sussidi assistenziali;20/11/2023
3670;1;9999999;305,1;305,1;OMESSO NOMINATIVO NEL RISPETTO DELLA NORMATIVA SULLA PROTEZIONE DATI PERSONALI; ;CONTRIBUTO ECONOMICO DESTINATO ALLE FAMIGLIE PER LA FREQUENZA DEI CENTRI ESTIVI NELLANNO 2023;15/11/2023;4157;53;567;1;Spese correnti;4;Trasferimenti correnti;2;Trasferimenti correnti a Famiglie;2;Interventi assistenziali;999;Altri assegni e sussidi assistenziali;20/11/2023
3671;1;9999999;400;400;OMESSO NOMINATIVO NEL RISPETTO DELLA NORMATIVA SULLA PROTEZIONE DATI PERSONALI; ;CONTRIBUTO ECONOMICO DESTINATO ALLE FAMIGLIE PER LA FREQUENZA DEI CENTRI ESTIVI NELLANNO 2023;15/11/2023;4157;53;567;1;Spese correnti;4;Trasferimenti correnti;2;Trasferimenti correnti a Famiglie;2;Interventi assistenziali;999;Altri assegni e sussidi assistenziali;20/11/2023
3672;1;9999999;200;200;OMESSO NOMINATIVO NEL RISPETTO DELLA NORMATIVA SULLA PROTEZIONE DATI PERSONALI; ;CONTRIBUTO ECONOMICO DESTINATO ALLE FAMIGLIE PER LA FREQUENZA DEI CENTRI ESTIVI NELLANNO 2023;15/11/2023;4157;53;567;1;Spese correnti;4;Trasferimenti correnti;2;Trasferimenti correnti a Famiglie;2;Interventi assistenziali;999;Altri assegni e sussidi assistenziali;20/11/2023
3673;1;9999999;309,58;309,58;OMESSO NOMINATIVO NEL RISPETTO DELLA NORMATIVA SULLA PROTEZIONE DATI PERSONALI; ;CONTRIBUTO ECONOMICO DESTINATO ALLE FAMIGLIE PER LA FREQUENZA DEI CENTRI ESTIVI NELLANNO 2023;15/11/2023;4157;53;567;1;Spese correnti;4;Trasferimenti correnti;2;Trasferimenti correnti a Famiglie;2;Interventi assistenziali;999;Altri assegni e sussidi assistenziali;20/11/2023
3674;1;9999999;291,64;291,64;OMESSO NOMINATIVO NEL RISPETTO DELLA NORMATIVA SULLA PROTEZIONE DATI PERSONALI; ;CONTRIBUTO ECONOMICO DESTINATO ALLE FAMIGLIE PER LA FREQUENZA DEI CENTRI ESTIVI NELLANNO 2023;15/11/2023;4157;53;567;1;Spese correnti;4;Trasferimenti correnti;2;Trasferimenti correnti a Famiglie;2;Interventi assistenziali;999;Altri assegni e sussidi assistenziali;20/11/2023
3675;1;9999999;48,45;48,45;OMESSO NOMINATIVO NEL RISPETTO DELLA NORMATIVA SULLA PROTEZIONE DATI PERSONALI; ;CONTRIBUTO ECONOMICO DESTINATO ALLE FAMIGLIE PER LA FREQUENZA DEI CENTRI ESTIVI NELLANNO 2023;15/11/2023;4157;53;567;1;Spese correnti;4;Trasferimenti correnti;2;Trasferimenti correnti a Famiglie;2;Interventi assistenziali;999;Altri assegni e sussidi assistenziali;20/11/2023
3676;1;9999999;143,65;143,65;OMESSO NOMINATIVO NEL RISPETTO DELLA NORMATIVA SULLA PROTEZIONE DATI PERSONALI; ;CONTRIBUTO ECONOMICO DESTINATO ALLE FAMIGLIE PER LA FREQUENZA DEI CENTRI ESTIVI NELLANNO 2023;15/11/2023;4157;53;567;1;Spese correnti;4;Trasferimenti correnti;2;Trasferimenti correnti a Famiglie;2;Interventi assistenziali;999;Altri assegni e sussidi assistenziali;20/11/2023
3677;1;9999999;131,9;131,9;OMESSO NOMINATIVO NEL RISPETTO DELLA NORMATIVA SULLA PROTEZIONE DATI PERSONALI; ;CONTRIBUTO ECONOMICO DESTINATO ALLE FAMIGLIE PER LA FREQUENZA DEI CENTRI ESTIVI NELLANNO 2023;15/11/2023;4157;53;567;1;Spese correnti;4;Trasferimenti correnti;2;Trasferimenti correnti a Famiglie;2;Interventi assistenziali;999;Altri assegni e sussidi assistenziali;20/11/2023
3678;1;9999999;200;200;OMESSO NOMINATIVO NEL RISPETTO DELLA NORMATIVA SULLA PROTEZIONE DATI PERSONALI; ;CONTRIBUTO ECONOMICO DESTINATO ALLE FAMIGLIE PER LA FREQUENZA DEI CENTRI ESTIVI NELLANNO 2023;15/11/2023;4157;53;567;1;Spese correnti;4;Trasferimenti correnti;2;Trasferimenti correnti a Famiglie;2;Interventi assistenziali;999;Altri assegni e sussidi assistenziali;20/11/2023
3679;1;9999999;129,93;129,93;OMESSO NOMINATIVO NEL RISPETTO DELLA NORMATIVA SULLA PROTEZIONE DATI PERSONALI; ;CONTRIBUTO ECONOMICO DESTINATO ALLE FAMIGLIE PER LA FREQUENZA DEI CENTRI ESTIVI NELLANNO 2023;15/11/2023;4157;53;567;1;Spese correnti;4;Trasferimenti correnti;2;Trasferimenti correnti a Famiglie;2;Interventi assistenziali;999;Altri assegni e sussidi assistenziali;20/11/2023
3680;1;9999999;165,53;165,53;OMESSO NOMINATIVO NEL RISPETTO DELLA NORMATIVA SULLA PROTEZIONE DATI PERSONALI; ;CONTRIBUTO ECONOMICO DESTINATO ALLE FAMIGLIE PER LA FREQUENZA DEI CENTRI ESTIVI NELLANNO 2023;15/11/2023;4157;53;567;1;Spese correnti;4;Trasferimenti correnti;2;Trasferimenti correnti a Famiglie;2;Interventi assistenziali;999;Altri assegni e sussidi assistenziali;20/11/2023
3681;1;9999999;188,87;188,87;OMESSO NOMINATIVO NEL RISPETTO DELLA NORMATIVA SULLA PROTEZIONE DATI PERSONALI; ;CONTRIBUTO ECONOMICO DESTINATO ALLE FAMIGLIE PER LA FREQUENZA DEI CENTRI ESTIVI NELLANNO 2023;15/11/2023;4157;53;567;1;Spese correnti;4;Trasferimenti correnti;2;Trasferimenti correnti a Famiglie;2;Interventi assistenziali;999;Altri assegni e sussidi assistenziali;20/11/2023
3682;1;9999999;200;200;OMESSO NOMINATIVO NEL RISPETTO DELLA NORMATIVA SULLA PROTEZIONE DATI PERSONALI; ;CONTRIBUTO ECONOMICO DESTINATO ALLE FAMIGLIE PER LA FREQUENZA DEI CENTRI ESTIVI NELLANNO 2023;15/11/2023;4157;53;567;1;Spese correnti;4;Trasferimenti correnti;2;Trasferimenti correnti a Famiglie;2;Interventi assistenziali;999;Altri assegni e sussidi assistenziali;20/11/2023
3683;1;9999999;206,04;206,04;OMESSO NOMINATIVO NEL RISPETTO DELLA NORMATIVA SULLA PROTEZIONE DATI PERSONALI; ;CONTRIBUTO ECONOMICO DESTINATO ALLE FAMIGLIE PER LA FREQUENZA DEI CENTRI ESTIVI NELLANNO 2023;15/11/2023;4157;53;567;1;Spese correnti;4;Trasferimenti correnti;2;Trasferimenti correnti a Famiglie;2;Interventi assistenziali;999;Altri assegni e sussidi assistenziali;20/11/2023
3684;1;9999999;200;200;OMESSO NOMINATIVO NEL RISPETTO DELLA NORMATIVA SULLA PROTEZIONE DATI PERSONALI; ;CONTRIBUTO ECONOMICO DESTINATO ALLE FAMIGLIE PER LA FREQUENZA DEI CENTRI ESTIVI NELLANNO 2023;15/11/2023;4157;53;567;1;Spese correnti;4;Trasferimenti correnti;2;Trasferimenti correnti a Famiglie;2;Interventi assistenziali;999;Altri assegni e sussidi assistenziali;20/11/2023
3685;1;9999999;200;200;OMESSO NOMINATIVO NEL RISPETTO DELLA NORMATIVA SULLA PROTEZIONE DATI PERSONALI; ;CONTRIBUTO ECONOMICO DESTINATO ALLE FAMIGLIE PER LA FREQUENZA DEI CENTRI ESTIVI NELLANNO 2023;15/11/2023;4157;53;567;1;Spese correnti;4;Trasferimenti correnti;2;Trasferimenti correnti a Famiglie;2;Interventi assistenziali;999;Altri assegni e sussidi assistenziali;20/11/2023
3686;1;9999999;200;200;OMESSO NOMINATIVO NEL RISPETTO DELLA NORMATIVA SULLA PROTEZIONE DATI PERSONALI; ;CONTRIBUTO ECONOMICO DESTINATO ALLE FAMIGLIE PER LA FREQUENZA DEI CENTRI ESTIVI NELLANNO 2023;15/11/2023;4157;53;567;1;Spese correnti;4;Trasferimenti correnti;2;Trasferimenti correnti a Famiglie;2;Interventi assistenziali;999;Altri assegni e sussidi assistenziali;20/11/2023
3687;1;9999999;330,96;330,96;OMESSO NOMINATIVO NEL RISPETTO DELLA NORMATIVA SULLA PROTEZIONE DATI PERSONALI; ;CONTRIBUTO ECONOMICO DESTINATO ALLE FAMIGLIE PER LA FREQUENZA DEI CENTRI ESTIVI NELLANNO 2023;15/11/2023;4157;53;567;1;Spese correnti;4;Trasferimenti correnti;2;Trasferimenti correnti a Famiglie;2;Interventi assistenziali;999;Altri assegni e sussidi assistenziali;20/11/2023
3688;1;9999999;86,07;86,07;OMESSO NOMINATIVO NEL RISPETTO DELLA NORMATIVA SULLA PROTEZIONE DATI PERSONALI; ;CONTRIBUTO ECONOMICO DESTINATO ALLE FAMIGLIE PER LA FREQUENZA DEI CENTRI ESTIVI NELLANNO 2023;15/11/2023;4157;53;567;1;Spese correnti;4;Trasferimenti correnti;2;Trasferimenti correnti a Famiglie;2;Interventi assistenziali;999;Altri assegni e sussidi assistenziali;20/11/2023
3689;1;9999999;22,89;22,89;OMESSO NOMINATIVO NEL RISPETTO DELLA NORMATIVA SULLA PROTEZIONE DATI PERSONALI; ;CONTRIBUTO ECONOMICO DESTINATO ALLE FAMIGLIE PER LA FREQUENZA DEI CENTRI ESTIVI NELLANNO 2023;15/11/2023;4157;53;567;1;Spese correnti;4;Trasferimenti correnti;2;Trasferimenti correnti a Famiglie;2;Interventi assistenziali;999;Altri assegni e sussidi assistenziali;20/11/2023
3690;1;9999999;29,7;29,7;OMESSO NOMINATIVO NEL RISPETTO DELLA NORMATIVA SULLA PROTEZIONE DATI PERSONALI; ;CONTRIBUTO ECONOMICO DESTINATO ALLE FAMIGLIE PER LA FREQUENZA DEI CENTRI ESTIVI NELLANNO 2023;15/11/2023;4157;53;567;1;Spese correnti;4;Trasferimenti correnti;2;Trasferimenti correnti a Famiglie;2;Interventi assistenziali;999;Altri assegni e sussidi assistenziali;20/11/2023
3691;1;9999999;249,64;249,64;OMESSO NOMINATIVO NEL RISPETTO DELLA NORMATIVA SULLA PROTEZIONE DATI PERSONALI; ;CONTRIBUTO ECONOMICO DESTINATO ALLE FAMIGLIE PER LA FREQUENZA DEI CENTRI ESTIVI NELLANNO 2023;15/11/2023;4157;53;567;1;Spese correnti;4;Trasferimenti correnti;2;Trasferimenti correnti a Famiglie;2;Interventi assistenziali;999;Altri assegni e sussidi assistenziali;20/11/2023
3692;1;9999999;400;400;OMESSO NOMINATIVO NEL RISPETTO DELLA NORMATIVA SULLA PROTEZIONE DATI PERSONALI; ;CONTRIBUTO ECONOMICO DESTINATO ALLE FAMIGLIE PER LA FREQUENZA DEI CENTRI ESTIVI NELLANNO 2023;15/11/2023;4157;53;567;1;Spese correnti;4;Trasferimenti correnti;2;Trasferimenti correnti a Famiglie;2;Interventi assistenziali;999;Altri assegni e sussidi assistenziali;20/11/2023
3693;1;9999999;327;327;OMESSO NOMINATIVO NEL RISPETTO DELLA NORMATIVA SULLA PROTEZIONE DATI PERSONALI; ;CONTRIBUTO ECONOMICO DESTINATO ALLE FAMIGLIE PER LA FREQUENZA DEI CENTRI ESTIVI NELLANNO 2023;15/11/2023;4157;53;567;1;Spese correnti;4;Trasferimenti correnti;2;Trasferimenti correnti a Famiglie;2;Interventi assistenziali;999;Altri assegni e sussidi assistenziali;20/11/2023
3694;1;9999999;400;400;OMESSO NOMINATIVO NEL RISPETTO DELLA NORMATIVA SULLA PROTEZIONE DATI PERSONALI; ;CONTRIBUTO ECONOMICO DESTINATO ALLE FAMIGLIE PER LA FREQUENZA DEI CENTRI ESTIVI NELLANNO 2023;15/11/2023;4157;53;567;1;Spese correnti;4;Trasferimenti correnti;2;Trasferimenti correnti a Famiglie;2;Interventi assistenziali;999;Altri assegni e sussidi assistenziali;20/11/2023
3695;1;9999999;189,27;189,27;OMESSO NOMINATIVO NEL RISPETTO DELLA NORMATIVA SULLA PROTEZIONE DATI PERSONALI; ;CONTRIBUTO ECONOMICO DESTINATO ALLE FAMIGLIE PER LA FREQUENZA DEI CENTRI ESTIVI NELLANNO 2023;15/11/2023;4157;53;567;1;Spese correnti;4;Trasferimenti correnti;2;Trasferimenti correnti a Famiglie;2;Interventi assistenziali;999;Altri assegni e sussidi assistenziali;20/11/2023
3696;1;9999999;400;400;OMESSO NOMINATIVO NEL RISPETTO DELLA NORMATIVA SULLA PROTEZIONE DATI PERSONALI; ;CONTRIBUTO ECONOMICO DESTINATO ALLE FAMIGLIE PER LA FREQUENZA DEI CENTRI ESTIVI NELLANNO 2023;15/11/2023;4157;53;567;1;Spese correnti;4;Trasferimenti correnti;2;Trasferimenti correnti a Famiglie;2;Interventi assistenziali;999;Altri assegni e sussidi assistenziali;20/11/2023
3697;1;9999999;200;200;OMESSO NOMINATIVO NEL RISPETTO DELLA NORMATIVA SULLA PROTEZIONE DATI PERSONALI; ;CONTRIBUTO ECONOMICO DESTINATO ALLE FAMIGLIE PER LA FREQUENZA DEI CENTRI ESTIVI NELLANNO 2023;15/11/2023;4157;53;567;1;Spese correnti;4;Trasferimenti correnti;2;Trasferimenti correnti a Famiglie;2;Interventi assistenziali;999;Altri assegni e sussidi assistenziali;20/11/2023
3698;1;9999999;200;200;OMESSO NOMINATIVO NEL RISPETTO DELLA NORMATIVA SULLA PROTEZIONE DATI PERSONALI; ;CONTRIBUTO ECONOMICO DESTINATO ALLE FAMIGLIE PER LA FREQUENZA DEI CENTRI ESTIVI NELLANNO 2023;15/11/2023;4157;53;567;1;Spese correnti;4;Trasferimenti correnti;2;Trasferimenti correnti a Famiglie;2;Interventi assistenziali;999;Altri assegni e sussidi assistenziali;20/11/2023
3699;1;9999999;82,73;82,73;OMESSO NOMINATIVO NEL RISPETTO DELLA NORMATIVA SULLA PROTEZIONE DATI PERSONALI; ;CONTRIBUTO ECONOMICO DESTINATO ALLE FAMIGLIE PER LA FREQUENZA DEI CENTRI ESTIVI NELLANNO 2023;15/11/2023;4157;53;567;1;Spese correnti;4;Trasferimenti correnti;2;Trasferimenti correnti a Famiglie;2;Interventi assistenziali;999;Altri assegni e sussidi assistenziali;20/11/2023
3700;1;9999999;400;400;OMESSO NOMINATIVO NEL RISPETTO DELLA NORMATIVA SULLA PROTEZIONE DATI PERSONALI; ;CONTRIBUTO ECONOMICO DESTINATO ALLE FAMIGLIE PER LA FREQUENZA DEI CENTRI ESTIVI NELLANNO 2023;15/11/2023;4157;53;567;1;Spese correnti;4;Trasferimenti correnti;2;Trasferimenti correnti a Famiglie;2;Interventi assistenziali;999;Altri assegni e sussidi assistenziali;20/11/2023
3701;1;9999999;73,44;73,44;OMESSO NOMINATIVO NEL RISPETTO DELLA NORMATIVA SULLA PROTEZIONE DATI PERSONALI; ;CONTRIBUTO ECONOMICO DESTINATO ALLE FAMIGLIE PER LA FREQUENZA DEI CENTRI ESTIVI NELLANNO 2023;15/11/2023;4157;53;567;1;Spese correnti;4;Trasferimenti correnti;2;Trasferimenti correnti a Famiglie;2;Interventi assistenziali;999;Altri assegni e sussidi assistenziali;20/11/2023
3702;1;9999999;200;200;OMESSO NOMINATIVO NEL RISPETTO DELLA NORMATIVA SULLA PROTEZIONE DATI PERSONALI; ;CONTRIBUTO ECONOMICO DESTINATO ALLE FAMIGLIE PER LA FREQUENZA DEI CENTRI ESTIVI NELLANNO 2023;15/11/2023;4157;53;567;1;Spese correnti;4;Trasferimenti correnti;2;Trasferimenti correnti a Famiglie;2;Interventi assistenziali;999;Altri assegni e sussidi assistenziali;20/11/2023
3703;1;9999999;200;200;OMESSO NOMINATIVO NEL RISPETTO DELLA NORMATIVA SULLA PROTEZIONE DATI PERSONALI; ;CONTRIBUTO ECONOMICO DESTINATO ALLE FAMIGLIE PER LA FREQUENZA DEI CENTRI ESTIVI NELLANNO 2023;15/11/2023;4157;53;567;1;Spese correnti;4;Trasferimenti correnti;2;Trasferimenti correnti a Famiglie;2;Interventi assistenziali;999;Altri assegni e sussidi assistenziali;20/11/2023
3704;1;9999999;200;200;OMESSO NOMINATIVO NEL RISPETTO DELLA NORMATIVA SULLA PROTEZIONE DATI PERSONALI; ;CONTRIBUTO ECONOMICO DESTINATO ALLE FAMIGLIE PER LA FREQUENZA DEI CENTRI ESTIVI NELLANNO 2023;15/11/2023;4157;53;567;1;Spese correnti;4;Trasferimenti correnti;2;Trasferimenti correnti a Famiglie;2;Interventi assistenziali;999;Altri assegni e sussidi assistenziali;20/11/2023
3705;1;9999999;28,6;28,6;OMESSO NOMINATIVO NEL RISPETTO DELLA NORMATIVA SULLA PROTEZIONE DATI PERSONALI; ;CONTRIBUTO ECONOMICO DESTINATO ALLE FAMIGLIE PER LA FREQUENZA DEI CENTRI ESTIVI NELLANNO 2023;15/11/2023;4157;53;567;1;Spese correnti;4;Trasferimenti correnti;2;Trasferimenti correnti a Famiglie;2;Interventi assistenziali;999;Altri assegni e sussidi assistenziali;20/11/2023
3706;1;9999999;27,86;27,86;OMESSO NOMINATIVO NEL RISPETTO DELLA NORMATIVA SULLA PROTEZIONE DATI PERSONALI; ;CONTRIBUTO ECONOMICO DESTINATO ALLE FAMIGLIE PER LA FREQUENZA DEI CENTRI ESTIVI NELLANNO 2023;15/11/2023;4157;53;567;1;Spese correnti;4;Trasferimenti correnti;2;Trasferimenti correnti a Famiglie;2;Interventi assistenziali;999;Altri assegni e sussidi assistenziali;20/11/2023
3707;1;9999999;116,28;116,28;OMESSO NOMINATIVO NEL RISPETTO DELLA NORMATIVA SULLA PROTEZIONE DATI PERSONALI; ;CONTRIBUTO ECONOMICO DESTINATO ALLE FAMIGLIE PER LA FREQUENZA DEI CENTRI ESTIVI NELLANNO 2023;15/11/2023;4157;53;567;1;Spese correnti;4;Trasferimenti correnti;2;Trasferimenti correnti a Famiglie;2;Interventi assistenziali;999;Altri assegni e sussidi assistenziali;20/11/2023
3708;1;9999999;129,24;129,24;OMESSO NOMINATIVO NEL RISPETTO DELLA NORMATIVA SULLA PROTEZIONE DATI PERSONALI; ;CONTRIBUTO ECONOMICO DESTINATO ALLE FAMIGLIE PER LA FREQUENZA DEI CENTRI ESTIVI NELLANNO 2023;15/11/2023;4157;53;567;1;Spese correnti;4;Trasferimenti correnti;2;Trasferimenti correnti a Famiglie;2;Interventi assistenziali;999;Altri assegni e sussidi assistenziali;20/11/2023
3709;1;9999999;25,45;25,45;OMESSO NOMINATIVO NEL RISPETTO DELLA NORMATIVA SULLA PROTEZIONE DATI PERSONALI; ;CONTRIBUTO ECONOMICO DESTINATO ALLE FAMIGLIE PER LA FREQUENZA DEI CENTRI ESTIVI NELLANNO 2023;15/11/2023;4157;53;567;1;Spese correnti;4;Trasferimenti correnti;2;Trasferimenti correnti a Famiglie;2;Interventi assistenziali;999;Altri assegni e sussidi assistenziali;20/11/2023
3710;1;9999999;12,27;12,27;OMESSO NOMINATIVO NEL RISPETTO DELLA NORMATIVA SULLA PROTEZIONE DATI PERSONALI; ;CONTRIBUTO ECONOMICO DESTINATO ALLE FAMIGLIE PER LA FREQUENZA DEI CENTRI ESTIVI NELLANNO 2023;15/11/2023;4157;53;567;1;Spese correnti;4;Trasferimenti correnti;2;Trasferimenti correnti a Famiglie;2;Interventi assistenziali;999;Altri assegni e sussidi assistenziali;20/11/2023
3711;1;9999999;131,1;131,1;OMESSO NOMINATIVO NEL RISPETTO DELLA NORMATIVA SULLA PROTEZIONE DATI PERSONALI; ;CONTRIBUTO ECONOMICO DESTINATO ALLE FAMIGLIE PER LA FREQUENZA DEI CENTRI ESTIVI NELLANNO 2023;15/11/2023;4157;53;567;1;Spese correnti;4;Trasferimenti correnti;2;Trasferimenti correnti a Famiglie;2;Interventi assistenziali;999;Altri assegni e sussidi assistenziali;20/11/2023
3712;1;9999999;13,56;13,56;OMESSO NOMINATIVO NEL RISPETTO DELLA NORMATIVA SULLA PROTEZIONE DATI PERSONALI; ;CONTRIBUTO ECONOMICO DESTINATO ALLE FAMIGLIE PER LA FREQUENZA DEI CENTRI ESTIVI NELLANNO 2023;15/11/2023;4157;53;567;1;Spese correnti;4;Trasferimenti correnti;2;Trasferimenti correnti a Famiglie;2;Interventi assistenziali;999;Altri assegni e sussidi assistenziali;20/11/2023
3713;1;9999999;178,81;178,81;OMESSO NOMINATIVO NEL RISPETTO DELLA NORMATIVA SULLA PROTEZIONE DATI PERSONALI; ;CONTRIBUTO ECONOMICO DESTINATO ALLE FAMIGLIE PER LA FREQUENZA DEI CENTRI ESTIVI NELLANNO 2023;15/11/2023;4157;53;567;1;Spese correnti;4;Trasferimenti correnti;2;Trasferimenti correnti a Famiglie;2;Interventi assistenziali;999;Altri assegni e sussidi assistenziali;20/11/2023
3714;1;9999999;166,44;166,44;OMESSO NOMINATIVO NEL RISPETTO DELLA NORMATIVA SULLA PROTEZIONE DATI PERSONALI; ;CONTRIBUTO ECONOMICO DESTINATO ALLE FAMIGLIE PER LA FREQUENZA DEI CENTRI ESTIVI NELLANNO 2023;15/11/2023;4157;53;567;1;Spese correnti;4;Trasferimenti correnti;2;Trasferimenti correnti a Famiglie;2;Interventi assistenziali;999;Altri assegni e sussidi assistenziali;20/11/2023
3715;1;9999999;80,08;80,08;OMESSO NOMINATIVO NEL RISPETTO DELLA NORMATIVA SULLA PROTEZIONE DATI PERSONALI; ;CONTRIBUTO ECONOMICO DESTINATO ALLE FAMIGLIE PER LA FREQUENZA DEI CENTRI ESTIVI NELLANNO 2023;15/11/2023;4157;53;567;1;Spese correnti;4;Trasferimenti correnti;2;Trasferimenti correnti a Famiglie;2;Interventi assistenziali;999;Altri assegni e sussidi assistenziali;20/11/2023
3716;1;9999999;200;200;OMESSO NOMINATIVO NEL RISPETTO DELLA NORMATIVA SULLA PROTEZIONE DATI PERSONALI; ;CONTRIBUTO ECONOMICO DESTINATO ALLE FAMIGLIE PER LA FREQUENZA DEI CENTRI ESTIVI NELLANNO 2023;15/11/2023;4157;53;567;1;Spese correnti;4;Trasferimenti correnti;2;Trasferimenti correnti a Famiglie;2;Interventi assistenziali;999;Altri assegni e sussidi assistenziali;20/11/2023
3717;1;9999999;347,32;347,32;OMESSO NOMINATIVO NEL RISPETTO DELLA NORMATIVA SULLA PROTEZIONE DATI PERSONALI; ;CONTRIBUTO ECONOMICO DESTINATO ALLE FAMIGLIE PER LA FREQUENZA DEI CENTRI ESTIVI NELLANNO 2023;15/11/2023;4157;53;567;1;Spese correnti;4;Trasferimenti correnti;2;Trasferimenti correnti a Famiglie;2;Interventi assistenziali;999;Altri assegni e sussidi assistenziali;20/11/2023
3718;1;9999999;400;400;OMESSO NOMINATIVO NEL RISPETTO DELLA NORMATIVA SULLA PROTEZIONE DATI PERSONALI; ;CONTRIBUTO ECONOMICO DESTINATO ALLE FAMIGLIE PER LA FREQUENZA DEI CENTRI ESTIVI NELLANNO 2023;15/11/2023;4157;53;567;1;Spese correnti;4;Trasferimenti correnti;2;Trasferimenti correnti a Famiglie;2;Interventi assistenziali;999;Altri assegni e sussidi assistenziali;20/11/2023
3719;1;9999999;97,82;97,82;OMESSO NOMINATIVO NEL RISPETTO DELLA NORMATIVA SULLA PROTEZIONE DATI PERSONALI; ;CONTRIBUTO ECONOMICO DESTINATO ALLE FAMIGLIE PER LA FREQUENZA DEI CENTRI ESTIVI NELLANNO 2023;15/11/2023;4157;53;567;1;Spese correnti;4;Trasferimenti correnti;2;Trasferimenti correnti a Famiglie;2;Interventi assistenziali;999;Altri assegni e sussidi assistenziali;20/11/2023
3720;1;9999999;90,22;90,22;OMESSO NOMINATIVO NEL RISPETTO DELLA NORMATIVA SULLA PROTEZIONE DATI PERSONALI; ;CONTRIBUTO ECONOMICO DESTINATO ALLE FAMIGLIE PER LA FREQUENZA DEI CENTRI ESTIVI NELLANNO 2023;15/11/2023;4157;53;567;1;Spese correnti;4;Trasferimenti correnti;2;Trasferimenti correnti a Famiglie;2;Interventi assistenziali;999;Altri assegni e sussidi assistenziali;20/11/2023
3721;1;9999999;400;400;OMESSO NOMINATIVO NEL RISPETTO DELLA NORMATIVA SULLA PROTEZIONE DATI PERSONALI; ;CONTRIBUTO ECONOMICO DESTINATO ALLE FAMIGLIE PER LA FREQUENZA DEI CENTRI ESTIVI NELLANNO 2023;15/11/2023;4157;53;567;1;Spese correnti;4;Trasferimenti correnti;2;Trasferimenti correnti a Famiglie;2;Interventi assistenziali;999;Altri assegni e sussidi assistenziali;20/11/2023
3722;1;9999999;200;200;OMESSO NOMINATIVO NEL RISPETTO DELLA NORMATIVA SULLA PROTEZIONE DATI PERSONALI; ;CONTRIBUTO ECONOMICO DESTINATO ALLE FAMIGLIE PER LA FREQUENZA DEI CENTRI ESTIVI NELLANNO 2023;15/11/2023;4157;53;567;1;Spese correnti;4;Trasferimenti correnti;2;Trasferimenti correnti a Famiglie;2;Interventi assistenziali;999;Altri assegni e sussidi assistenziali;20/11/2023
3723;1;9999999;200;200;OMESSO NOMINATIVO NEL RISPETTO DELLA NORMATIVA SULLA PROTEZIONE DATI PERSONALI; ;CONTRIBUTO ECONOMICO DESTINATO ALLE FAMIGLIE PER LA FREQUENZA DEI CENTRI ESTIVI NELLANNO 2023;15/11/2023;4157;53;567;1;Spese correnti;4;Trasferimenti correnti;2;Trasferimenti correnti a Famiglie;2;Interventi assistenziali;999;Altri assegni e sussidi assistenziali;20/11/2023
3724;1;9999999;19,52;19,52;OMESSO NOMINATIVO NEL RISPETTO DELLA NORMATIVA SULLA PROTEZIONE DATI PERSONALI; ;CONTRIBUTO ECONOMICO DESTINATO ALLE FAMIGLIE PER LA FREQUENZA DEI CENTRI ESTIVI NELLANNO 2023;15/11/2023;4157;53;567;1;Spese correnti;4;Trasferimenti correnti;2;Trasferimenti correnti a Famiglie;2;Interventi assistenziali;999;Altri assegni e sussidi assistenziali;20/11/2023
3725;1;9999999;42,09;42,09;OMESSO NOMINATIVO NEL RISPETTO DELLA NORMATIVA SULLA PROTEZIONE DATI PERSONALI; ;CONTRIBUTO ECONOMICO DESTINATO ALLE FAMIGLIE PER LA FREQUENZA DEI CENTRI ESTIVI NELLANNO 2023;15/11/2023;4157;53;567;1;Spese correnti;4;Trasferimenti correnti;2;Trasferimenti correnti a Famiglie;2;Interventi assistenziali;999;Altri assegni e sussidi assistenziali;20/11/2023
3726;1;9999999;400;400;OMESSO NOMINATIVO NEL RISPETTO DELLA NORMATIVA SULLA PROTEZIONE DATI PERSONALI; ;CONTRIBUTO ECONOMICO DESTINATO ALLE FAMIGLIE PER LA FREQUENZA DEI CENTRI ESTIVI NELLANNO 2023;15/11/2023;4157;53;567;1;Spese correnti;4;Trasferimenti correnti;2;Trasferimenti correnti a Famiglie;2;Interventi assistenziali;999;Altri assegni e sussidi assistenziali;20/11/2023
3727;1;9999999;4,89;4,89;OMESSO NOMINATIVO NEL RISPETTO DELLA NORMATIVA SULLA PROTEZIONE DATI PERSONALI; ;CONTRIBUTO ECONOMICO DESTINATO ALLE FAMIGLIE PER LA FREQUENZA DEI CENTRI ESTIVI NELLANNO 2023;15/11/2023;4157;53;567;1;Spese correnti;4;Trasferimenti correnti;2;Trasferimenti correnti a Famiglie;2;Interventi assistenziali;999;Altri assegni e sussidi assistenziali;20/11/2023
3728;1;9999999;176,16;176,16;OMESSO NOMINATIVO NEL RISPETTO DELLA NORMATIVA SULLA PROTEZIONE DATI PERSONALI; ;CONTRIBUTO ECONOMICO DESTINATO ALLE FAMIGLIE PER LA FREQUENZA DEI CENTRI ESTIVI NELLANNO 2023;15/11/2023;4157;53;567;1;Spese correnti;4;Trasferimenti correnti;2;Trasferimenti correnti a Famiglie;2;Interventi assistenziali;999;Altri assegni e sussidi assistenziali;20/11/2023
3729;1;9999999;200;200;OMESSO NOMINATIVO NEL RISPETTO DELLA NORMATIVA SULLA PROTEZIONE DATI PERSONALI; ;CONTRIBUTO ECONOMICO DESTINATO ALLE FAMIGLIE PER LA FREQUENZA DEI CENTRI ESTIVI NELLANNO 2023;15/11/2023;4157;53;567;1;Spese correnti;4;Trasferimenti correnti;2;Trasferimenti correnti a Famiglie;2;Interventi assistenziali;999;Altri assegni e sussidi assistenziali;20/11/2023
3730;1;9999999;190,4;190,4;OMESSO NOMINATIVO NEL RISPETTO DELLA NORMATIVA SULLA PROTEZIONE DATI PERSONALI; ;CONTRIBUTO ECONOMICO DESTINATO ALLE FAMIGLIE PER LA FREQUENZA DEI CENTRI ESTIVI NELLANNO 2023;15/11/2023;4157;53;567;1;Spese correnti;4;Trasferimenti correnti;2;Trasferimenti correnti a Famiglie;2;Interventi assistenziali;999;Altri assegni e sussidi assistenziali;20/11/2023
3731;1;9999999;37,2;37,2;OMESSO NOMINATIVO NEL RISPETTO DELLA NORMATIVA SULLA PROTEZIONE DATI PERSONALI; ;CONTRIBUTO ECONOMICO DESTINATO ALLE FAMIGLIE PER LA FREQUENZA DEI CENTRI ESTIVI NELLANNO 2023;15/11/2023;4157;53;567;1;Spese correnti;4;Trasferimenti correnti;2;Trasferimenti correnti a Famiglie;2;Interventi assistenziali;999;Altri assegni e sussidi assistenziali;20/11/2023
3732;1;9999999;78,5;78,5;OMESSO NOMINATIVO NEL RISPETTO DELLA NORMATIVA SULLA PROTEZIONE DATI PERSONALI; ;CONTRIBUTO ECONOMICO DESTINATO ALLE FAMIGLIE PER LA FREQUENZA DEI CENTRI ESTIVI NELLANNO 2023;15/11/2023;4157;53;567;1;Spese correnti;4;Trasferimenti correnti;2;Trasferimenti correnti a Famiglie;2;Interventi assistenziali;999;Altri assegni e sussidi assistenziali;20/11/2023
3733;1;9999999;136,57;136,57;OMESSO NOMINATIVO NEL RISPETTO DELLA NORMATIVA SULLA PROTEZIONE DATI PERSONALI; ;CONTRIBUTO ECONOMICO DESTINATO ALLE FAMIGLIE PER LA FREQUENZA DEI CENTRI ESTIVI NELLANNO 2023;15/11/2023;4157;53;567;1;Spese correnti;4;Trasferimenti correnti;2;Trasferimenti correnti a Famiglie;2;Interventi assistenziali;999;Altri assegni e sussidi assistenziali;20/11/2023
3734;1;9999999;48,32;48,32;OMESSO NOMINATIVO NEL RISPETTO DELLA NORMATIVA SULLA PROTEZIONE DATI PERSONALI; ;CONTRIBUTO ECONOMICO DESTINATO ALLE FAMIGLIE PER LA FREQUENZA DEI CENTRI ESTIVI NELLANNO 2023;15/11/2023;4157;53;567;1;Spese correnti;4;Trasferimenti correnti;2;Trasferimenti correnti a Famiglie;2;Interventi assistenziali;999;Altri assegni e sussidi assistenziali;20/11/2023
3735;1;9999999;37,96;37,96;OMESSO NOMINATIVO NEL RISPETTO DELLA NORMATIVA SULLA PROTEZIONE DATI PERSONALI; ;CONTRIBUTO ECONOMICO DESTINATO ALLE FAMIGLIE PER LA FREQUENZA DEI CENTRI ESTIVI NELLANNO 2023;15/11/2023;4157;53;567;1;Spese correnti;4;Trasferimenti correnti;2;Trasferimenti correnti a Famiglie;2;Interventi assistenziali;999;Altri assegni e sussidi assistenziali;20/11/2023
3736;1;9999999;197,04;197,04;OMESSO NOMINATIVO NEL RISPETTO DELLA NORMATIVA SULLA PROTEZIONE DATI PERSONALI; ;CONTRIBUTO ECONOMICO DESTINATO ALLE FAMIGLIE PER LA FREQUENZA DEI CENTRI ESTIVI NELLANNO 2023;15/11/2023;4157;53;567;1;Spese correnti;4;Trasferimenti correnti;2;Trasferimenti correnti a Famiglie;2;Interventi assistenziali;999;Altri assegni e sussidi assistenziali;20/11/2023
3737;1;9999999;200;200;OMESSO NOMINATIVO NEL RISPETTO DELLA NORMATIVA SULLA PROTEZIONE DATI PERSONALI; ;CONTRIBUTO ECONOMICO DESTINATO ALLE FAMIGLIE PER LA FREQUENZA DEI CENTRI ESTIVI NELLANNO 2023;15/11/2023;4157;53;567;1;Spese correnti;4;Trasferimenti correnti;2;Trasferimenti correnti a Famiglie;2;Interventi assistenziali;999;Altri assegni e sussidi assistenziali;20/11/2023
3738;1;9999999;181,51;181,51;OMESSO NOMINATIVO NEL RISPETTO DELLA NORMATIVA SULLA PROTEZIONE DATI PERSONALI; ;CONTRIBUTO ECONOMICO DESTINATO ALLE FAMIGLIE PER LA FREQUENZA DEI CENTRI ESTIVI NELLANNO 2023;15/11/2023;4157;53;567;1;Spese correnti;4;Trasferimenti correnti;2;Trasferimenti correnti a Famiglie;2;Interventi assistenziali;999;Altri assegni e sussidi assistenziali;20/11/2023
3739;1;9999999;1.266,75;2.595,70;ABACO S.P.A.;766214493F;SALDO Fatt.n. 2023120005940  del 09/11/2023 AGGUIO OCCUPAZIONE SUOLO PUBBLICO RENDICONTO DELLA GESTIONE DAL 01/09/2023 AL 31/10/2023 CIG.766214493F;16/11/2023;332;0;1228;1;Spese correnti;3;Acquisto di beni e servizi;2;Acquisto di servizi;3;Aggi di riscossione;999;Altri aggi di riscossione n.a.c.;21/11/2023
3739;2;9999999;1.328,95;2.595,70;ABACO S.P.A.;766214493F;SALDO Fatt.n. 2023120005939  del 09/11/2023 AGGIO ESPOSIZIONE PUBBLICITARIE RENDICONTO DELLA GESTIONE DAL 01/10/2023 A 31/10/2023 CIG.766214493F;16/11/2023;332;0;1228;1;Spese correnti;3;Acquisto di beni e servizi;2;Acquisto di servizi;3;Aggi di riscossione;999;Altri aggi di riscossione n.a.c.;21/11/2023
3740;1;9999999;709,1;709,1;ABACO S.P.A.;766214493F;SALDO Fatt.n. 2023140004589  del 09/11/2023 AGGIO SU RISCOSSO-TRIB-ICI IMU TASI LOTTO 10-11-12-13-14-15-16-17-18 RENDICONTO OTTOBRE 2023 CIG.766214493F;16/11/2023;332;0;122;1;Spese correnti;3;Acquisto di beni e servizi;2;Acquisto di servizi;3;Aggi di riscossione;999;Altri aggi di riscossione n.a.c.;21/11/2023
3741;1;9999999;4.880,00;4.880,00;SETI SRL;Z103AFD344;SALDO Fatt.n. 204  del 31/10/2023 ANALISI PRELIMINARE STATO DI ATTUAZIONE TRANSIZIONE DIGITALE;16/11/2023;748;0;420;1;Spese correnti;3;Acquisto di beni e servizi;2;Acquisto di servizi;19;Servizi informatici e di telecomunicazioni;8;Servizi di monitoraggio della qualità dei servizi;21/11/2023
3742;1;9999999;20,87;20,87;MCTC MINISTERO INFRASTRUTTURE TRASPORTI; ;LIQUIDAZIONE III TRIMESTRE 2023 MCTC;16/11/2023;1134;0;36;1;Spese correnti;3;Acquisto di beni e servizi;2;Acquisto di servizi;5;Utenze e canoni;3;Accesso a banche dati e a pubblicazioni on line;21/11/2023
3743;1;9999999;59,62;2.408,40;VODAFONE ITALIA SPA;Z6C2BED875;SALDO Fatt.n. AP18439672  del 28/10/2023 PERIODO 26 AGOSTO  24 OTTOBRE 2023  - TELEFONIA;16/11/2023;1334;0;24;1;Spese correnti;3;Acquisto di beni e servizi;2;Acquisto di servizi;5;Utenze e canoni;1;Telefonia fissa;21/11/2023
3743;2;9999999;247,41;2.408,40;VODAFONE ITALIA SPA;Z6C2BED875;SALDO Fatt.n. AP18439673  del 28/10/2023 PERIODO 26 AGOSTO  24 OTTOBRE 2023 - TELEFONIA;16/11/2023;1334;0;24;1;Spese correnti;3;Acquisto di beni e servizi;2;Acquisto di servizi;5;Utenze e canoni;1;Telefonia fissa;21/11/2023
3743;3;9999999;933,59;2.408,40;VODAFONE ITALIA SPA;Z6C2BED875;SALDO Fatt.n. AP18439119  del 28/10/2023 PERIODO 26 AGOSTO  24 OTTOBRE 2023  - TELEFONIA;16/11/2023;1334;0;24;1;Spese correnti;3;Acquisto di beni e servizi;2;Acquisto di servizi;5;Utenze e canoni;1;Telefonia fissa;21/11/2023
3743;4;9999999;1.167,78;2.408,40;VODAFONE ITALIA SPA;Z6C2BED875;SALDO Fatt.n. AP18439171  del 28/10/2023 PERIODO 26 AGOSTO  24 OTTOBRE 2023 -  TELEFONIA;16/11/2023;1334;0;24;1;Spese correnti;3;Acquisto di beni e servizi;2;Acquisto di servizi;5;Utenze e canoni;1;Telefonia fissa;21/11/2023
3744;1;9999999;1.499,11;3.473,73;FASTWEB SPA;5133642F61;SALDO Fatt.n. PAE0039688  del 31/10/2023 CANONE CONNETIVITA SCUOLE PERIODO DAL 1 SETTEMBRE AL 31 OTTOBRE 2023;16/11/2023;1334;0;46;1;Spese correnti;3;Acquisto di beni e servizi;2;Acquisto di servizi;5;Utenze e canoni;1;Telefonia fissa;21/11/2023
3744;2;9999999;1.974,62;3.473,73;FASTWEB SPA;5133642F61;SALDO Fatt.n. PAE0039689  del 31/10/2023 CANONE CONNETIVITA CITTA METROPOLITANA PERIODO DAL 1 SETTEMBRE AL 31 OTTOBRE 2023;16/11/2023;1334;0;46;1;Spese correnti;3;Acquisto di beni e servizi;2;Acquisto di servizi;5;Utenze e canoni;1;Telefonia fissa;21/11/2023
3745;1;9999999;53,69;53,69;CARTOLIBRERIA ANGOLO DI CARTA DI ELIANA FIORANZATO; ;SALDO Fatt.n. 19PA  del 11/11/2023 FORNITURA LIBRI DI TESTO PER SCUOLE ELEMENTARI A.S. 2023-2024;16/11/2023;1357;0;555;1;Spese correnti;4;Trasferimenti correnti;2;Trasferimenti correnti a Famiglie;5;Altri trasferimenti a famiglie;999;Altri trasferimenti a famiglie n.a.c.;21/11/2023
3746;1;9999999;693,51;693,51;ABACO S.P.A.;766214493F;SALDO Fatt.n. 2023140004590  del 09/11/2023 AGGIO SU RISCOSSO-CDS LOTTO 2 E 3 RENDICONTO DELLA GESTIONE OTTOBRE 2023 CIG.766214493F;16/11/2023;1132;0;945;1;Spese correnti;3;Acquisto di beni e servizi;2;Acquisto di servizi;3;Aggi di riscossione;999;Altri aggi di riscossione n.a.c.;21/11/2023
3747;1;9999999;2.181,92;28.517,04;DUSSMANN SERVICE SRL;90957312AC;SALDO Fatt.n. 32353182  del 31/10/2023 OTTOBRE 2023 - PASTI SCUOLA MATERNA S. ANGELO BAMBINI E INSEGNANTI;16/11/2023;1344;0;149;1;Spese correnti;3;Acquisto di beni e servizi;2;Acquisto di servizi;15;Contratti di servizio pubblico;6;Contratti di servizio per le mense scolastiche;21/11/2023
3747;2;9999999;26.335,12;28.517,04;DUSSMANN SERVICE SRL;90957312AC;SALDO Fatt.n. 32353183  del 31/10/2023 OTTOBRE 2023 - PASTI SCUOLE ELEMENTARI BAMBINI E INSEGNANTI;16/11/2023;1344;0;149;1;Spese correnti;3;Acquisto di beni e servizi;2;Acquisto di servizi;15;Contratti di servizio pubblico;6;Contratti di servizio per le mense scolastiche;21/11/2023
3748;1;9999999;250;250;OMESSO NOMINATIVO NEL RISPETTO DELLA NORMATIVA SULLA PROTEZIONE DATI PERSONALI; ;OTTOBRE 2023  - PROGETTO RIA;16/11/2023;3957;54;124;1;Spese correnti;4;Trasferimenti correnti;2;Trasferimenti correnti a Famiglie;5;Altri trasferimenti a famiglie;999;Altri trasferimenti a famiglie n.a.c.;23/11/2023
3749;1;9999999;250;250;OMESSO NOMINATIVO NEL RISPETTO DELLA NORMATIVA SULLA PROTEZIONE DATI PERSONALI; ;OTTOBRE 2023  - PROGETTO RIA;16/11/2023;3957;54;124;1;Spese correnti;4;Trasferimenti correnti;2;Trasferimenti correnti a Famiglie;5;Altri trasferimenti a famiglie;999;Altri trasferimenti a famiglie n.a.c.;27/11/2023
3750;1;9999999;250;250;OMESSO NOMINATIVO NEL RISPETTO DELLA NORMATIVA SULLA PROTEZIONE DATI PERSONALI; ;OTTOBRE 2023  - PROGETTO RIA;16/11/2023;3957;54;124;1;Spese correnti;4;Trasferimenti correnti;2;Trasferimenti correnti a Famiglie;5;Altri trasferimenti a famiglie;999;Altri trasferimenti a famiglie n.a.c.;21/11/2023
